Workbook

Sheet Start Here
A1: Please Start Here
A3: General Information | E3: Submittal Instructions
A4: Jurisidiction Name | B4: Elk Grove | E4: Housing Element Annual Progress Reports (APRs) forms and tables must be submitted to HCD and the Governor's Office of Planning and Research (OPR) on or before April 1 of each year for the prior calendar year; submit separate reports directly to both HCD and OPR pursuant to Government Code section 65400. There are two options for submitting APRs: 1. Online Annual Progress Reporting System (Preferred) - This enters your information directly into HCD’s database limiting the risk of errors. If you would like to use the online system, email APR@hcd.ca.gov and HCD will send you the login information for your jurisdiction. Please note: Using the online system only provides the information to HCD. The APR must still be submitted to OPR. Their email address is opr.apr@opr.ca.gov. 2. Email - If you prefer to submit via email, you can complete the excel Annual Progress Report forms and submit to HCD at APR@hcd.ca.gov and to OPR at opr.apr@opr.ca.gov. Please send the Excel workbook, not a scanned or PDF copy of the tables.
A5: Reporting Calendar Year | B5: 2018
A6: Contact Information
A7: First Name | B7: Sarah
A8: Last Name | B8: Bontrager
A9: Title | B9: Housing and Public Services Manager
A10: Email | B10: sbontrager@elkgrovecity.org
A11: Phone | B11: 9166273209
A12: Mailing Address
A13: Street Address | B13: 8401 Laguna Palms Way
A14: City | B14: Elk Grove
A15: Zipcode | B15: 95758
E16: v 2_6_19

Sheet Table A
A1: ANNUAL ELEMENT PROGRESS REPORT
A2: Housing Element Implementation
A3: (CCR Title 25 §6202)
A4: Jurisdiction | B4: ='Start Here'!B4:D4 -> Elk Grove | L4: Note: + Optional field
A5: Reporting Year | B5: ='Start Here'!B5 -> 2018 | C5: ='Table A2'!C5 -> (Jan. 1 - Dec. 31) | L5: Cells in grey contain auto-calculation formulas
A7: Table A
A8: Housing Development Applications Submitted
A9: Project Identifier | F9: Unit Types | H9: Date Application Submitted | I9: Proposed Units - Affordability by Household Incomes | Q9: Total Approved Units by Project | R9: Total Disapproved Units by Project | S9: Streamlining | T9: Notes
A10: 1 | F10: 2 | G10: 3 | H10: 4 | I10: 5 | P10: 6 | Q10: 7 | R10: 8 | S10: 9 | T10: 10
A11: Prior APN+ | B11: Current APN | C11: Street Address | D11: Project Name+ | E11: Local Jurisdiction Tracking ID+ | F11: Unit Category (SFA,SFD,2 to 4,5+,ADU,MH) | G11: Tenure R=Renter O=Owner | H11: Date Application Submitted | I11: Very Low-Income Deed Restricted | J11: Very Low-Income Non Deed Restricted | K11: Low-Income Deed Restricted | L11: Low-Income Non Deed Restricted | M11: Moderate-Income Deed Restricted | N11: Moderate- Income Non Deed Restricted | O11: Above Moderate- Income | P11: Total PROPOSED Units by Project | Q11: Total APPROVED Units by project | R11: Total DISAPPROVED Units by Project (Auto-calculated Can Be Overwritten) | S11: Was APPLICATION SUBMITTED Pursuant to GC 65913.4(b)? (SB 35 Streamlining) | T11: Notes+
A12: Summary Row: Start Data Entry Below | I12: =SUM(I13:I1000) -> 63 | J12: 0 | K12: 32 | L12: 72 | M12: 0 | N12: 0 | O12: 769 | P12: =SUM(P13:P1000) -> 936 | Q12: =SUM(Q13:Q1000) -> 112 | R12: =SUM(R13:R1000) -> 0 | S12: =COUNTIF(S13:S1000,"*Yes*") -> 0
A13: 132-1780-046 | B13: 132-1780-047 | C13: 10140 Bruceville Rd | D13: Gardens at Quail Run | E13: EG-18-008 | F13: 5+ | G13: R | H13: 2018-02-02 | I13: 63 | K13: 32 | O13: 1 | P13: =SUM(I13:O13) -> 96 | Q13: 96 | R13: 0 | S13: No | T13: City approved $5M loan pending receipt of other funding
A14: 116-0012-051, 116-0012-059 | B14: 116-0012-051, 116-0012-060 | C14: n/a | D14: Sheldon Farms North | E14: EG-18-018 | F14: SFD | G14: O | H14: 2018-03-12 | O14: 391 | P14: =SUM(I14:O14) -> 391 | R14: 0 | S14: No | T14: Pending approval
A15: 116-0012-064 | B15: 116-0012-064 | C15: n/a | D15: Sheldon Farms South | E15: EG-18-024 | F15: 5+ | G15: R | H15: 2018-03-29 | L15: 72 | O15: 120 | P15: =SUM(I15:O15) -> 192 | R15: 0 | S15: No | T15: Pending approval
A16: 132-0300-017, 132-0300-021, 132-0300-022 | B16: =$A$16 -> 132-0300-017, 132-0300-021, 132-0300-022 | C16: n/a | D16: Mendes TSM | E16: PLNG18-078 | F16: SFD | G16: O | H16: 2018-08-10 | O16: 199 | P16: 199 | R16: 0 | S16: No | T16: Pending approval
A17: 121-0140-019 | B17: 121-0140-019 | C17: 8965 Brown Rd | D17: Heartstone Homes | E17: PLNG18-104 | F17: SFD | G17: O | H17: 2018-11-21 | O17: 22 | P17: 22 | R17: 0 | S17: No | T17: Pending approval
A18: 122-0190-005 | B18: 122-0190-005 | C18: 8711 Bradshaw Rd | D18: Bradshaw TPM & Rezone | E18: PLNG18-072 | F18: SFD | G18: O | H18: 2018-07-06 | O18: 1 | P18: 1 | Q18: 0 | R18: 0 | S18: No | T18: Pending approval
A19: 123-0190-048 | B19: 123-0190-048 | C19: n/a | D19: Kitenza Parcel Map & Rezone | E19: PLNG18-088 | F19: SFD | G19: O | H19: 2018-09-27 | O19: 1 | P19: 1 | Q19: 0 | R19: 0 | S19: No | T19: Pending approval
A20: 127-0140-040 | B20: 127-0140-040 | C20: 9350 Bond Road | D20: Creekside Estates TPM and Rezone | E20: PLNG18-103 | F20: SFD | G20: O | H20: 2018-11-16 | O20: 15 | P20: 15 | R20: 0 | S20: No | T20: Pending approval
A21: 127-0080-017 | B21: 127-0080-017 | C21: 10077 Pleasant Grove School Rd | D21: Please Grove School TPM | E21: PLNG18-025 | F21: SFD | G21: O | H21: 2018-03-29 | O21: 3 | P21: 3 | R21: 0 | S21: No | T21: Pending approval
A22: 132-0050-050, -052 | B22: 132-0050-050, -052 | C22: 10149 Bruceville Rd | D22: Pham | E22: PLNG18-059 | F22: SFD | G22: O | H22: 2018-05-08 | O22: 16 | P22: 16 | Q22: 16 | R22: =P22-Q22 -> 0 | S22: No | T22: City approved 11/15/19
P23: 0 | R23: =P23-Q23 -> 0
P24: 0 | R24: 0
P25: 0 | R25: 0
P26: 0 | R26: 0
P27: 0 | R27: 0
P28: 0 | R28: 0
P29: 0 | R29: 0
P30: 0 | R30: 0
P31: 0 | R31: 0
P32: 0 | R32: 0
P33: 0 | R33: 0
P34: 0 | R34: 0
P35: 0 | R35: 0
P36: 0 | R36: 0
P37: 0 | R37: 0
P38: 0 | R38: 0
P39: 0 | R39: 0
P40: 0 | R40: 0
P41: 0 | R41: 0
P42: 0 | R42: 0
P43: 0 | R43: 0
P44: 0 | R44: 0
P45: 0 | R45: 0
P46: 0 | R46: 0
P47: 0 | R47: 0
P48: 0 | R48: 0
P49: 0 | R49: 0
P50: 0 | R50: 0
P51: 0 | R51: 0
P52: 0 | R52: 0
P53: 0 | R53: 0
P54: 0 | R54: 0
P55: 0 | R55: 0
P56: 0 | R56: 0
P57: 0 | R57: 0
P58: 0 | R58: 0
P59: 0 | R59: 0
P60: 0 | R60: 0
P61: 0 | R61: 0
P62: 0 | R62: 0
P63: 0 | R63: 0
P64: 0 | R64: 0
P65: 0 | R65: 0
P66: 0 | R66: 0
P67: 0 | R67: 0
P68: 0 | R68: 0
P69: 0 | R69: 0
P70: 0 | R70: 0
P71: 0 | R71: 0
P72: 0 | R72: 0
P73: 0 | R73: 0
P74: 0 | R74: 0
P75: 0 | R75: 0
P76: 0 | R76: 0
P77: =SUM(I77:O77) -> 0 | R77: 0
P78: 0 | R78: 0
P79: 0 | R79: 0
P80: 0 | R80: 0
P81: 0 | R81: 0
P82: 0 | R82: 0
P83: 0 | R83: 0
P84: 0 | R84: 0
P85: 0 | R85: 0
P86: 0 | R86: 0
P87: 0 | R87: 0
P88: 0 | R88: 0
P89: 0 | R89: 0
P90: 0 | R90: =P90-Q90 -> 0
P91: 0 | R91: 0
P92: 0 | R92: 0
P93: 0 | R93: 0
P94: 0 | R94: 0
P95: 0 | R95: 0
P96: 0 | R96: 0
P97: 0 | R97: 0
P98: 0 | R98: 0
P99: 0 | R99: 0
P100: 0 | R100: 0
P101: 0 | R101: 0
P102: 0 | R102: 0
P103: 0 | R103: 0
P104: 0 | R104: 0
P105: 0 | R105: 0
P106: 0 | R106: 0
P107: 0 | R107: 0
P108: 0 | R108: 0
P109: 0 | R109: 0
P110: 0 | R110: 0
P111: 0 | R111: 0
P112: 0 | R112: 0
P113: 0 | R113: 0
P114: 0 | R114: 0
P115: 0 | R115: 0
P116: 0 | R116: 0
P117: 0 | R117: 0
P118: 0 | R118: 0
P119: 0 | R119: 0
P120: 0 | R120: 0
P121: 0 | R121: 0
P122: 0 | R122: 0
P123: 0 | R123: 0
P124: 0 | R124: 0
P125: 0 | R125: 0
P126: 0 | R126: 0
P127: 0 | R127: 0
P128: 0 | R128: 0
P129: 0 | R129: 0
P130: 0 | R130: 0
P131: 0 | R131: 0
P132: 0 | R132: 0
P133: 0 | R133: 0
P134: 0 | R134: 0
P135: 0 | R135: 0
P136: 0 | R136: 0
P137: 0 | R137: 0
P138: 0 | R138: 0
P139: 0 | R139: 0
P140: 0 | R140: 0
P141: =SUM(I141:O141) -> 0 | R141: 0
P142: 0 | R142: 0
P143: 0 | R143: 0
P144: 0 | R144: 0
P145: 0 | R145: 0
P146: 0 | R146: 0
P147: 0 | R147: 0
P148: 0 | R148: 0
P149: 0 | R149: 0
P150: 0 | R150: 0
P151: 0 | R151: 0
P152: 0 | R152: 0
P153: 0 | R153: 0
P154: 0 | R154: =P154-Q154 -> 0
P155: 0 | R155: 0
P156: 0 | R156: 0
P157: 0 | R157: 0
P158: 0 | R158: 0
P159: 0 | R159: 0
P160: 0 | R160: 0
P161: 0 | R161: 0
P162: 0 | R162: 0
P163: 0 | R163: 0
P164: 0 | R164: 0
P165: 0 | R165: 0
P166: 0 | R166: 0
P167: 0 | R167: 0
P168: 0 | R168: 0
P169: 0 | R169: 0
P170: 0 | R170: 0
P171: 0 | R171: 0
P172: 0 | R172: 0
P173: 0 | R173: 0
P174: 0 | R174: 0
P175: 0 | R175: 0
P176: 0 | R176: 0
P177: 0 | R177: 0
P178: 0 | R178: 0
P179: 0 | R179: 0
P180: 0 | R180: 0
P181: 0 | R181: 0
P182: 0 | R182: 0
P183: 0 | R183: 0
P184: 0 | R184: 0
P185: 0 | R185: 0
P186: 0 | R186: 0
P187: 0 | R187: 0
P188: 0 | R188: 0
P189: 0 | R189: 0
P190: 0 | R190: 0
P191: 0 | R191: 0
P192: 0 | R192: 0
P193: 0 | R193: 0
P194: 0 | R194: 0
P195: 0 | R195: 0
P196: 0 | R196: 0
P197: 0 | R197: 0
P198: 0 | R198: 0
P199: 0 | R199: 0
P200: 0 | R200: 0
P201: 0 | R201: 0
... 799 more rows

Sheet Table A2
J1: ANNUAL ELEMENT PROGRESS REPORT
J2: Housing Element Implementation
J3: (CCR Title 25 §6202)
A4: Jurisdiction | B4: ='Start Here'!B4:D4 -> Elk Grove | L4: Note: + Optional field
A5: Reporting Year | B5: ='Start Here'!B5 -> 2018 | C5: (Jan. 1 - Dec. 31) | L5: Cells in grey contain auto-calculation formulas
J7: Table A2
J8: Annual Building Activity Report Summary - New Construction, Entitled, Permits and Completed Units
A9: Project Identifier | F9: Unit Types | H9: Affordability by Household Incomes - Completed Entitlement | Q9: Affordability by Household Incomes - Building Permits | Z9: Affordability by Household Incomes - Certificates of Occupancy | AJ9: Streamlining | AK9: Infill | AL9: Housing with Financial Assistance and/or Deed Restrictions | AN9: Housing without Financial Assistance or Deed Restrictions | AO9: Term of Affordability or Deed Restriction | AP9: Demolished/Destroyed Units | AS9: Notes
A10: 1 | F10: 2 | G10: 3 | H10: 4 | O10: 5 | P10: 6 | Q10: 7 | X10: 8 | Y10: 9 | Z10: 10 | AG10: 11 | AH10: 12 | AI10: 13 | AJ10: 14 | AK10: 15 | AL10: 16 | AM10: 17 | AN10: 18 | AO10: 19 | AQ10: 20 | AS10: 21
A11: Prior APN+ | B11: Current APN | C11: Street Address | D11: Project Name+ | E11: Local Jurisdiction Tracking ID+ | F11: Unit Category (SFA,SFD,2 to 4,5+,ADU,MH) | G11: Tenure R=Renter O=Owner | H11: Very Low- Income Deed Restricted | I11: Very Low- Income Non Deed Restricted | J11: Low- Income Deed Restricted | K11: Low- Income Non Deed Restricted | L11: Moderate- Income Deed Restricted | M11: Moderate- Income Non Deed Restricted | N11: Above Moderate- Income | O11: Entitlement Date Approved | P11: # of Units issued Entitlements | Q11: Very Low- Income Deed Restricted | R11: Very Low- Income Non Deed Restricted | S11: Low- Income Deed Restricted | T11: Low- Income Non Deed Restricted | U11: Moderate- Income Deed Restricted | V11: Moderate- Income Non Deed Restricted | W11: Above Moderate- Income | X11: Building Permits Date Issued | Y11: # of Units Issued Building Permits | Z11: Very Low- Income Deed Restricted | AA11: Very Low- Income Non Deed Restricted | AB11: Low- Income Deed Restricted | AC11: Low- Income Non Deed Restricted | AD11: Moderate- Income Deed Restricted | AE11: Moderate- Income Non Deed Restricted | AF11: Above Moderate- Income | AG11: Certificates of Occupancy or other forms of readiness (see instructions) Date Issued | AH11: # of Units issued Certificates of Occupancy or other forms of readiness | AI11: How many of the units were Extremely Low Income?+ | AJ11: Was Project APPROVED using GC 65913.4(b)? (SB 35 Streamlining) Y/N | AK11: Infill Units? Y/N+ | AL11: Assistance Programs for Each Development (see instructions) | AM11: Deed Restriction Type (see instructions) | AN11: For units affordable without financial assistance or deed restrictions, explain how the locality determined the units were affordable (see instructions) | AO11: Term of Affordability or Deed Restriction (years) (if affordable in perpetuity enter 1000)+ | AP11: Number of Demolished/Destroyed Units+ | AQ11: Demolished or Destroyed Units+ | AR11: Demolished/Destroyed Units Owner or Renter+ | AS11: Notes+
A12: Summary Row: Start Data Entry Below | H12: =SUM(H13:H1000) -> 63 | I12: =SUM(I13:I1000) -> 0 | J12: 32 | K12: 0 | L12: 0 | M12: 0 | N12: 591 | Q12: 0 | R12: 0 | S12: 0 | T12: 0 | U12: 0 | V12: 0 | W12: 793 | Y12: 793 | Z12: 0 | AA12: 0 | AB12: 0 | AC12: 0 | AD12: 0 | AE12: 0 | AF12: 347 | AH12: 347 | AI12: =SUM(AI13:AI1000) -> 10 | AJ12: =COUNTIF(AJ13:AJ1000,"Y") -> 0 | AP12: =SUM(AP13:AP1000) -> 0 | AQ12: =SUM(AQ13:AQ1000) -> 0 | AR12: =SUM(AR13:AR1000) -> 0
A13: 132-1780-046 | B13: 132-1780-047 | C13: 10140 Bruceville Rd | D13: Gardens at Quail Run | E13: EG-18-008 | F13: 5+ | G13: R | H13: 63 | J13: 32 | N13: 1 | O13: 2018-06-21 | P13: =SUM(H13:N13) -> 96 | Y13: =SUM(Q13:W13) -> 0 | AH13: =SUM(Z13:AF13) -> 0 | AI13: 10 | AJ13: N | AK13: Y | AL13: LIHTC, LHTF | AM13: Other | AO13: 55
P14: 0 | Y14: 0 | AH14: =SUM(Z14:AF14) -> 0
P15: 0 | Y15: 0 | AH15: =SUM(Z15:AF15) -> 0
A16: 132-0050-031, -065, and -066 | B16: 132-0050-031, -065, and -066 | C16: 7401 and 7445 Bilby Rd | D16: TREASURE HOMES II AMENDMENT | E16: EG-03-486A | F16: SFD | G16: O | N16: 192 | O16: 2018-03-28 | P16: 192 | Y16: 0 | AH16: 0 | AJ16: N
A17: 132-0050-020, -024, and -141 | B17: 132-0050-020, -024, and -141 | C17: 7911 Elefa Avenue | D17: Tuscan Ridge South II | E17: EG-15-038 | F17: SFD | G17: O | N17: 114 | O17: 2018-03-28 | P17: 114 | Y17: 0 | AH17: 0 | AJ17: N
A18: 132-0870-019 | B18: 132-0870-019 | C18: 9730 Backer Ranch Rd | D18: Bruceville Landing | E18: EG-17-002 | F18: 5+ | G18: R | N18: 117 | O18: 2018-06-07 | P18: 117 | Y18: 0 | AH18: 0 | AJ18: N
A19: 132-2150-014, 015, 016, 017, and 029 | B19: 132-2150-014, 015, 016, 017, and 029 | C19: n/a | D19: Park Senior Housing | E19: EG-17-038 | F19: 5+ | G19: R | N19: 151 | O19: 2018-09-12 | P19: 151 | Y19: 0 | AH19: 0 | AJ19: N
A20: 132-0050-050, -052 | B20: 132-0050-050, -052 | C20: 10149 Bruceville Rd | D20: Pham | E20: PLNG18-059 | F20: SFD | G20: O | N20: 16 | O20: 2018-11-15 | P20: =SUM(#REF!) ->  | Y20: 0 | AH20: 0
B21: 13218601120000 | C21: 5026 OCEAN LN | D21: MONTEREY VILLAGE | E21: 06-00005008 | F21: SFD | G21: O | P21: =SUM(H21:N21) -> 0 | Y21: 0 | AF21: 1 | AG21: 2018-02-26 | AH21: 1
B22: 13225800450000 | C22: 8853 UPBEAT WAY | D22: STERLING MEADOWS UNIT 1E | E22: 18-01722 | F22: SFD | G22: O | P22: 0 | W22: 1 | X22: 2018-05-01 | Y22: 1 | AF22: 1 | AG22: 2018-11-19 | AH22: 1
B23: 13225800460000 | C23: 8857 UPBEAT WAY | D23: STERLING MEADOWS UNIT 1E | E23: 18-01842 | F23: SFD | G23: O | P23: 0 | W23: 1 | X23: 2018-05-01 | Y23: 1 | AF23: 1 | AG23: 2018-10-25 | AH23: 1
B24: 13225800470000 | C24: 8852 UPBEAT WAY | D24: STERLING MEADOWS UNIT 1E | E24: 18-01843 | F24: SFD | G24: O | P24: 0 | W24: 1 | X24: 2018-05-01 | Y24: 1 | AF24: 1 | AG24: 2018-10-25 | AH24: 1
B25: 13225800480000 | C25: 8848 UPBEAT WAY | D25: STERLING MEADOWS UNIT 1E | E25: 18-01844 | F25: SFD | G25: O | P25: 0 | W25: 1 | X25: 2018-05-01 | Y25: 1 | AF25: 1 | AG25: 2018-12-18 | AH25: 1
B26: 13225800490000 | C26: 8844 UPBEAT WAY | D26: STERLING MEADOWS UNIT 1E | E26: 18-01896 | F26: SFD | G26: O | P26: 0 | W26: 1 | X26: 2018-05-01 | Y26: 1 | AF26: 1 | AG26: 2018-09-28 | AH26: 1
B27: 13225800500000 | C27: 8840 UPBEAT WAY | D27: STERLING MEADOWS UNIT 1E | E27: 18-01897 | F27: SFD | G27: O | P27: 0 | W27: 1 | X27: 2018-05-01 | Y27: 1 | AH27: 0
B28: 13225800510000 | C28: 8836 UPBEAT WAY | D28: STERLING MEADOWS UNIT 1E | E28: 18-01898 | F28: SFD | G28: O | P28: =SUM(H28:L28) -> 0 | W28: 1 | X28: 2018-05-01 | Y28: 1 | AF28: 1 | AG28: 2018-09-27 | AH28: 1
B29: 13225800520000 | C29: 8832 UPBEAT WAY | D29: STERLING MEADOWS UNIT 1E | E29: 18-01905 | F29: SFD | G29: O | P29: =SUM(H29:N29) -> 0 | W29: 1 | X29: 2018-05-01 | Y29: 1 | AF29: 1 | AG29: 2018-09-27 | AH29: 1
B30: 13410900910000 | C30: 9917 LORAE WAY | D30: FIELDSTONE SOUTH | E30: 18-01918 | F30: SFD | G30: O | P30: =SUM(H30:N30) -> 0 | W30: 1 | X30: 2018-05-29 | Y30: 1 | AF30: 1 | AG30: 2018-10-31 | AH30: 1
B31: 13410900900000 | C31: 9924 LORAE WAY | D31: FIELDSTONE SOUTH | E31: 18-01924 | F31: SFD | G31: O | P31: =SUM(H31:N31) -> 0 | W31: 1 | X31: 2018-05-29 | Y31: 1 | AF31: 1 | AG31: 2018-10-22 | AH31: 1
B32: 13410900890000 | C32: 9928 LORAE WAY | D32: FIELDSTONE SOUTH | E32: 18-01934 | F32: SFD | G32: O | P32: =SUM(H32:N32) -> 0 | W32: 1 | X32: 2018-05-08 | Y32: 1 | AF32: 1 | AG32: 2018-09-24 | AH32: =SUM(Z32:AF32) -> 1
B33: 11602060310000 | C33: 8677 KIWI CIR | D33: BROOKSIDE MANOR 01 | E33: 18-01975 | F33: SFD | G33: O | P33: 0 | W33: 1 | X33: 2018-06-28 | Y33: 1 | AF33: 1 | AG33: 2018-09-10 | AH33: 1
B34: 13225700670000 | C34: 8732 FLUTE CIR | D34: STERLING MEADOWS UNIT 1B | E34: 18-01978 | F34: SFD | G34: O | P34: 0 | W34: 1 | X34: 2018-05-17 | Y34: 1 | AF34: 1 | AG34: 2018-10-22 | AH34: 1
B35: 13410900880000 | C35: 9932 LORAE WAY | D35: FIELDSTONE SOUTH | E35: 18-01979 | F35: SFD | G35: O | P35: 0 | W35: 1 | X35: 2018-05-08 | Y35: 1 | AF35: 1 | AG35: 2018-09-17 | AH35: 1
B36: 13225700460000 | C36: 8733 FLUTE CIR | D36: STERLING MEADOWS UNIT 1B | E36: 18-01982 | F36: SFD | G36: O | P36: 0 | W36: 1 | X36: 2018-05-17 | Y36: 1 | AH36: 0
B37: 13410900160000 | C37: 9937 LORAE WAY | D37: FIELDSTONE SOUTH | E37: 18-01986 | F37: SFD | G37: O | P37: 0 | W37: 1 | X37: 2018-05-08 | Y37: 1 | AF37: 1 | AG37: 2018-09-24 | AH37: 1
B38: 13225700470000 | C38: 8737 FLUTE CIR | D38: STERLING MEADOWS UNIT 1B | E38: 18-01987 | F38: SFD | G38: O | P38: 0 | W38: 1 | X38: 2018-05-17 | Y38: 1 | AF38: 1 | AG38: 2018-09-28 | AH38: 1
B39: 13410900150000 | C39: 9933 LORAE WAY | D39: FIELDSTONE SOUTH | E39: 18-01988 | F39: SFD | G39: O | P39: 0 | W39: 1 | X39: 2018-05-08 | Y39: 1 | AF39: 1 | AG39: 2018-09-27 | AH39: 1
B40: 13410900140000 | C40: 9929 LORAE WAY | D40: FIELDSTONE SOUTH | E40: 18-01989 | F40: SFD | G40: O | P40: 0 | W40: 1 | X40: 2018-05-08 | Y40: 1 | AF40: 1 | AG40: 2018-10-05 | AH40: 1
B41: 13410900130000 | C41: 9925 LORAE WAY | D41: FIELDSTONE SOUTH | E41: 18-01990 | F41: SFD | G41: O | P41: 0 | W41: 1 | X41: 2018-05-29 | Y41: 1 | AF41: 1 | AG41: 2018-10-23 | AH41: 1
B42: 13410900120000 | C42: 9921 LORAE WAY | D42: FIELDSTONE SOUTH | E42: 18-01991 | F42: SFD | G42: O | P42: 0 | W42: 1 | X42: 2018-05-29 | Y42: 1 | AF42: 1 | AG42: 2018-10-26 | AH42: 1
B43: 13225900270000 | C43: 10261 CHARLES MORRIS WAY | D43: STERLING MEADOWS UNIT 1D | E43: 18-02011 | F43: SFD | G43: O | P43: 0 | W43: 1 | X43: 2018-05-04 | Y43: 1 | AF43: 1 | AG43: 2018-10-24 | AH43: 1
B44: 13225900260000 | C44: 10257 CHARLES MORRIS WAY | D44: STERLING MEADOWS UNIT 1D | E44: 18-02012 | F44: SFD | G44: O | P44: 0 | W44: 1 | X44: 2018-05-04 | Y44: 1 | AH44: 0
B45: 13225900380000 | C45: 8745 PRESTO CT | D45: STERLING MEADOWS UNIT 1D | E45: 18-02013 | F45: SFD | G45: O | P45: 0 | W45: 1 | X45: 2018-05-04 | Y45: 1 | AH45: 0
B46: 13225500260000 | C46: 10066 DONA NEELY WAY | D46: POPPY KEYS EAST | E46: 18-02014 | F46: SFD | G46: O | P46: 0 | W46: 1 | X46: 2018-05-08 | Y46: 1 | AF46: 1 | AG46: 2018-11-09 | AH46: 1
B47: 13225500240000 | C47: 10074 DONA NEELY WAY | D47: POPPY KEYS EAST | E47: 18-02016 | F47: SFD | G47: O | P47: 0 | W47: 1 | X47: 2018-05-08 | Y47: 1 | AF47: 1 | AG47: 2018-11-07 | AH47: 1
B48: 13225500210000 | C48: 10077 DONA NEELY WAY | D48: POPPY KEYS EAST | E48: 18-02017 | F48: SFD | G48: O | P48: 0 | W48: 1 | X48: 2018-05-14 | Y48: 1 | AF48: 1 | AG48: 2018-11-20 | AH48: 1
B49: 13225500250000 | C49: 10070 DONA NEELY WAY | D49: POPPY KEYS EAST | E49: 18-02018 | F49: SFD | G49: O | P49: 0 | W49: 1 | X49: 2018-05-08 | Y49: 1 | AF49: 1 | AG49: 2018-11-09 | AH49: 1
B50: 13225500220000 | C50: 10085 DONA NEELY WAY | D50: POPPY KEYS EAST | E50: 18-02027 | F50: SFD | G50: O | P50: 0 | W50: 1 | X50: 2018-05-14 | Y50: 1 | AF50: 1 | AG50: 2018-11-26 | AH50: 1
B51: 13225500200000 | C51: 10073 DONA NEELY WAY | D51: POPPY KEYS EAST | E51: 18-02028 | F51: SFD | G51: O | P51: 0 | W51: 1 | X51: 2018-05-14 | Y51: 1 | AF51: 1 | AG51: 2018-11-28 | AH51: 1
B52: 13225500190000 | C52: 10069 DONA NEELY WAY | D52: POPPY KEYS EAST | E52: 18-02030 | F52: SFD | G52: O | P52: 0 | W52: 1 | X52: 2018-05-14 | Y52: 1 | AF52: 1 | AG52: 2018-11-20 | AH52: 1
B53: 13225500230000 | C53: 10082 DONA NEELY WAY | D53: POPPY KEYS EAST | E53: 18-02038 | F53: SFD | G53: O | P53: 0 | W53: 1 | X53: 2018-05-08 | Y53: 1 | AF53: 1 | AG53: 2018-11-05 | AH53: 1
B54: 11615800840000 | C54: 8426 STELLATA LN | D54: CAPITAL RESERVE - PHASE2 | E54: 18-02045 | F54: SFD | G54: O | P54: 0 | W54: 1 | X54: 2018-05-31 | Y54: 1 | AF54: 1 | AG54: 2018-11-26 | AH54: 1
B55: 13225600200000 | C55: 10392 CHARLES MORRIS WAY | D55: STERLING MEADOWS UNIT 1A | E55: 18-02081 | F55: SFD | G55: O | P55: 0 | W55: 1 | X55: 2018-05-17 | Y55: 1 | AF55: 1 | AG55: 2018-11-01 | AH55: 1
B56: 13225600190000 | C56: 10396 CHARLES MORRIS WAY | D56: STERLING MEADOWS UNIT 1A | E56: 18-02083 | F56: SFD | G56: O | P56: 0 | W56: 1 | X56: 2018-05-17 | Y56: 1 | AF56: 1 | AG56: 2018-10-29 | AH56: 1
B57: 13225600100000 | C57: 10401 CHARLES MORRIS WAY | D57: STERLING MEADOWS UNIT 1A | E57: 18-02084 | F57: SFD | G57: O | P57: 0 | W57: 1 | X57: 2018-05-17 | Y57: 1 | AF57: 1 | AG57: 2018-10-15 | AH57: 1
B58: 13225600090000 | C58: 10397 CHARLES MORRIS WAY | D58: STERLING MEADOWS UNIT 1A | E58: 18-02085 | F58: SFD | G58: O | P58: 0 | W58: 1 | X58: 2018-05-17 | Y58: 1 | AF58: 1 | AG58: 2018-10-22 | AH58: 1
B59: 13225900430000 | C59: 8740 PRESTO CT | D59: STERLING MEADOWS UNIT 1D | E59: 18-02086 | F59: SFD | G59: O | P59: 0 | W59: 1 | X59: 2018-05-04 | Y59: 1 | AF59: 1 | AG59: 2018-11-13 | AH59: 1
B60: 13225900290000 | C60: 10256 CHARLES MORRIS WAY | D60: STERLING MEADOWS UNIT 1D | E60: 18-02087 | F60: SFD | G60: O | P60: 0 | W60: 1 | X60: 2018-05-04 | Y60: 1 | AF60: 1 | AG60: 2018-11-26 | AH60: 1
B61: 13218800230000 | C61: 9998 DEL SURF LN # 148 | D61: MARINA COURT | E61: 18-02100 | F61: SFD | G61: O | P61: 0 | W61: 1 | X61: 2018-05-15 | Y61: 1 | AH61: 0
B62: 13218800230000 | C62: 10000 DEL SURF LN # 149 | D62: MARINA COURT | E62: 18-02101 | F62: SFD | G62: O | P62: 0 | W62: 1 | X62: 2018-05-15 | Y62: 1 | AH62: 0
B63: 13218800230000 | C63: 10002 DEL SURF LN # 150 | D63: MARINA COURT | E63: 18-02102 | F63: SFD | G63: O | P63: 0 | W63: 1 | X63: 2018-05-15 | Y63: 1 | AH63: 0
B64: 13218800230000 | C64: 10004 DEL SURF LN # 151 | D64: MARINA COURT | E64: 18-02103 | F64: SFD | G64: O | P64: 0 | W64: 1 | X64: 2018-05-15 | Y64: 1 | AF64: 1 | AG64: 2018-12-13 | AH64: 1
B65: 13218800230000 | C65: 10008 DEL SURF LN # 152 | D65: MARINA COURT | E65: 18-02104 | F65: SFD | G65: O | P65: 0 | W65: 1 | X65: 2018-05-15 | Y65: 1 | AF65: 1 | AG65: 2018-12-13 | AH65: 1
B66: 13218800230000 | C66: 10010 DEL SURF LN # 153 | D66: MARINA COURT | E66: 18-02105 | F66: SFD | G66: O | P66: 0 | W66: 1 | X66: 2018-05-15 | Y66: 1 | AF66: 1 | AG66: 2018-12-13 | AH66: 1
B67: 13218800230000 | C67: 10012 DEL SURF LN # 154 | D67: MARINA COURT | E67: 18-02106 | F67: SFD | G67: O | P67: 0 | W67: 1 | X67: 2018-05-15 | Y67: 1 | AH67: 0
B68: 13218800230000 | C68: 10014 DEL SURF LN # 155 | D68: MARINA COURT | E68: 18-02107 | F68: SFD | G68: O | P68: 0 | W68: 1 | X68: 2018-05-15 | Y68: 1 | AF68: 1 | AG68: 2018-12-12 | AH68: 1
B69: 13225900340000 | C69: 10221 SOPRANO WAY | D69: STERLING MEADOWS UNIT 1D | E69: 18-02114 | F69: SFD | G69: O | P69: 0 | W69: 1 | X69: 2018-05-18 | Y69: 1 | AF69: 1 | AG69: 2018-12-06 | AH69: 1
B70: 13410900080000 | C70: 9901 LORAE WAY | D70: FIELDSTONE SOUTH | E70: 18-02154 | F70: SFD | G70: O | P70: 0 | W70: 1 | X70: 2018-06-18 | Y70: 1 | AF70: 1 | AG70: 2018-11-09 | AH70: 1
B71: 13410900090000 | C71: 9905 LORAE WAY | D71: FIELDSTONE SOUTH | E71: 18-02155 | F71: SFD | G71: O | P71: 0 | W71: 1 | X71: 2018-06-18 | Y71: 1 | AF71: 1 | AG71: 2018-11-09 | AH71: 1
B72: 13410900100000 | C72: 9909 LORAE WAY | D72: FIELDSTONE SOUTH | E72: 18-02156 | F72: SFD | G72: O | P72: 0 | W72: 1 | X72: 2018-06-18 | Y72: 1 | AF72: 1 | AG72: 2018-11-05 | AH72: 1
B73: 13410900110000 | C73: 9913 LORAE WAY | D73: FIELDSTONE SOUTH | E73: 18-02157 | F73: SFD | G73: O | P73: 0 | W73: 1 | X73: 2018-06-18 | Y73: 1 | AF73: 1 | AG73: 2018-11-02 | AH73: 1
B74: 13225600070000 | C74: 10389 CHARLES MORRIS WAY | D74: STERLING MEADOWS UNIT 1A | E74: 18-02158 | F74: SFD | G74: O | P74: 0 | W74: 1 | X74: 2018-06-11 | Y74: 1 | AF74: 1 | AG74: 2018-11-09 | AH74: 1
B75: 13225600080000 | C75: 10393 CHARLES MORRIS WAY | D75: STERLING MEADOWS UNIT 1A | E75: 18-02159 | F75: SFD | G75: O | P75: 0 | W75: 1 | X75: 2018-07-03 | Y75: 1 | AF75: 1 | AG75: 2018-11-07 | AH75: 1
B76: 13225600210000 | C76: 10388 CHARLES MORRIS WAY | D76: STERLING MEADOWS UNIT 1A | E76: 18-02160 | F76: SFD | G76: O | P76: 0 | W76: 1 | X76: 2018-06-11 | Y76: 1 | AF76: 1 | AG76: 2018-11-15 | AH76: 1
B77: 13225600220000 | C77: 10384 CHARLES MORRIS WAY | D77: STERLING MEADOWS UNIT 1A | E77: 18-02161 | F77: SFD | G77: O | P77: =SUM(H77:N77) -> 0 | W77: 1 | X77: 2018-06-11 | Y77: =SUM(Q77:W77) -> 1 | AF77: 1 | AG77: 2018-11-30 | AH77: 1
B78: 13225700050000 | C78: 10262 SOPRANO WAY | D78: STERLING MEADOWS UNIT 1B | E78: 18-02162 | F78: SFD | G78: O | P78: 0 | W78: 1 | X78: 2018-06-11 | Y78: 1 | AF78: 1 | AG78: 2018-10-24 | AH78: 1
B79: 13225700060000 | C79: 10258 SOPRANO WAY | D79: STERLING MEADOWS UNIT 1B | E79: 18-02163 | F79: SFD | G79: O | P79: 0 | W79: 1 | X79: 2018-06-11 | Y79: 1 | AF79: 1 | AG79: 2018-11-05 | AH79: 1
B80: 13225700070000 | C80: 10254 SOPRANO WAY | D80: STERLING MEADOWS UNIT 1B | E80: 18-02164 | F80: SFD | G80: O | P80: 0 | W80: 1 | X80: 2018-06-11 | Y80: 1 | AF80: 1 | AG80: 2018-11-06 | AH80: 1
B81: 13225700080000 | C81: 10250 SOPRANO WAY | D81: STERLING MEADOWS UNIT 1B | E81: 18-02165 | F81: SFD | G81: O | P81: 0 | W81: 1 | X81: 2018-06-11 | Y81: 1 | AF81: 1 | AG81: 2018-11-09 | AH81: 1
B82: 13218800050000 | C82: 4542 OCEAN LN # 1 | D82: MARINA COURT | E82: 18-02212 | F82: SFD | G82: O | P82: 0 | W82: 1 | X82: 2018-05-22 | Y82: 1 | AF82: 1 | AG82: 2018-12-14 | AH82: 1
B83: 13218800050000 | C83: 4540 OCEAN LN # 2 | D83: MARINA COURT | E83: 18-02215 | F83: SFD | G83: O | P83: 0 | W83: 1 | X83: 2018-05-22 | Y83: 1 | AF83: 1 | AG83: 2018-12-12 | AH83: 1
B84: 13218800050000 | C84: 4538 OCEAN LN # 3 | D84: MARINA COURT | E84: 18-02216 | F84: SFD | G84: O | P84: 0 | W84: 1 | X84: 2018-05-22 | Y84: 1 | AF84: 1 | AG84: 2018-12-17 | AH84: 1
B85: 13218800050000 | C85: 4536 OCEAN LN # 4 | D85: MARINA COURT | E85: 18-02217 | F85: SFD | G85: O | P85: 0 | W85: 1 | X85: 2018-05-22 | Y85: 1 | AF85: 1 | AG85: 2018-12-19 | AH85: 1
B86: 13218800050000 | C86: 4530 OCEAN LN # 5 | D86: MARINA COURT | E86: 18-02218 | F86: SFD | G86: O | P86: 0 | W86: 1 | X86: 2018-05-22 | Y86: 1 | AF86: 1 | AG86: 2018-12-21 | AH86: 1
B87: 13218800050000 | C87: 4528 OCEAN LN # 6 | D87: MARINA COURT | E87: 18-02219 | F87: SFD | G87: O | P87: 0 | W87: 1 | X87: 2018-05-22 | Y87: 1 | AF87: 1 | AG87: 2018-12-19 | AH87: 1
B88: 13218800050000 | C88: 4526 OCEAN LN # 7 | D88: MARINA COURT | E88: 18-02220 | F88: SFD | G88: O | P88: 0 | W88: 1 | X88: 2018-05-22 | Y88: 1 | AF88: 1 | AG88: 2018-12-18 | AH88: 1
B89: 13218800060000 | C89: 4524 OCEAN LN # 8 | D89: MARINA COURT | E89: 18-02221 | F89: SFD | G89: O | P89: 0 | W89: 1 | X89: 2018-06-12 | Y89: 1 | AF89: 1 | AG89: 2018-12-21 | AH89: 1
B90: 13218800060000 | C90: 4522 OCEAN LN # 9 | D90: MARINA COURT | E90: 18-02222 | F90: SFD | G90: O | P90: 0 | W90: 1 | X90: 2018-06-12 | Y90: 1 | AF90: 1 | AG90: 2018-12-21 | AH90: 1
B91: 13218800060000 | C91: 4520 OCEAN LN # 10 | D91: MARINA COURT | E91: 18-02223 | F91: SFD | G91: O | P91: 0 | W91: 1 | X91: 2018-06-12 | Y91: 1 | AF91: 1 | AG91: 2018-12-24 | AH91: 1
B92: 13218800060000 | C92: 4518 OCEAN LN # 11 | D92: MARINA COURT | E92: 18-02224 | F92: SFD | G92: O | P92: 0 | W92: 1 | X92: 2018-06-12 | Y92: 1 | AH92: 0
B93: 13218800060000 | C93: 4514 OCEAN LN # 12 | D93: MARINA COURT | E93: 18-02225 | F93: SFD | G93: O | P93: 0 | W93: 1 | X93: 2018-06-12 | Y93: 1 | AH93: 0
B94: 13218800060000 | C94: 4512 OCEAN LN # 13 | D94: MARINA COURT | E94: 18-02227 | F94: SFD | G94: O | P94: 0 | W94: 1 | X94: 2018-06-12 | Y94: 1 | AH94: 0
B95: 13218800060000 | C95: 4510 OCEAN LN # 14 | D95: MARINA COURT | E95: 18-02228 | F95: SFD | G95: O | P95: 0 | W95: 1 | X95: 2018-06-12 | Y95: 1 | AH95: 0
B96: 13218800060000 | C96: 4508 OCEAN LN # 15 | D96: MARINA COURT | E96: 18-02229 | F96: SFD | G96: O | P96: 0 | W96: 1 | X96: 2018-06-12 | Y96: 1 | AH96: 0
B97: 11615800780000 | C97: 8421 STELLATA LN | D97: CAPITAL RESERVE - PHASE2 | E97: 18-02396 | F97: SFD | G97: O | P97: 0 | W97: 1 | X97: 2018-05-23 | Y97: 1 | AF97: 1 | AG97: 2018-11-19 | AH97: =SUM(Z97:AF97) -> 1
B98: 11615800390000 | C98: 9721 OAK RESERVE LN | D98: CAPITAL RESERVE - PHASE2 | E98: 18-02397 | F98: SFD | G98: O | P98: 0 | W98: 1 | X98: 2018-06-25 | Y98: 1 | AF98: 1 | AG98: 2018-11-09 | AH98: 1
B99: 11615800400000 | C99: 9725 OAK RESERVE LN | D99: CAPITAL RESERVE - PHASE2 | E99: 18-02398 | F99: SFD | G99: O | P99: 0 | W99: 1 | X99: 2018-05-23 | Y99: 1 | AF99: 1 | AG99: 2018-11-14 | AH99: 1
B100: 11615800770000 | C100: 8417 STELLATA LN | D100: CAPITAL RESERVE - PHASE2 | E100: 18-02399 | F100: SFD | G100: O | P100: 0 | W100: 1 | X100: 2018-05-23 | Y100: 1 | AF100: 1 | AG100: 2018-11-13 | AH100: 1
B101: 13226100150000 | C101: 8622 SPECKLE BELLY WAY | D101: MADEIRA EAST VILLAGE 8 | E101: 18-02410 | F101: SFD | G101: O | P101: 0 | W101: 1 | X101: 2018-05-30 | Y101: 1 | AF101: 1 | AG101: 2018-11-29 | AH101: 1
B102: 13226100160000 | C102: 10066 MUD HEN WAY | D102: MADEIRA EAST VILLAGE 8 | E102: 18-02411 | F102: SFD | G102: O | P102: 0 | W102: 1 | X102: 2018-05-30 | Y102: 1 | AF102: 1 | AG102: 2018-11-30 | AH102: 1
B103: 13226100170000 | C103: 10070 MUD HEN WAY | D103: MADEIRA EAST VILLAGE 8 | E103: 18-02412 | F103: SFD | G103: O | P103: 0 | W103: 1 | X103: 2018-05-30 | Y103: 1 | AF103: 1 | AG103: 2018-12-04 | AH103: 1
B104: 13226100180000 | C104: 10074 MUD HEN WAY | D104: MADEIRA EAST VILLAGE 8 | E104: 18-02413 | F104: SFD | G104: O | P104: 0 | W104: 1 | X104: 2018-05-30 | Y104: 1 | AF104: 1 | AG104: 2018-12-03 | AH104: 1
B105: 11600300530000 | C105: 8938 E STOCKTON BLVD | E105: 18-02446 | F105: SFD | G105: O | P105: 0 | W105: 1 | X105: 2018-06-27 | Y105: 1 | AH105: 0
B106: 11600300530000 | C106: 8934 E STOCKTON BLVD | D106: SHELDON PACIFIC 02 | E106: 18-02447 | F106: SFD | G106: O | P106: 0 | W106: 1 | X106: 2018-06-27 | Y106: 1 | AH106: 0
B107: 11600300530000 | C107: 8930 E STOCKTON BLVD | D107: SHELDON PACIFIC 02 | E107: 18-02448 | F107: SFD | G107: O | P107: 0 | W107: 1 | X107: 2018-06-27 | Y107: 1 | AH107: 0
B108: 11600300530000 | C108: 8926 E STOCKTON BLVD | D108: SHELDON PACIFIC 02 | E108: 18-02449 | F108: SFD | G108: O | P108: 0 | W108: 1 | X108: 2018-06-27 | Y108: 1 | AH108: 0
B109: 11600300530000 | C109: 8922 E STOCKTON BLVD | D109: SHELDON PACIFIC 02 | E109: 18-02450 | F109: SFD | G109: O | P109: 0 | W109: 1 | X109: 2018-06-27 | Y109: 1 | AH109: 0
B110: 11600300530000 | C110: 8918 E STOCKTON BLVD | D110: SHELDON PACIFIC 02 | E110: 18-02451 | F110: SFD | G110: O | P110: 0 | W110: 1 | X110: 2018-06-27 | Y110: 1 | AH110: 0
B111: 11600300530000 | C111: 8914 E STOCKTON BLVD | D111: SHELDON PACIFIC 02 | E111: 18-02452 | F111: SFD | G111: O | P111: 0 | W111: 1 | X111: 2018-06-27 | Y111: 1 | AH111: 0
B112: 11600300530000 | C112: 8910 E STOCKTON BLVD | D112: SHELDON PACIFIC 02 | E112: 18-02453 | F112: SFD | G112: O | P112: 0 | W112: 1 | X112: 2018-06-27 | Y112: 1 | AH112: 0
B113: 11600300530000 | C113: 8906 E STOCKTON BLVD | D113: SHELDON PACIFIC 02 | E113: 18-02454 | F113: SFD | G113: O | P113: 0 | W113: 1 | X113: 2018-06-27 | Y113: 1 | AH113: 0
B114: 11600300530000 | C114: 8902 E STOCKTON BLVD | D114: SHELDON PACIFIC 02 | E114: 18-02455 | F114: SFD | G114: O | P114: 0 | W114: 1 | X114: 2018-06-27 | Y114: 1 | AH114: 0
B115: 11600300530000 | C115: 8896 E STOCKTON BLVD | D115: SHELDON PACIFIC 02 | E115: 18-02456 | F115: SFD | G115: O | P115: 0 | W115: 1 | X115: 2018-06-27 | Y115: 1 | AH115: 0
B116: 11600300530000 | C116: 8892 E STOCKTON BLVD | D116: SHELDON PACIFIC 02 | E116: 18-02457 | F116: SFD | G116: O | P116: 0 | W116: 1 | X116: 2018-06-27 | Y116: 1 | AH116: 0
B117: 11600300530000 | C117: 8888 E STOCKTON BLVD | D117: SHELDON PACIFIC 02 | E117: 18-02458 | F117: SFD | G117: O | P117: 0 | W117: 1 | X117: 2018-06-27 | Y117: 1 | AH117: 0
B118: 11600300530000 | C118: 8884 E STOCKTON BLVD | D118: SHELDON PACIFIC 02 | E118: 18-02459 | F118: SFD | G118: O | P118: 0 | W118: 1 | X118: 2018-06-27 | Y118: 1 | AH118: 0
B119: 11600300530000 | C119: 8880 E STOCKTON BLVD | D119: SHELDON PACIFIC 02 | E119: 18-02460 | F119: SFD | G119: O | P119: 0 | W119: 1 | X119: 2018-06-27 | Y119: 1 | AH119: 0
B120: 11600300530000 | C120: 8876 E STOCKTON BLVD | D120: SHELDON PACIFIC 02 | E120: 18-02461 | F120: SFD | G120: O | P120: 0 | W120: 1 | X120: 2018-06-27 | Y120: 1 | AH120: 0
B121: 11600300530000 | C121: 8872 E STOCKTON BLVD | D121: SHELDON PACIFIC 02 | E121: 18-02462 | F121: SFD | G121: O | P121: 0 | W121: 1 | X121: 2018-06-27 | Y121: 1 | AH121: 0
B122: 11600300530000 | C122: 8885 E STOCKTON BLVD | D122: SHELDON PACIFIC 02 | E122: 18-02463 | F122: SFD | G122: O | P122: 0 | W122: 1 | X122: 2018-06-27 | Y122: 1 | AH122: 0
B123: 11600300530000 | C123: 8889 E STOCKTON BLVD | D123: SHELDON PACIFIC 02 | E123: 18-02464 | F123: SFD | G123: O | P123: 0 | W123: 1 | X123: 2018-06-27 | Y123: 1 | AH123: 0
B124: 11600300530000 | C124: 8893 E STOCKTON BLVD | D124: SHELDON PACIFIC 02 | E124: 18-02465 | F124: SFD | G124: O | P124: 0 | W124: 1 | X124: 2018-06-27 | Y124: 1 | AH124: 0
B125: 11600300530000 | C125: 8897 E STOCKTON BLVD | D125: SHELDON PACIFIC 02 | E125: 18-02466 | F125: SFD | G125: O | P125: 0 | W125: 1 | X125: 2018-06-27 | Y125: 1 | AH125: 0
B126: 11600300530000 | C126: 8901 E STOCKTON BLVD | D126: SHELDON PACIFIC 02 | E126: 18-02467 | F126: SFD | G126: O | P126: 0 | W126: 1 | X126: 2018-06-27 | Y126: 1 | AH126: 0
B127: 11600300530000 | C127: 8905 E STOCKTON BLVD | D127: SHELDON PACIFIC 02 | E127: 18-02468 | F127: SFD | G127: O | P127: 0 | W127: 1 | X127: 2018-06-27 | Y127: 1 | AH127: 0
B128: 11600300530000 | C128: 8909 E STOCKTON BLVD | D128: SHELDON PACIFIC 02 | E128: 18-02469 | F128: SFD | G128: O | P128: 0 | W128: 1 | X128: 2018-06-27 | Y128: 1 | AH128: 0
B129: 13225500270000 | C129: 10062 DONA NEELY WAY | D129: POPPY KEYS EAST | E129: 18-02473 | F129: SFD | G129: O | P129: 0 | W129: 1 | X129: 2018-05-30 | Y129: 1 | AH129: 0
B130: 13225500280000 | C130: 10058 DONA NEELY WAY | D130: POPPY KEYS EAST | E130: 18-02480 | F130: SFD | G130: O | P130: 0 | W130: 1 | X130: 2018-05-30 | Y130: 1 | AF130: 1 | AG130: 2018-12-21 | AH130: 1
B131: 13225500290000 | C131: 10054 DONA NEELY WAY | D131: POPPY KEYS EAST | E131: 18-02481 | F131: SFD | G131: O | P131: 0 | W131: 1 | X131: 2018-05-30 | Y131: 1 | AF131: 1 | AG131: 2018-12-21 | AH131: 1
B132: 13225500300000 | C132: 10050 DONA NEELY WAY | D132: POPPY KEYS EAST | E132: 18-02482 | F132: SFD | G132: O | P132: 0 | W132: 1 | X132: 2018-05-30 | Y132: 1 | AH132: 0
B133: 13225400560000 | C133: 10004 WAGONER WAY | D133: SUN GROVE | E133: 18-02486 | F133: SFD | G133: O | P133: 0 | W133: 1 | X133: 2018-05-30 | Y133: 1 | AF133: 1 | AG133: 2018-12-12 | AH133: 1
B134: 13225400570000 | C134: 10000 WAGONER WAY | D134: SUN GROVE | E134: 18-02487 | F134: SFD | G134: O | P134: 0 | W134: 1 | X134: 2018-05-30 | Y134: 1 | AF134: 1 | AG134: 2018-12-12 | AH134: 1
B135: 13225400810000 | C135: 10025 WAGONER WAY | D135: SUN GROVE | E135: 18-02488 | F135: SFD | G135: O | P135: 0 | W135: 1 | X135: 2018-05-30 | Y135: 1 | AF135: 1 | AG135: 2018-12-11 | AH135: 1
B136: 13225400820000 | C136: 10029 WAGONER WAY | D136: SUN GROVE | E136: 18-02489 | F136: SFD | G136: O | P136: 0 | W136: 1 | X136: 2018-05-30 | Y136: 1 | AF136: 1 | AG136: 2018-12-11 | AH136: 1
B137: 11615800690000 | C137: 8436 AMBER VALLEY LN | D137: CAPITAL RESERVE - PHASE2 | E137: 18-02644 | F137: SFD | G137: O | P137: 0 | W137: 1 | X137: 2018-05-31 | Y137: 1 | AF137: 1 | AG137: 2018-10-30 | AH137: 1
B138: 12111400110000 | C138: 8479 CRIMSON CLOVER CIR | D138: NORTHWEST UNIT NO 1 | E138: 18-02667 | F138: SFD | G138: O | P138: 0 | W138: 1 | X138: 2018-06-18 | Y138: 1 | AF138: 1 | AG138: 2018-10-29 | AH138: 1
B139: 12111400120000 | C139: 8491 CRIMSON CLOVER CIR | D139: NORTHWEST UNIT NO 1 | E139: 18-02668 | F139: SFD | G139: O | P139: 0 | W139: 1 | X139: 2018-06-18 | Y139: 1 | AF139: 1 | AG139: 2018-11-12 | AH139: 1
B140: 12111400140000 | C140: 8507 CRIMSON CLOVER CIR | D140: NORTHWEST UNIT NO 1 | E140: 18-02669 | F140: SFD | G140: O | P140: 0 | W140: 1 | X140: 2018-06-18 | Y140: 1 | AF140: 1 | AG140: 2018-11-14 | AH140: 1
B141: 12111400150000 | C141: 8511 CRIMSON CLOVER CIR | D141: NORTHWEST UNIT NO 1 | E141: 18-02670 | F141: SFD | G141: O | P141: =SUM(H141:N141) -> 0 | W141: 1 | X141: 2018-06-18 | Y141: =SUM(Q141:W141) -> 1 | AF141: 1 | AG141: 2018-11-14 | AH141: 1
B142: 12111400130000 | C142: 8495 CRIMSON CLOVER CIR | D142: NORTHWEST UNIT NO 1 | E142: 18-02671 | F142: SFD | G142: O | P142: 0 | W142: 1 | X142: 2018-06-18 | Y142: 1 | AF142: 1 | AG142: 2018-11-12 | AH142: 1
B143: 13225900250000 | C143: 10253 CHARLES MORRIS WAY | D143: STERLING MEADOWS UNIT 1D | E143: 18-02676 | F143: SFD | G143: O | P143: 0 | W143: 1 | X143: 2018-07-03 | Y143: 1 | AF143: 1 | AG143: 2018-12-12 | AH143: 1
B144: 13225900240000 | C144: 10249 CHARLES MORRIS WAY | D144: STERLING MEADOWS UNIT 1D | E144: 18-02677 | F144: SFD | G144: O | P144: 0 | W144: 1 | X144: 2018-06-11 | Y144: 1 | AH144: 0
B145: 13225800370000 | C145: 10357 ENSEMBLE WAY | D145: STERLING MEADOWS UNIT 1E | E145: 18-02679 | F145: SFD | G145: O | P145: 0 | W145: 1 | X145: 2018-06-18 | Y145: 1 | AH145: 0
B146: 13225800390000 | C146: 10353 DYNAMIC WAY | D146: STERLING MEADOWS UNIT 1E | E146: 18-02682 | F146: SFD | G146: O | P146: 0 | W146: 1 | X146: 2018-06-18 | Y146: 1 | AH146: 0
B147: 13225800400000 | C147: 10357 DYNAMIC WAY | D147: STERLING MEADOWS UNIT 1E | E147: 18-02683 | F147: SFD | G147: O | P147: 0 | W147: 1 | X147: 2018-06-18 | Y147: 1 | AH147: 0
B148: 13225800410000 | C148: 10361 DYNAMIC WAY | D148: STERLING MEADOWS UNIT 1E | E148: 18-02684 | F148: SFD | G148: O | P148: 0 | W148: 1 | X148: 2018-06-18 | Y148: 1 | AF148: 1 | AG148: 2018-12-28 | AH148: 1
B149: 13225800420000 | C149: 8841 UPBEAT WAY | D149: STERLING MEADOWS UNIT 1E | E149: 18-02685 | F149: SFD | G149: O | P149: 0 | W149: 1 | X149: 2018-06-18 | Y149: 1 | AH149: 0
B150: 13225800430000 | C150: 8845 UPBEAT WAY | D150: STERLING MEADOWS UNIT 1E | E150: 18-02686 | F150: SFD | G150: O | P150: 0 | W150: 1 | X150: 2018-06-18 | Y150: 1 | AF150: 1 | AG150: 2018-12-04 | AH150: 1
B151: 13225800440000 | C151: 8849 UPBEAT WAY | D151: STERLING MEADOWS UNIT 1E | E151: 18-02687 | F151: SFD | G151: O | P151: 0 | W151: 1 | X151: 2018-06-18 | Y151: 1 | AH151: 0
B152: 13225800380000 | C152: 10349 DYNAMIC WAY | D152: STERLING MEADOWS UNIT 1E | E152: 18-02694 | F152: SFD | G152: O | P152: 0 | W152: 1 | X152: 2018-06-18 | Y152: 1 | AF152: 1 | AG152: 2018-12-28 | AH152: 1
B153: 13226100190000 | C153: 10078 MUD HEN WAY | D153: MADEIRA EAST VILLAGE 8 | E153: 18-02696 | F153: SFD | G153: O | P153: 0 | W153: 1 | X153: 2018-06-21 | Y153: 1 | AH153: 0
B154: 13226100200000 | C154: 10082 MUD HEN WAY | D154: MADEIRA EAST VILLAGE 8 | E154: 18-02697 | F154: SFD | G154: O | P154: 0 | W154: 1 | X154: 2018-06-21 | Y154: 1 | AH154: 0
B155: 13226100210000 | C155: 10081 MUD HEN WAY | D155: MADEIRA EAST VILLAGE 8 | E155: 18-02698 | F155: SFD | G155: O | P155: 0 | W155: 1 | X155: 2018-06-21 | Y155: 1 | AH155: 0
B156: 13410900040000 | C156: 9973 WYLAND DR | D156: FIELDSTONE SOUTH | E156: 18-02700 | F156: SFD | G156: O | P156: 0 | W156: 1 | X156: 2018-06-28 | Y156: 1 | AF156: 1 | AG156: 2018-12-04 | AH156: 1
B157: 13410900050000 | C157: 9977 WYLAND DR | D157: FIELDSTONE SOUTH | E157: 18-02701 | F157: SFD | G157: O | P157: 0 | W157: 1 | X157: 2018-06-28 | Y157: 1 | AF157: 1 | AG157: 2018-11-27 | AH157: 1
B158: 13410900060000 | C158: 9981 WYLAND DR | D158: FIELDSTONE SOUTH | E158: 18-02702 | F158: SFD | G158: O | P158: 0 | W158: 1 | X158: 2018-06-28 | Y158: 1 | AF158: 1 | AG158: 2018-11-19 | AH158: 1
B159: 13410900070000 | C159: 9985 WYLAND DR | D159: FIELDSTONE SOUTH | E159: 18-02703 | F159: SFD | G159: O | P159: 0 | W159: 1 | X159: 2018-06-28 | Y159: 1 | AF159: 1 | AG159: 2018-11-14 | AH159: 1
B160: 13225600050000 | C160: 10381 CHARLES MORRIS WAY | D160: STERLING MEADOWS UNIT 1A | E160: 18-02705 | F160: SFD | G160: O | P160: 0 | W160: 1 | X160: 2018-06-29 | Y160: 1 | AF160: 1 | AG160: 2018-12-05 | AH160: 1
B161: 13225600060000 | C161: 10385 CHARLES MORRIS WAY | D161: STERLING MEADOWS UNIT 1A | E161: 18-02706 | F161: SFD | G161: O | P161: 0 | W161: 1 | X161: 2018-06-29 | Y161: 1 | AF161: 1 | AG161: 2018-11-30 | AH161: =SUM(Z161:AF161) -> 1
B162: 13225600230000 | C162: 10380 CHARLES MORRIS WAY | D162: STERLING MEADOWS UNIT 1A | E162: 18-02707 | F162: SFD | G162: O | P162: 0 | W162: 1 | X162: 2018-06-29 | Y162: 1 | AF162: 1 | AG162: 2018-12-20 | AH162: 1
B163: 13225600240000 | C163: 10376 CHARLES MORRIS WAY | D163: STERLING MEADOWS UNIT 1A | E163: 18-02708 | F163: SFD | G163: O | P163: 0 | W163: 1 | X163: 2018-06-29 | Y163: 1 | AF163: 1 | AG163: 2018-12-20 | AH163: 1
B164: 13225700090000 | C164: 8724 MAESTRO WAY | D164: STERLING MEADOWS UNIT 1B | E164: 18-02709 | F164: SFD | G164: O | P164: 0 | W164: 1 | X164: 2018-06-29 | Y164: 1 | AF164: 1 | AG164: 2018-11-19 | AH164: 1
B165: 13225700100000 | C165: 10240 SOPRANO WAY | D165: STERLING MEADOWS UNIT 1B | E165: 18-02710 | F165: SFD | G165: O | P165: 0 | W165: 1 | X165: 2018-06-29 | Y165: 1 | AF165: 1 | AG165: 2018-11-28 | AH165: 1
B166: 13225700220000 | C166: 10241 SOPRANO WAY | D166: STERLING MEADOWS UNIT 1B | E166: 18-02711 | F166: SFD | G166: O | P166: 0 | W166: 1 | X166: 2018-06-29 | Y166: 1 | AF166: 1 | AG166: 2018-12-03 | AH166: 1
B167: 13225700450000 | C167: 8732 MAESTRO WAY | D167: STERLING MEADOWS UNIT 1B | E167: 18-02712 | F167: SFD | G167: O | P167: 0 | W167: 1 | X167: 2018-07-03 | Y167: 1 | AF167: 1 | AG167: 2018-12-12 | AH167: 1
B168: 11615900780000 | C168: 8884 ARISTON LN | D168: SHELDON TERRACE PHASE 1 | E168: 18-02718 | F168: SFD | G168: O | P168: 0 | W168: 1 | X168: 2018-06-13 | Y168: 1 | AH168: 0
B169: 11615900820000 | C169: 8876 ARISTON LN | D169: SHELDON TERRACE PHASE 1 | E169: 18-02719 | F169: SFD | G169: O | P169: 0 | W169: 1 | X169: 2018-06-13 | Y169: 1 | AH169: 0
B170: 11615900810000 | C170: 8878 ARISTON LN | D170: SHELDON TERRACE PHASE 1 | E170: 18-02720 | F170: SFD | G170: O | P170: 0 | W170: 1 | X170: 2018-06-13 | Y170: 1 | AH170: 0
B171: 13225900230000 | C171: 10245 CHARLES MORRIS WAY | D171: STERLING MEADOWS UNIT 1D | E171: 18-02737 | F171: SFD | G171: O | P171: 0 | W171: 1 | X171: 2018-06-15 | Y171: 1 | AH171: 0
B172: 13225900320000 | C172: 10244 CHARLES MORRIS WAY | D172: STERLING MEADOWS UNIT 1D | E172: 18-02738 | F172: SFD | G172: O | P172: 0 | W172: 1 | X172: 2018-06-15 | Y172: 1 | AH172: 0
B173: 13225900310000 | C173: 10248 CHARLES MORRIS WAY | D173: STERLING MEADOWS UNIT 1D | E173: 18-02739 | F173: SFD | G173: O | P173: 0 | W173: 1 | X173: 2018-06-15 | Y173: 1 | AF173: 1 | AG173: 2018-12-21 | AH173: 1
B174: 13225900330000 | C174: 10217 SOPRANO WAY | D174: STERLING MEADOWS UNIT 1D | E174: 18-02740 | F174: SFD | G174: O | P174: 0 | W174: 1 | X174: 2018-06-15 | Y174: 1 | AH174: 0
B175: 13218700850000 | C175: 9924 MACABEE LN | D175: MONTEREY VILLAGE | E175: 18-02741 | F175: SFD | G175: O | P175: 0 | W175: 1 | X175: 2018-06-15 | Y175: 1 | AF175: 1 | AG175: 2018-11-19 | AH175: 1
B176: 13218700940000 | C176: 9942 MACABEE LN | D176: MONTEREY VILLAGE | E176: 18-02742 | F176: SFD | G176: O | P176: 0 | W176: 1 | X176: 2018-06-15 | Y176: 1 | AF176: 1 | AG176: 2018-11-15 | AH176: 1
B177: 13218700910000 | C177: 9936 MACABEE LN | D177: MONTEREY VILLAGE | E177: 18-02743 | F177: SFD | G177: O | P177: 0 | W177: 1 | X177: 2018-06-15 | Y177: 1 | AF177: 1 | AG177: 2018-10-26 | AH177: 1
B178: 13218700880000 | C178: 9930 MACABEE LN | D178: MONTEREY VILLAGE | E178: 18-02744 | F178: SFD | G178: O | P178: 0 | W178: 1 | X178: 2018-06-15 | Y178: 1 | AF178: 1 | AG178: 2018-11-16 | AH178: 1
B179: 13218700890000 | C179: 9932 MACABEE LN | D179: MONTEREY VILLAGE | E179: 18-02745 | F179: SFD | G179: O | P179: 0 | W179: 1 | X179: 2018-06-15 | Y179: 1 | AF179: 1 | AG179: 2018-11-20 | AH179: 1
B180: 13218700900000 | C180: 9934 MACABEE LN | D180: MONTEREY VILLAGE | E180: 18-02746 | F180: SFD | G180: O | P180: 0 | W180: 1 | X180: 2018-06-15 | Y180: 1 | AF180: 1 | AG180: 2018-11-20 | AH180: 1
B181: 13218700930000 | C181: 9940 MACABEE LN | D181: MONTEREY VILLAGE | E181: 18-02767 | F181: SFD | G181: O | P181: 0 | W181: 1 | X181: 2018-06-15 | Y181: 1 | AF181: 1 | AG181: 2018-11-26 | AH181: 1
B182: 13218700860000 | C182: 9926 MACABEE LN | D182: MONTEREY VILLAGE | E182: 18-02768 | F182: SFD | G182: O | P182: 0 | W182: 1 | X182: 2018-06-15 | Y182: 1 | AF182: 1 | AG182: 2018-11-13 | AH182: 1
B183: 13218700920000 | C183: 9938 MACABEE LN | D183: MONTEREY VILLAGE | E183: 18-02771 | F183: SFD | G183: O | P183: 0 | W183: 1 | X183: 2018-06-15 | Y183: 1 | AF183: 1 | AG183: 2018-10-29 | AH183: 1
B184: 13218700870000 | C184: 9928 MACABEE LN | D184: MONTEREY VILLAGE | E184: 18-02772 | F184: SFD | G184: O | P184: 0 | W184: 1 | X184: 2018-06-15 | Y184: 1 | AF184: 1 | AG184: 2018-11-21 | AH184: 1
B185: 12111300040000 | C185: 8691 DASANI WAY | D185: SHELDON PARK ESTATES NORTH- UNIT 1 | E185: 18-02833 | F185: SFD | G185: O | P185: 0 | W185: 1 | X185: 2018-10-05 | Y185: 1 | AH185: 0
B186: 13411000180000 | C186: 10040 GROSBEAK WAY | D186: FIELDSTONE SOUTH | E186: 18-02918 | F186: SFD | G186: O | P186: 0 | W186: 1 | X186: 2018-07-10 | Y186: 1 | AF186: 1 | AG186: 2018-12-17 | AH186: 1
B187: 13411000170000 | C187: 10044 GROSBEAK WAY | D187: FIELDSTONE SOUTH | E187: 18-02922 | F187: SFD | G187: O | P187: 0 | W187: 1 | X187: 2018-07-10 | Y187: 1 | AF187: 1 | AG187: 2018-12-14 | AH187: 1
B188: 13223900100000 | C188: 8920 UPBEAT WAY | E188: 18-02938 | F188: SFD | G188: O | P188: 0 | W188: 1 | X188: 2018-07-23 | Y188: 1 | AF188: 1 | AG188: 2018-12-07 | AH188: 1
B189: 362943 | C189: 8922 UPBEAT WAY | E189: 18-02941 | F189: SFD | G189: O | P189: 0 | W189: 1 | X189: 2018-07-23 | Y189: 1 | AF189: 1 | AG189: 2018-12-07 | AH189: 1
B190: 362944 | C190: 8924 UPBEAT WAY | E190: 18-02942 | F190: SFD | G190: O | P190: 0 | W190: 1 | X190: 2018-07-23 | Y190: 1 | AF190: 1 | AG190: 2018-12-07 | AH190: 1
B191: 12700300710000 | C191: 8911 GOOD SHEPHERD LN | D191: PARCEL MAP SANDAGE ESTATES | E191: 18-02996 | F191: SFD | G191: O | P191: 0 | W191: 1 | X191: 2018-10-12 | Y191: 1 | AH191: 0
B192: 13405700870000 | C192: 9779 EMERALD PARK DR | D192: EMERALD PARK ESTATES | E192: 18-03024 | F192: SFD | G192: O | P192: 0 | W192: 1 | X192: 2018-06-29 | Y192: 1 | AH192: 0
B193: 13405700900000 | C193: 9809 EMERALD PARK DR | D193: EMERALD PARK ESTATES | E193: 18-03027 | F193: SFD | G193: O | P193: 0 | W193: 1 | X193: 2018-06-29 | Y193: 1 | AH193: 0
B194: 13405700910000 | C194: 9819 EMERALD PARK DR | D194: EMERALD PARK ESTATES | E194: 18-03032 | F194: SFD | G194: O | P194: 0 | W194: 1 | X194: 2018-06-29 | Y194: 1 | AH194: 0
B195: 13405700940000 | C195: 9798 HANS WAY | D195: EMERALD PARK ESTATES | E195: 18-03034 | F195: SFD | G195: O | P195: 0 | W195: 1 | X195: 2018-06-29 | Y195: 1 | AH195: 0
B196: 13405700880000 | C196: 9789 EMERALD PARK DR | D196: EMERALD PARK ESTATES | E196: 18-03036 | F196: SFD | G196: O | P196: 0 | W196: 1 | X196: 2018-06-29 | Y196: 1 | AH196: 0
B197: 13405700960000 | C197: 9729 FALCON MEADOW DR | D197: EMERALD PARK ESTATES | E197: 18-03039 | F197: SFD | G197: O | P197: 0 | W197: 1 | X197: 2018-06-29 | Y197: 1 | AH197: 0
B198: 13405700950000 | C198: 9788 HANS WAY | D198: EMERALD PARK ESTATES | E198: 18-03042 | F198: SFD | G198: O | P198: 0 | W198: 1 | X198: 2018-06-29 | Y198: 1 | AH198: 0
B199: 13405700890000 | C199: 9799 EMERALD PARK DR | D199: EMERALD PARK ESTATES | E199: 18-03048 | F199: SFD | G199: O | P199: 0 | W199: 1 | X199: 2018-06-29 | Y199: 1 | AH199: 0
B200: 13218701470000 | C200: 4119 OCEAN LN | D200: MONTEREY VILLAGE 2 | E200: 18-03131 | F200: SFD | G200: O | P200: 0 | W200: 1 | X200: 2018-06-29 | Y200: 1 | AF200: 1 | AG200: 2018-12-19 | AH200: 1
B201: 13218701480000 | C201: 4117 OCEAN LN | D201: MONTEREY VILLAGE 2 | E201: 18-03133 | F201: SFD | G201: O | P201: 0 | W201: 1 | X201: 2018-06-29 | Y201: 1 | AF201: 1 | AG201: 2018-12-18 | AH201: 1
... 799 more rows

Sheet Deed Rest And Asst Pgm Data (hidden)
A1: Assistance Program Types | B1: Deed Restriction Types
A2: Acq/Rehab | B2: DB
A3: AHP | B3: INC
A4: AHSC | B4: Other
A5: CalHOME
A6: CDBG
A7: CDLAC
A8: CESH
A9: ESG
A10: GSAF
A11: HOME
A12: HOPWA
A13: IIG
A14: LHTF
A15: LIHTC
A16: MHP
A17: MHSA
A18: MPRROP
A19: MRB
A20: MyHOME
A21: NHTF
A22: NPLH
A23: PBS8
A24: PDLP
A25: RAD
A26: RDA
A27: Sec 202
A28: Sec 811
A29: SERNA
A30: SHMHP
A31: SNHP
A32: TOD
A33: USDA
A34: VHHP
A35: Other

Sheet Table B
A1: ANNUAL ELEMENT PROGRESS REPORT
A2: Housing Element Implementation
A3: (CCR Title 25 §6202)
A4: Jurisdiction | B4: ='Start Here'!B4:D4 -> Elk Grove | I4: This table is auto-populated once you enter your jurisdiction name and current year data. Past year information comes from previous APRs.
A5: Reporting Year | B5: ='Start Here'!B5:C5 -> 2018 | C5: ='Table A'!C5 -> (Jan. 1 - Dec. 31) | I5: Please contact HCD if your data is different than the material supplied here
A7: Table B
A8: Regional Housing Needs Allocation Progress
A9: Permitted Units Issued by Affordability
C10: 1 | D10: 2 | M10: 3 | N10: 4
A11: Income Level | C11: RHNA Allocation by Income Level | D11: =VLOOKUP(B4,'Planning Periods'!E2:M540,8,0) -> 2013 | E11: =IF(ISNUMBER(D11),(IF(VLOOKUP($B$4,'Planning Periods'!$E$2:$M$540,9,0)=D11," ",(D11+1)))," ") -> 2014 | F11: =IF(ISNUMBER(E11),(IF(VLOOKUP($B$4,'Planning Periods'!$E$2:$M$540,9,0)=E11," ",(E11+1)))," ") -> 2015 | G11: =IF(ISNUMBER(F11),(IF(VLOOKUP($B$4,'Planning Periods'!$E$2:$M$540,9,0)=F11," ",(F11+1)))," ") -> 2016 | H11: =IF(ISNUMBER(G11),(IF(VLOOKUP($B$4,'Planning Periods'!$E$2:$M$540,9,0)=G11," ",(G11+1)))," ") -> 2017 | I11: =IF(ISNUMBER(H11),(IF(VLOOKUP($B$4,'Planning Periods'!$E$2:$M$540,9,0)=H11," ",(H11+1)))," ") -> 2018 | J11: =IF(ISNUMBER(I11),(IF(VLOOKUP($B$4,'Planning Periods'!$E$2:$M$540,9,0)=I11," ",(I11+1)))," ") -> 2019 | K11: =IF(ISNUMBER(J11),(IF(VLOOKUP($B$4,'Planning Periods'!$E$2:$M$540,9,0)=J11," ",(J11+1)))," ") -> 2020 | L11: =IF(ISNUMBER(K11),(IF(VLOOKUP($B$4,'Planning Periods'!$E$2:$M$540,9,0)=K11," ",(K11+1)))," ") -> 2021 | M11: Total Units to Date (all years) | N11: Total Remaining RHNA by Income Level
A12: Very Low | B12: Deed Restricted | C12: =VLOOKUP($B$4,'RHNA Allocations'!$C$2:$H$540,2,0) -> 2035 | D12: =IF(D$11=$B$5,'Table A2'!$Q$12+'Table F'!$F$16+'Table F'!$G$16,IF(D$11<$B$5,(VLOOKUP(CONCATENATE($B$4," ",D$11),'RHNA past year values'!$D$2:$V$2433,4,0)),0)) -> 0 | E12: 49 | F12: =IF(F$11=$B$5,'Table A2'!$Q$12+'Table F'!$F$16+'Table F'!$G$16,IF(F$11<$B$5,(VLOOKUP(CONCATENATE($B$4," ",F$11),'RHNA past year values'!$D$2:$V$2433,4,0)),0)) -> 0 | G12: =IF(G$11=$B$5,'Table A2'!$Q$12+'Table F'!$F$16+'Table F'!$G$16,IF(G$11<$B$5,(VLOOKUP(CONCATENATE($B$4," ",G$11),'RHNA past year values'!$D$2:$V$2433,4,0)),0)) -> 0 | H12: =IF(H$11=$B$5,'Table A2'!$Q$12+'Table F'!$F$16+'Table F'!$G$16,IF(H$11<$B$5,(VLOOKUP(CONCATENATE($B$4," ",H$11),'RHNA past year values'!$D$2:$V$2433,4,0)),0)) -> 35 | I12: =IF(I$11=$B$5,'Table A2'!$Q$12+'Table F'!$F$16+'Table F'!$G$16,IF(I$11<$B$5,(VLOOKUP(CONCATENATE($B$4," ",I$11),'RHNA past year values'!$D$2:$V$2433,4,0)),0)) -> 0 | J12: =IF(J$11=$B$5,'Table A2'!$Q$12+'Table F'!$F$16+'Table F'!$G$16,IF(J$11<$B$5,(VLOOKUP(CONCATENATE($B$4," ",J$11),'RHNA past year values'!$D$2:$V$2433,4,0)),0)) -> 0 | K12: =IF(K$11=$B$5,'Table A2'!$Q$12+'Table F'!$F$16+'Table F'!$G$16,IF(K$11<$B$5,(VLOOKUP(CONCATENATE($B$4," ",K$11),'RHNA past year values'!$D$2:$V$2433,4,0)),0)) -> 0 | L12: =IF(L$11=$B$5,'Table A2'!$Q$12+'Table F'!$F$16+'Table F'!$G$16,IF(L$11<$B$5,(VLOOKUP(CONCATENATE($B$4," ",L$11),'RHNA past year values'!$D$2:$V$2433,4,0)),0)) -> 0 | M12: =SUM(D12:L12)+SUM(D13:L13) -> 84 | N12: =MAX(0,C12-M12) -> 1951
B13: Non-Deed Restricted | D13: =IF(D$11=$B$5,'Table A2'!$R$12,IF(D$11<$B$5,(VLOOKUP(CONCATENATE($B$4," ",D$11),'RHNA past year values'!$D$2:$V$2433,5,0)),0)) -> 0 | F13: =IF(F$11=$B$5,'Table A2'!$R$12,IF(F$11<$B$5,(VLOOKUP(CONCATENATE($B$4," ",F$11),'RHNA past year values'!$D$2:$V$2433,5,0)),0)) -> 0 | G13: =IF(G$11=$B$5,'Table A2'!$R$12,IF(G$11<$B$5,(VLOOKUP(CONCATENATE($B$4," ",G$11),'RHNA past year values'!$D$2:$V$2433,5,0)),0)) -> 0 | H13: =IF(H$11=$B$5,'Table A2'!$R$12,IF(H$11<$B$5,(VLOOKUP(CONCATENATE($B$4," ",H$11),'RHNA past year values'!$D$2:$V$2433,5,0)),0)) -> 0 | I13: =IF(I$11=$B$5,'Table A2'!$R$12,IF(I$11<$B$5,(VLOOKUP(CONCATENATE($B$4," ",I$11),'RHNA past year values'!$D$2:$V$2433,5,0)),0)) -> 0 | J13: =IF(J$11=$B$5,'Table A2'!$R$12,IF(J$11<$B$5,(VLOOKUP(CONCATENATE($B$4," ",J$11),'RHNA past year values'!$D$2:$V$2433,5,0)),0)) -> 0 | K13: =IF(K$11=$B$5,'Table A2'!$R$12,IF(K$11<$B$5,(VLOOKUP(CONCATENATE($B$4," ",K$11),'RHNA past year values'!$D$2:$V$2433,5,0)),0)) -> 0 | L13: =IF(L$11=$B$5,'Table A2'!$R$12,IF(L$11<$B$5,(VLOOKUP(CONCATENATE($B$4," ",L$11),'RHNA past year values'!$D$2:$V$2433,5,0)),0)) -> 0
A14: Low | B14: Deed Restricted | C14: =VLOOKUP($B$4,'RHNA Allocations'!$C$2:$H$540,3,0) -> 1427 | D14: =IF(D$11=$B$5,'Table A2'!$S$12+'Table F'!$H$16,IF(D$11<$B$5,(VLOOKUP(CONCATENATE($B$4," ",D$11),'RHNA past year values'!$D$2:$V$2433,9,0)),0)) -> 0 | E14: 14 | F14: =IF(F$11=$B$5,'Table A2'!$S$12+'Table F'!$H$16,IF(F$11<$B$5,(VLOOKUP(CONCATENATE($B$4," ",F$11),'RHNA past year values'!$D$2:$V$2433,9,0)),0)) -> 0 | G14: =IF(G$11=$B$5,'Table A2'!$S$12+'Table F'!$H$16,IF(G$11<$B$5,(VLOOKUP(CONCATENATE($B$4," ",G$11),'RHNA past year values'!$D$2:$V$2433,9,0)),0)) -> 0 | H14: =IF(H$11=$B$5,'Table A2'!$S$12+'Table F'!$H$16,IF(H$11<$B$5,(VLOOKUP(CONCATENATE($B$4," ",H$11),'RHNA past year values'!$D$2:$V$2433,9,0)),0)) -> 62 | I14: =IF(I$11=$B$5,'Table A2'!$S$12+'Table F'!$H$16,IF(I$11<$B$5,(VLOOKUP(CONCATENATE($B$4," ",I$11),'RHNA past year values'!$D$2:$V$2433,9,0)),0)) -> 0 | J14: =IF(J$11=$B$5,'Table A2'!$S$12+'Table F'!$H$16,IF(J$11<$B$5,(VLOOKUP(CONCATENATE($B$4," ",J$11),'RHNA past year values'!$D$2:$V$2433,9,0)),0)) -> 0 | K14: =IF(K$11=$B$5,'Table A2'!$S$12+'Table F'!$H$16,IF(K$11<$B$5,(VLOOKUP(CONCATENATE($B$4," ",K$11),'RHNA past year values'!$D$2:$V$2433,9,0)),0)) -> 0 | L14: =IF(L$11=$B$5,'Table A2'!$S$12+'Table F'!$H$16,IF(L$11<$B$5,(VLOOKUP(CONCATENATE($B$4," ",L$11),'RHNA past year values'!$D$2:$V$2433,9,0)),0)) -> 0 | M14: =SUM(D14:L14)+SUM(D15:L15) -> 76 | N14: =MAX(0,C14-M14) -> 1351
B15: Non-Deed Restricted | D15: =IF(D$11=$B$5,'Table A2'!$T$12,IF(D$11<$B$5,(VLOOKUP(CONCATENATE($B$4," ",D$11),'RHNA past year values'!$D$2:$V$2433,10,0)),0)) -> 0 | E15: =IF(E$11=$B$5,'Table A2'!$T$12,IF(E$11<$B$5,(VLOOKUP(CONCATENATE($B$4," ",E$11),'RHNA past year values'!$D$2:$V$2433,10,0)),0)) -> 0 | F15: =IF(F$11=$B$5,'Table A2'!$T$12,IF(F$11<$B$5,(VLOOKUP(CONCATENATE($B$4," ",F$11),'RHNA past year values'!$D$2:$V$2433,10,0)),0)) -> 0 | G15: =IF(G$11=$B$5,'Table A2'!$T$12,IF(G$11<$B$5,(VLOOKUP(CONCATENATE($B$4," ",G$11),'RHNA past year values'!$D$2:$V$2433,10,0)),0)) -> 0 | H15: =IF(H$11=$B$5,'Table A2'!$T$12,IF(H$11<$B$5,(VLOOKUP(CONCATENATE($B$4," ",H$11),'RHNA past year values'!$D$2:$V$2433,10,0)),0)) -> 0 | I15: =IF(I$11=$B$5,'Table A2'!$T$12,IF(I$11<$B$5,(VLOOKUP(CONCATENATE($B$4," ",I$11),'RHNA past year values'!$D$2:$V$2433,10,0)),0)) -> 0 | J15: =IF(J$11=$B$5,'Table A2'!$T$12,IF(J$11<$B$5,(VLOOKUP(CONCATENATE($B$4," ",J$11),'RHNA past year values'!$D$2:$V$2433,10,0)),0)) -> 0 | K15: =IF(K$11=$B$5,'Table A2'!$T$12,IF(K$11<$B$5,(VLOOKUP(CONCATENATE($B$4," ",K$11),'RHNA past year values'!$D$2:$V$2433,10,0)),0)) -> 0 | L15: =IF(L$11=$B$5,'Table A2'!$T$12,IF(L$11<$B$5,(VLOOKUP(CONCATENATE($B$4," ",L$11),'RHNA past year values'!$D$2:$V$2433,10,0)),0)) -> 0
A16: Moderate | B16: Deed Restricted | C16: =VLOOKUP($B$4,'RHNA Allocations'!$C$2:$H$540,4,0) -> 1377 | D16: =IF(D$11=$B$5,'Table A2'!$U$12,0) -> 0 | E16: =IF(E$11=$B$5,'Table A2'!$U$12,0) -> 0 | F16: =IF(F$11=$B$5,'Table A2'!$U$12,0) -> 0 | G16: =IF(G$11=$B$5,'Table A2'!$U$12,0) -> 0 | H16: =IF(H$11=$B$5,'Table A2'!$U$12,0) -> 0 | I16: =IF(I$11=$B$5,'Table A2'!$U$12,0) -> 0 | J16: =IF(J$11=$B$5,'Table A2'!$U$12,0) -> 0 | K16: =IF(K$11=$B$5,'Table A2'!$U$12,0) -> 0 | L16: =IF(L$11=$B$5,'Table A2'!$U$12,0) -> 0 | M16: =SUM(D16:L16)+SUM(D17:L17) -> 252 | N16: =MAX(0,C16-M16) -> 1125
B17: Non-Deed Restricted | D17: 154 | E17: =IF(E$11=$B$5,'Table A2'!$V$12,IF(E$11<$B$5,(VLOOKUP(CONCATENATE($B$4," ",E$11),'RHNA past year values'!$D$2:$V$2433,13,0)),0)) -> 74 | F17: =IF(F$11=$B$5,'Table A2'!$V$12,IF(F$11<$B$5,(VLOOKUP(CONCATENATE($B$4," ",F$11),'RHNA past year values'!$D$2:$V$2433,13,0)),0)) -> 23 | G17: =IF(G$11=$B$5,'Table A2'!$V$12,IF(G$11<$B$5,(VLOOKUP(CONCATENATE($B$4," ",G$11),'RHNA past year values'!$D$2:$V$2433,13,0)),0)) -> 1 | H17: =IF(H$11=$B$5,'Table A2'!$V$12,IF(H$11<$B$5,(VLOOKUP(CONCATENATE($B$4," ",H$11),'RHNA past year values'!$D$2:$V$2433,13,0)),0)) -> 0 | I17: =IF(I$11=$B$5,'Table A2'!$V$12,IF(I$11<$B$5,(VLOOKUP(CONCATENATE($B$4," ",I$11),'RHNA past year values'!$D$2:$V$2433,13,0)),0)) -> 0 | J17: =IF(J$11=$B$5,'Table A2'!$V$12,IF(J$11<$B$5,(VLOOKUP(CONCATENATE($B$4," ",J$11),'RHNA past year values'!$D$2:$V$2433,13,0)),0)) -> 0 | K17: =IF(K$11=$B$5,'Table A2'!$V$12,IF(K$11<$B$5,(VLOOKUP(CONCATENATE($B$4," ",K$11),'RHNA past year values'!$D$2:$V$2433,13,0)),0)) -> 0 | L17: =IF(L$11=$B$5,'Table A2'!$V$12,IF(L$11<$B$5,(VLOOKUP(CONCATENATE($B$4," ",L$11),'RHNA past year values'!$D$2:$V$2433,13,0)),0)) -> 0
A18: Above Moderate | C18: =VLOOKUP($B$4,'RHNA Allocations'!$C$2:$H$540,5,0) -> 2563 | D18: 232 | E18: =IF(E$11=$B$5,'Table A2'!$W$12,IF(E$11<$B$5,(VLOOKUP(CONCATENATE($B$4," ",E$11),'RHNA past year values'!$D$2:$V$2433,16,0)),0)) -> 505 | F18: =IF(F$11=$B$5,'Table A2'!$W$12,IF(F$11<$B$5,(VLOOKUP(CONCATENATE($B$4," ",F$11),'RHNA past year values'!$D$2:$V$2433,16,0)),0)) -> 616 | G18: =IF(G$11=$B$5,'Table A2'!$W$12,IF(G$11<$B$5,(VLOOKUP(CONCATENATE($B$4," ",G$11),'RHNA past year values'!$D$2:$V$2433,16,0)),0)) -> 453 | H18: =IF(H$11=$B$5,'Table A2'!$W$12,IF(H$11<$B$5,(VLOOKUP(CONCATENATE($B$4," ",H$11),'RHNA past year values'!$D$2:$V$2433,16,0)),0)) -> 433 | I18: =IF(I$11=$B$5,'Table A2'!$W$12,IF(I$11<$B$5,(VLOOKUP(CONCATENATE($B$4," ",I$11),'RHNA past year values'!$D$2:$V$2433,16,0)),0)) -> 793 | J18: =IF(J$11=$B$5,'Table A2'!$W$12,IF(J$11<$B$5,(VLOOKUP(CONCATENATE($B$4," ",J$11),'RHNA past year values'!$D$2:$V$2433,16,0)),0)) -> 0 | K18: =IF(K$11=$B$5,'Table A2'!$W$12,IF(K$11<$B$5,(VLOOKUP(CONCATENATE($B$4," ",K$11),'RHNA past year values'!$D$2:$V$2433,16,0)),0)) -> 0 | L18: =IF(L$11=$B$5,'Table A2'!$W$12,IF(L$11<$B$5,(VLOOKUP(CONCATENATE($B$4," ",L$11),'RHNA past year values'!$D$2:$V$2433,16,0)),0)) -> 0 | M18: =SUM(D18:L18) -> 3032 | N18: =MAX(0,C18-M18) -> 0
A19: Total RHNA | C19: =SUM(C12:C18) -> 7402
A20: Total Units 44 | D20: =SUM(D12:D18) -> 386 | E20: 642 | F20: 639 | G20: 454 | H20: 530 | I20: 793 | J20: 0 | K20: 0 | L20: 0 | M20: 3444 | N20: 4427
A21: Note: units serving extremely low-income households are included in the very low-income permitted units totals
A22: Cells in grey contain auto-calculation formulas

Sheet Planning Periods (hidden)
A1: Jurisdiction | C1: 5th Cycle Housing Element Projection Period | D1: 5th Cycle Housing Element Planning Period | F1: Beginning of Projection Period | G1: End of Projection Period | H1: Beginning of Projection Period (Year Only) | I1: End of Projection Period (Year Only) | J1: Beginning of Planning Period | K1: End of planning Period | L1: Beginning of Planning Period (Year Only) | M1: End of planning Period (Year Only) | N1: 5th Cycle Housing Element Planning Period
A2: ADELANTO | B2: San Bernardino County | C2: 01/01/2014-10/31/2021 | D2: 10/15/2013 - 10/15/2021 | E2: =(PROPER(A2)) -> Adelanto | F2: 2014-01-01 | G2: 2021-10-31 | H2: =YEAR(F2) -> 2014 | I2: =YEAR(G2) -> 2021 | J2: 2013-10-15 | K2: 2021-10-15 | L2: =YEAR(J2) -> 2013 | M2: =YEAR(K2) -> 2021 | N2: 10/15/2013 - 10/15/2021
A3: AGOURA HILLS | B3: Los Angeles County | C3: 01/01/2014-10/31/2021 | D3: 10/15/2013 - 10/15/2021 | E3: Agoura Hills | F3: 2014-01-01 | G3: 2021-10-31 | H3: 2014 | I3: 2021 | J3: 2013-10-15 | K3: 2021-10-15 | L3: 2013 | M3: 2021 | N3: 10/15/2013 - 10/15/2021
A4: ALAMEDA | B4: Alameda County | C4: 01/01/2014-10/31/2022 | D4: 01/31/2015 - 01/31/2023 | E4: Alameda | F4: 2014-01-01 | G4: 2022-10-31 | H4: 2014 | I4: 2022 | J4: 2015-01-31 | K4: 2023-01-31 | L4: 2015 | M4: 2023 | N4: 01/31/2015 - 01/31/2023
A5: =B5 -> Alameda County - Unincorporated | B5: Alameda County - Unincorporated | C5: 01/01/2014-10/31/2022 | D5: 01/31/2015 - 01/31/2023 | E5: Alameda County - Unincorporated | F5: 2014-01-01 | G5: 2022-10-31 | H5: 2014 | I5: 2022 | J5: 2015-01-31 | K5: 2023-01-31 | L5: 2015 | M5: 2023 | N5: 01/31/2015 - 01/31/2023
A6: ALBANY | B6: Alameda County | C6: 01/01/2014-10/31/2022 | D6: 01/31/2015 - 01/31/2023 | E6: Albany | F6: 2014-01-01 | G6: 2022-10-31 | H6: 2014 | I6: 2022 | J6: 2015-01-31 | K6: 2023-01-31 | L6: 2015 | M6: 2023 | N6: 01/31/2015 - 01/31/2023
A7: ALHAMBRA | B7: Los Angeles County | C7: 01/01/2014-10/31/2021 | D7: 10/15/2013 - 10/15/2021 | E7: =(PROPER(A7)) -> Alhambra | F7: 2014-01-01 | G7: 2021-10-31 | H7: 2014 | I7: 2021 | J7: 2013-10-15 | K7: 2021-10-15 | L7: 2013 | M7: 2021 | N7: 10/15/2013 - 10/15/2021
A8: ALISO VIEJO | B8: Orange County | C8: 01/01/2014-10/31/2021 | D8: 10/15/2013 - 10/15/2021 | E8: Aliso Viejo | F8: 2014-01-01 | G8: 2021-10-31 | H8: 2014 | I8: 2021 | J8: 2013-10-15 | K8: 2021-10-15 | L8: 2013 | M8: 2021 | N8: 10/15/2013 - 10/15/2021
A9: Alpine County - Unincorporated | B9: Alpine County | C9: 01/01/2014-06/30/2019 | D9: 06/30/2014 - 06/30/2019 | E9: Alpine County - Unincorporated | F9: 2014-01-01 | G9: 2019-06-30 | H9: 2014 | I9: 2019 | J9: 2014-06-30 | K9: 2019-06-30 | L9: 2014 | M9: 2019 | N9: 06/30/2014 - 06/30/2019
A10: ALTURAS | B10: Modoc County | C10: 01/01/2014-06/30/2019 | D10: 06/30/2014 - 06/30/2019 | E10: Alturas | F10: 2014-01-01 | G10: 2019-06-30 | H10: 2014 | I10: 2019 | J10: 2014-06-30 | K10: 2019-06-30 | L10: 2014 | M10: 2019 | N10: 06/30/2014 - 06/30/2019
A11: AMADOR City | B11: Amador County | C11: 01/01/2014-06/30/2019 | D11: 06/30/2014 - 06/30/2019 | E11: Amador City | F11: 2014-01-01 | G11: 2019-06-30 | H11: 2014 | I11: 2019 | J11: 2014-06-30 | K11: 2019-06-30 | L11: 2014 | M11: 2019 | N11: 06/30/2014 - 06/30/2019
A12: =B12 -> Amador County - Unincorporated | B12: Amador County - Unincorporated | C12: 01/01/2014-06/30/2019 | D12: 06/30/2014 - 06/30/2019 | E12: Amador County - Unincorporated | F12: 2014-01-01 | G12: 2019-06-30 | H12: 2014 | I12: 2019 | J12: 2014-06-30 | K12: 2019-06-30 | L12: 2014 | M12: 2019 | N12: 06/30/2014 - 06/30/2019
A13: AMERICAN CANYON | B13: Napa County | C13: 01/01/2014-10/31/2022 | D13: 01/31/2015 - 01/31/2023 | E13: American Canyon | F13: 2014-01-01 | G13: 2022-10-31 | H13: 2014 | I13: 2022 | J13: 2015-01-31 | K13: 2023-01-31 | L13: 2015 | M13: 2023 | N13: 01/31/2015 - 01/31/2023
A14: ANAHEIM | B14: Orange County | C14: 01/01/2014-10/31/2021 | D14: 10/15/2013 - 10/15/2021 | E14: Anaheim | F14: 2014-01-01 | G14: 2021-10-31 | H14: 2014 | I14: 2021 | J14: 2013-10-15 | K14: 2021-10-15 | L14: 2013 | M14: 2021 | N14: 10/15/2013 - 10/15/2021
A15: ANDERSON | B15: Shasta County | C15: 01/01/2014-06/30/2019 | D15: 06/30/2014 - 06/30/2019 | E15: Anderson | F15: 2014-01-01 | G15: 2019-06-30 | H15: 2014 | I15: 2019 | J15: 2014-06-30 | K15: 2019-06-30 | L15: 2014 | M15: 2019 | N15: 06/30/2014 - 06/30/2019
A16: ANGELS CAMP | B16: Calaveras County | C16: 01/01/2014-06/30/2019 | D16: 06/30/2014 - 06/30/2019 | E16: Angels Camp | F16: 2014-01-01 | G16: 2019-06-30 | H16: 2014 | I16: 2019 | J16: 2014-06-30 | K16: 2019-06-30 | L16: 2014 | M16: 2019 | N16: 06/30/2014 - 06/30/2019
A17: ANTIOCH | B17: Contra Costa County | C17: 01/01/2014-10/31/2022 | D17: 01/31/2015 - 01/31/2023 | E17: Antioch | F17: 2014-01-01 | G17: 2022-10-31 | H17: 2014 | I17: 2022 | J17: 2015-01-31 | K17: 2023-01-31 | L17: 2015 | M17: 2023 | N17: 01/31/2015 - 01/31/2023
A18: APPLE VALLEY | B18: San Bernardino County | C18: 01/01/2014-10/31/2021 | D18: 10/15/2013 - 10/15/2021 | E18: Apple Valley | F18: 2014-01-01 | G18: 2021-10-31 | H18: 2014 | I18: 2021 | J18: 2013-10-15 | K18: 2021-10-15 | L18: 2013 | M18: 2021 | N18: 10/15/2013 - 10/15/2021
A19: ARCADIA | B19: Los Angeles County | C19: 01/01/2014-10/31/2021 | D19: 10/15/2013 - 10/15/2021 | E19: Arcadia | F19: 2014-01-01 | G19: 2021-10-31 | H19: 2014 | I19: 2021 | J19: 2013-10-15 | K19: 2021-10-15 | L19: 2013 | M19: 2021 | N19: 10/15/2013 - 10/15/2021
A20: ARCATA | B20: Humboldt County | C20: 01/01/2014-06/30/2019 | D20: 06/30/2014 - 06/30/2019 | E20: Arcata | F20: 2014-01-01 | G20: 2019-06-30 | H20: 2014 | I20: 2019 | J20: 2014-06-30 | K20: 2019-06-30 | L20: 2014 | M20: 2019 | N20: 06/30/2014 - 06/30/2019
A21: ARROYO GRANDE | B21: San Luis Obispo County | C21: 01/01/2014-06/30/2019 | D21: 06/30/2014 - 06/30/2019 | E21: Arroyo Grande | F21: 2014-01-01 | G21: 2019-06-30 | H21: 2014 | I21: 2019 | J21: 2014-06-30 | K21: 2019-06-30 | L21: 2014 | M21: 2019 | N21: 06/30/2014 - 06/30/2019
A22: ARTESIA | B22: Los Angeles County | C22: 01/01/2014-10/31/2021 | D22: 10/15/2013 - 10/15/2021 | E22: Artesia | F22: 2014-01-01 | G22: 2021-10-31 | H22: 2014 | I22: 2021 | J22: 2013-10-15 | K22: 2021-10-15 | L22: 2013 | M22: 2021 | N22: 10/15/2013 - 10/15/2021
A23: ARVIN | B23: Kern County | C23: 01/01/2013-12/31/2023 | D23: 12/31/2015 - 12/31/2023 | E23: Arvin | F23: 2013-01-01 | G23: 2023-12-31 | H23: 2013 | I23: 2023 | J23: 2015-12-31 | K23: 2023-12-31 | L23: 2015 | M23: 2023 | N23: 12/31/2015 - 12/31/2023
A24: ATASCADERO | B24: San Luis Obispo County | C24: 01/01/2014-06/30/2019 | D24: 06/30/2014 - 06/30/2019 | E24: Atascadero | F24: 2014-01-01 | G24: 2019-06-30 | H24: 2014 | I24: 2019 | J24: 2014-06-30 | K24: 2019-06-30 | L24: 2014 | M24: 2019 | N24: 06/30/2014 - 06/30/2019
A25: ATHERTON | B25: San Mateo County | C25: 01/01/2014-10/31/2022 | D25: 01/31/2015 - 01/31/2023 | E25: Atherton | F25: 2014-01-01 | G25: 2022-10-31 | H25: 2014 | I25: 2022 | J25: 2015-01-31 | K25: 2023-01-31 | L25: 2015 | M25: 2023 | N25: 01/31/2015 - 01/31/2023
A26: ATWATER | B26: Merced County | C26: 01/01/2014-12/31/2023 | D26: 03/31/2016 - 03/31/2024 | E26: Atwater | F26: 2014-01-01 | G26: 2023-12-31 | H26: 2014 | I26: 2023 | J26: 2016-03-31 | K26: 2024-03-31 | L26: 2016 | M26: 2024 | N26: 03/31/2016 - 03/31/2024
A27: AUBURN | B27: Placer County | C27: 01/01/2013-10/31/2021 | D27: 10/31/2013 - 10/31/2021 | E27: Auburn | F27: 2013-01-01 | G27: 2021-10-31 | H27: 2013 | I27: 2021 | J27: 2013-10-31 | K27: 2021-10-31 | L27: 2013 | M27: 2021 | N27: 10/31/2013 - 10/31/2021
A28: AVALON | B28: Los Angeles County | C28: 01/01/2014-10/31/2021 | D28: 10/15/2013 - 10/15/2021 | E28: Avalon | F28: 2014-01-01 | G28: 2021-10-31 | H28: 2014 | I28: 2021 | J28: 2013-10-15 | K28: 2021-10-15 | L28: 2013 | M28: 2021 | N28: 10/15/2013 - 10/15/2021
A29: AVENAL | B29: Kings County | C29: 01/01/2014-12/31/2023 | D29: 01/31/2016 - 01/31/2024 | E29: Avenal | F29: 2014-01-01 | G29: 2023-12-31 | H29: 2014 | I29: 2023 | J29: 2016-01-31 | K29: 2024-01-31 | L29: 2016 | M29: 2024 | N29: 01/31/2016 - 01/31/2024
A30: AZUSA | B30: Los Angeles County | C30: 01/01/2014-10/31/2021 | D30: 10/15/2013 - 10/15/2021 | E30: Azusa | F30: 2014-01-01 | G30: 2021-10-31 | H30: 2014 | I30: 2021 | J30: 2013-10-15 | K30: 2021-10-15 | L30: 2013 | M30: 2021 | N30: 10/15/2013 - 10/15/2021
A31: BAKERSFIELD | B31: Kern County | C31: 01/01/2013-12/31/2023 | D31: 12/31/2015 - 12/31/2023 | E31: Bakersfield | F31: 2013-01-01 | G31: 2023-12-31 | H31: 2013 | I31: 2023 | J31: 2015-12-31 | K31: 2023-12-31 | L31: 2015 | M31: 2023 | N31: 12/31/2015 - 12/31/2023
A32: BALDWIN PARK | B32: Los Angeles County | C32: 01/01/2014-10/31/2021 | D32: 10/15/2013 - 10/15/2021 | E32: Baldwin Park | F32: 2014-01-01 | G32: 2021-10-31 | H32: 2014 | I32: 2021 | J32: 2013-10-15 | K32: 2021-10-15 | L32: 2013 | M32: 2021 | N32: 10/15/2013 - 10/15/2021
A33: BANNING | B33: Riverside County | C33: 01/01/2014-10/31/2021 | D33: 10/15/2013 - 10/15/2021 | E33: Banning | F33: 2014-01-01 | G33: 2021-10-31 | H33: 2014 | I33: 2021 | J33: 2013-10-15 | K33: 2021-10-15 | L33: 2013 | M33: 2021 | N33: 10/15/2013 - 10/15/2021
A34: BARSTOW | B34: San Bernardino County | C34: 01/01/2014-10/31/2021 | D34: 10/15/2013 - 10/15/2021 | E34: Barstow | F34: 2014-01-01 | G34: 2021-10-31 | H34: 2014 | I34: 2021 | J34: 2013-10-15 | K34: 2021-10-15 | L34: 2013 | M34: 2021 | N34: 10/15/2013 - 10/15/2021
A35: BEAUMONT | B35: Riverside County | C35: 01/01/2014-10/31/2021 | D35: 10/15/2013 - 10/15/2021 | E35: Beaumont | F35: 2014-01-01 | G35: 2021-10-31 | H35: 2014 | I35: 2021 | J35: 2013-10-15 | K35: 2021-10-15 | L35: 2013 | M35: 2021 | N35: 10/15/2013 - 10/15/2021
A36: BELL | B36: Los Angeles County | C36: 01/01/2014-10/31/2021 | D36: 10/15/2013 - 10/15/2021 | E36: Bell | F36: 2014-01-01 | G36: 2021-10-31 | H36: 2014 | I36: 2021 | J36: 2013-10-15 | K36: 2021-10-15 | L36: 2013 | M36: 2021 | N36: 10/15/2013 - 10/15/2021
A37: BELL GARDENS | B37: Los Angeles County | C37: 01/01/2014-10/31/2021 | D37: 10/15/2013 - 10/15/2021 | E37: Bell Gardens | F37: 2014-01-01 | G37: 2021-10-31 | H37: 2014 | I37: 2021 | J37: 2013-10-15 | K37: 2021-10-15 | L37: 2013 | M37: 2021 | N37: 10/15/2013 - 10/15/2021
A38: BELLFLOWER | B38: Los Angeles County | C38: 01/01/2014-10/31/2021 | D38: 10/15/2013 - 10/15/2021 | E38: Bellflower | F38: 2014-01-01 | G38: 2021-10-31 | H38: 2014 | I38: 2021 | J38: 2013-10-15 | K38: 2021-10-15 | L38: 2013 | M38: 2021 | N38: 10/15/2013 - 10/15/2021
A39: BELMONT | B39: San Mateo County | C39: 01/01/2014-10/31/2022 | D39: 01/31/2015 - 01/31/2023 | E39: Belmont | F39: 2014-01-01 | G39: 2022-10-31 | H39: 2014 | I39: 2022 | J39: 2015-01-31 | K39: 2023-01-31 | L39: 2015 | M39: 2023 | N39: 01/31/2015 - 01/31/2023
A40: BELVEDERE | B40: Marin County | C40: 01/01/2014-10/31/2022 | D40: 01/31/2015 - 01/31/2023 | E40: Belvedere | F40: 2014-01-01 | G40: 2022-10-31 | H40: 2014 | I40: 2022 | J40: 2015-01-31 | K40: 2023-01-31 | L40: 2015 | M40: 2023 | N40: 01/31/2015 - 01/31/2023
A41: BENICIA | B41: Solano County | C41: 01/01/2014-10/31/2022 | D41: 01/31/2015 - 01/31/2023 | E41: Benicia | F41: 2014-01-01 | G41: 2022-10-31 | H41: 2014 | I41: 2022 | J41: 2015-01-31 | K41: 2023-01-31 | L41: 2015 | M41: 2023 | N41: 01/31/2015 - 01/31/2023
A42: BERKELEY | B42: Alameda County | C42: 01/01/2014-10/31/2022 | D42: 01/31/2015 - 01/31/2023 | E42: Berkeley | F42: 2014-01-01 | G42: 2022-10-31 | H42: 2014 | I42: 2022 | J42: 2015-01-31 | K42: 2023-01-31 | L42: 2015 | M42: 2023 | N42: 01/31/2015 - 01/31/2023
A43: BEVERLY HILLS | B43: Los Angeles County | C43: 01/01/2014-10/31/2021 | D43: 10/15/2013 - 10/15/2021 | E43: Beverly Hills | F43: 2014-01-01 | G43: 2021-10-31 | H43: 2014 | I43: 2021 | J43: 2013-10-15 | K43: 2021-10-15 | L43: 2013 | M43: 2021 | N43: 10/15/2013 - 10/15/2021
A44: BIG BEAR LAKE | B44: San Bernardino County | C44: 01/01/2014-10/31/2021 | D44: 10/15/2013 - 10/15/2021 | E44: Big Bear Lake | F44: 2014-01-01 | G44: 2021-10-31 | H44: 2014 | I44: 2021 | J44: 2013-10-15 | K44: 2021-10-15 | L44: 2013 | M44: 2021 | N44: 10/15/2013 - 10/15/2021
A45: BIGGS | B45: Butte County | C45: 01/01/2014-06/15/2022 | D45: 06/15/2014 - 06/15/2022 | E45: Biggs | F45: 2014-01-01 | G45: 2022-06-15 | H45: 2014 | I45: 2022 | J45: 2014-06-15 | K45: 2022-06-15 | L45: 2014 | M45: 2022 | N45: 06/15/2014 - 06/15/2022
A46: BISHOP | B46: Inyo County | C46: 01/01/2014-06/30/2019 | D46: 06/30/2014 - 06/30/2019 | E46: Bishop | F46: 2014-01-01 | G46: 2019-06-30 | H46: 2014 | I46: 2019 | J46: 2014-06-30 | K46: 2019-06-30 | L46: 2014 | M46: 2019 | N46: 06/30/2014 - 06/30/2019
A47: BLUE LAKE | B47: Humboldt County | C47: 01/01/2014-06/30/2019 | D47: 06/30/2014 - 06/30/2019 | E47: Blue Lake | F47: 2014-01-01 | G47: 2019-06-30 | H47: 2014 | I47: 2019 | J47: 2014-06-30 | K47: 2019-06-30 | L47: 2014 | M47: 2019 | N47: 06/30/2014 - 06/30/2019
A48: BLYTHE | B48: Riverside County | C48: 01/01/2014-10/31/2021 | D48: 10/15/2013 - 10/15/2021 | E48: Blythe | F48: 2014-01-01 | G48: 2021-10-31 | H48: 2014 | I48: 2021 | J48: 2013-10-15 | K48: 2021-10-15 | L48: 2013 | M48: 2021 | N48: 10/15/2013 - 10/15/2021
A49: BRADBURY | B49: Los Angeles County | C49: 01/01/2014-10/31/2021 | D49: 10/15/2013 - 10/15/2021 | E49: Bradbury | F49: 2014-01-01 | G49: 2021-10-31 | H49: 2014 | I49: 2021 | J49: 2013-10-15 | K49: 2021-10-15 | L49: 2013 | M49: 2021 | N49: 10/15/2013 - 10/15/2021
A50: BRAWLEY | B50: Imperial County | C50: 01/01/2014-10/31/2021 | D50: 10/15/2013 - 10/15/2021 | E50: Brawley | F50: 2014-01-01 | G50: 2021-10-31 | H50: 2014 | I50: 2021 | J50: 2013-10-15 | K50: 2021-10-15 | L50: 2013 | M50: 2021 | N50: 10/15/2013 - 10/15/2021
A51: BREA | B51: Orange County | C51: 01/01/2014-10/31/2021 | D51: 10/15/2013 - 10/15/2021 | E51: Brea | F51: 2014-01-01 | G51: 2021-10-31 | H51: 2014 | I51: 2021 | J51: 2013-10-15 | K51: 2021-10-15 | L51: 2013 | M51: 2021 | N51: 10/15/2013 - 10/15/2021
A52: BRENTWOOD | B52: Contra Costa County | C52: 01/01/2014-10/31/2022 | D52: 01/31/2015 - 01/31/2023 | E52: Brentwood | F52: 2014-01-01 | G52: 2022-10-31 | H52: 2014 | I52: 2022 | J52: 2015-01-31 | K52: 2023-01-31 | L52: 2015 | M52: 2023 | N52: 01/31/2015 - 01/31/2023
A53: BRISBANE | B53: San Mateo County | C53: 01/01/2014-10/31/2022 | D53: 01/31/2015 - 01/31/2023 | E53: Brisbane | F53: 2014-01-01 | G53: 2022-10-31 | H53: 2014 | I53: 2022 | J53: 2015-01-31 | K53: 2023-01-31 | L53: 2015 | M53: 2023 | N53: 01/31/2015 - 01/31/2023
A54: BUELLTON | B54: Santa Barbara County | C54: 01/01/2014-09/30/2022 | D54: 02/15/2015 - 02/15/2023 | E54: Buellton | F54: 2014-01-01 | G54: 2022-09-30 | H54: 2014 | I54: 2022 | J54: 2015-02-15 | K54: 2023-02-15 | L54: 2015 | M54: 2023 | N54: 02/15/2015 - 02/15/2023
A55: BUENA PARK | B55: Orange County | C55: 01/01/2014-10/31/2021 | D55: 10/15/2013 - 10/15/2021 | E55: Buena Park | F55: 2014-01-01 | G55: 2021-10-31 | H55: 2014 | I55: 2021 | J55: 2013-10-15 | K55: 2021-10-15 | L55: 2013 | M55: 2021 | N55: 10/15/2013 - 10/15/2021
A56: BURBANK | B56: Los Angeles County | C56: 01/01/2014-10/31/2021 | D56: 10/15/2013 - 10/15/2021 | E56: Burbank | F56: 2014-01-01 | G56: 2021-10-31 | H56: 2014 | I56: 2021 | J56: 2013-10-15 | K56: 2021-10-15 | L56: 2013 | M56: 2021 | N56: 10/15/2013 - 10/15/2021
A57: BURLINGAME | B57: San Mateo County | C57: 01/01/2014-10/31/2022 | D57: 01/31/2015 - 01/31/2023 | E57: Burlingame | F57: 2014-01-01 | G57: 2022-10-31 | H57: 2014 | I57: 2022 | J57: 2015-01-31 | K57: 2023-01-31 | L57: 2015 | M57: 2023 | N57: 01/31/2015 - 01/31/2023
A58: =B58 -> Butte County - Unincorporated | B58: Butte County - Unincorporated | C58: 01/01/2014-06/15/2022 | D58: 06/15/2014 - 06/15/2022 | E58: Butte County - Unincorporated | F58: 2014-01-01 | G58: 2022-06-15 | H58: 2014 | I58: 2022 | J58: 2014-06-15 | K58: 2022-06-15 | L58: 2014 | M58: 2022 | N58: 06/15/2014 - 06/15/2022
A59: CALABASAS | B59: Los Angeles County | C59: 01/01/2014-10/31/2021 | D59: 10/15/2013 - 10/15/2021 | E59: Calabasas | F59: 2014-01-01 | G59: 2021-10-31 | H59: 2014 | I59: 2021 | J59: 2013-10-15 | K59: 2021-10-15 | L59: 2013 | M59: 2021 | N59: 10/15/2013 - 10/15/2021
A60: =B60 -> Calaveras County - Unincorporated | B60: Calaveras County - Unincorporated | C60: 01/01/2014-06/30/2019 | D60: 06/30/2014 - 06/30/2019 | E60: Calaveras County - Unincorporated | F60: 2014-01-01 | G60: 2019-06-30 | H60: 2014 | I60: 2019 | J60: 2014-06-30 | K60: 2019-06-30 | L60: 2014 | M60: 2019 | N60: 06/30/2014 - 06/30/2019
A61: CALEXICO | B61: Imperial County | C61: 01/01/2014-10/31/2021 | D61: 10/15/2013 - 10/15/2021 | E61: Calexico | F61: 2014-01-01 | G61: 2021-10-31 | H61: 2014 | I61: 2021 | J61: 2013-10-15 | K61: 2021-10-15 | L61: 2013 | M61: 2021 | N61: 10/15/2013 - 10/15/2021
A62: CALIFORNIA CITY | B62: Kern County | C62: 01/01/2013-12/31/2023 | D62: 12/31/2015 - 12/31/2023 | E62: California City | F62: 2013-01-01 | G62: 2023-12-31 | H62: 2013 | I62: 2023 | J62: 2015-12-31 | K62: 2023-12-31 | L62: 2015 | M62: 2023 | N62: 12/31/2015 - 12/31/2023
A63: CALIMESA | B63: Riverside County | C63: 01/01/2014-10/31/2021 | D63: 10/15/2013 - 10/15/2021 | E63: Calimesa | F63: 2014-01-01 | G63: 2021-10-31 | H63: 2014 | I63: 2021 | J63: 2013-10-15 | K63: 2021-10-15 | L63: 2013 | M63: 2021 | N63: 10/15/2013 - 10/15/2021
A64: CALIPATRIA | B64: Imperial County | C64: 01/01/2014-10/31/2021 | D64: 10/15/2013 - 10/15/2021 | E64: Calipatria | F64: 2014-01-01 | G64: 2021-10-31 | H64: 2014 | I64: 2021 | J64: 2013-10-15 | K64: 2021-10-15 | L64: 2013 | M64: 2021 | N64: 10/15/2013 - 10/15/2021
A65: CALISTOGA | B65: Napa County | C65: 01/01/2014-10/31/2022 | D65: 01/31/2015 - 01/31/2023 | E65: Calistoga | F65: 2014-01-01 | G65: 2022-10-31 | H65: 2014 | I65: 2022 | J65: 2015-01-31 | K65: 2023-01-31 | L65: 2015 | M65: 2023 | N65: 01/31/2015 - 01/31/2023
A66: CAMARILLO | B66: Ventura County | C66: 01/01/2014-10/31/2021 | D66: 10/15/2013 - 10/15/2021 | E66: =(PROPER(A66)) -> Camarillo | F66: 2014-01-01 | G66: 2021-10-31 | H66: =YEAR(F66) -> 2014 | I66: =YEAR(G66) -> 2021 | J66: 2013-10-15 | K66: 2021-10-15 | L66: =YEAR(J66) -> 2013 | M66: =YEAR(K66) -> 2021 | N66: 10/15/2013 - 10/15/2021
A67: CAMPBELL | B67: Santa Clara County | C67: 01/01/2014-10/31/2022 | D67: 01/31/2015 - 01/31/2023 | E67: Campbell | F67: 2014-01-01 | G67: 2022-10-31 | H67: 2014 | I67: 2022 | J67: 2015-01-31 | K67: 2023-01-31 | L67: 2015 | M67: 2023 | N67: 01/31/2015 - 01/31/2023
A68: CANYON LAKE | B68: Riverside County | C68: 01/01/2014-10/31/2021 | D68: 10/15/2013 - 10/15/2021 | E68: Canyon Lake | F68: 2014-01-01 | G68: 2021-10-31 | H68: 2014 | I68: 2021 | J68: 2013-10-15 | K68: 2021-10-15 | L68: 2013 | M68: 2021 | N68: 10/15/2013 - 10/15/2021
A69: CAPITOLA | B69: Santa Cruz County | C69: 01/01/2014-12/31/2023 | D69: 12/31/2015 - 12/31/2023 | E69: Capitola | F69: 2014-01-01 | G69: 2023-12-31 | H69: 2014 | I69: 2023 | J69: 2015-12-31 | K69: 2023-12-31 | L69: 2015 | M69: 2023 | N69: 12/31/2015 - 12/31/2023
A70: CARLSBAD | B70: San Diego County | C70: 01/01/2010-12/31/2020 | D70: 04/30/2013 - 04/30/2021 | E70: Carlsbad | F70: 2010-01-01 | G70: 2020-12-31 | H70: 2010 | I70: 2020 | J70: 2013-04-30 | K70: 2021-04-30 | L70: 2013 | M70: 2021 | N70: 04/30/2013 - 04/30/2021
A71: Carmel-by-the-Sea | B71: Monterey County | C71: 01/01/2014-12/31/2023 | D71: 12/31/2015 - 12/31/2023 | E71: Carmel-By-The-Sea | F71: 2014-01-01 | G71: 2023-12-31 | H71: 2014 | I71: 2023 | J71: 2015-12-31 | K71: 2023-12-31 | L71: 2015 | M71: 2023 | N71: 12/31/2015 - 12/31/2023
A72: CARPINTERIA | B72: Santa Barbara County | C72: 01/01/2014-09/30/2022 | D72: 02/15/2015 - 02/15/2023 | E72: Carpinteria | F72: 2014-01-01 | G72: 2022-09-30 | H72: 2014 | I72: 2022 | J72: 2015-02-15 | K72: 2023-02-15 | L72: 2015 | M72: 2023 | N72: 02/15/2015 - 02/15/2023
A73: CARSON | B73: Los Angeles County | C73: 01/01/2014-10/31/2021 | D73: 10/15/2013 - 10/15/2021 | E73: Carson | F73: 2014-01-01 | G73: 2021-10-31 | H73: 2014 | I73: 2021 | J73: 2013-10-15 | K73: 2021-10-15 | L73: 2013 | M73: 2021 | N73: 10/15/2013 - 10/15/2021
A74: CATHEDRAL | B74: Riverside County | C74: 01/01/2014-10/31/2021 | D74: 10/15/2013 - 10/15/2021 | E74: Cathedral | F74: 2014-01-01 | G74: 2021-10-31 | H74: 2014 | I74: 2021 | J74: 2013-10-15 | K74: 2021-10-15 | L74: 2013 | M74: 2021 | N74: 10/15/2013 - 10/15/2021
A75: CERES | B75: Stanislaus County | C75: 01/01/2014-09/30/2023 | D75: 12/31/2015 - 12/31/2023 | E75: Ceres | F75: 2014-01-01 | G75: 2023-09-30 | H75: 2014 | I75: 2023 | J75: 2015-12-31 | K75: 2023-12-31 | L75: 2015 | M75: 2023 | N75: 12/31/2015 - 12/31/2023
A76: CERRITOS | B76: Los Angeles County | C76: 01/01/2014-10/31/2021 | D76: 10/15/2013 - 10/15/2021 | E76: Cerritos | F76: 2014-01-01 | G76: 2021-10-31 | H76: 2014 | I76: 2021 | J76: 2013-10-15 | K76: 2021-10-15 | L76: 2013 | M76: 2021 | N76: 10/15/2013 - 10/15/2021
A77: CHICO | B77: Butte County | C77: 01/01/2014-06/15/2022 | D77: 06/15/2014 - 06/15/2022 | E77: Chico | F77: 2014-01-01 | G77: 2022-06-15 | H77: 2014 | I77: 2022 | J77: 2014-06-15 | K77: 2022-06-15 | L77: 2014 | M77: 2022 | N77: 06/15/2014 - 06/15/2022
A78: CHINO | B78: San Bernardino County | C78: 01/01/2014-10/31/2021 | D78: 10/15/2013 - 10/15/2021 | E78: Chino | F78: 2014-01-01 | G78: 2021-10-31 | H78: 2014 | I78: 2021 | J78: 2013-10-15 | K78: 2021-10-15 | L78: 2013 | M78: 2021 | N78: 10/15/2013 - 10/15/2021
A79: CHINO HILLS | B79: San Bernardino County | C79: 01/01/2014-10/31/2021 | D79: 10/15/2013 - 10/15/2021 | E79: Chino Hills | F79: 2014-01-01 | G79: 2021-10-31 | H79: 2014 | I79: 2021 | J79: 2013-10-15 | K79: 2021-10-15 | L79: 2013 | M79: 2021 | N79: 10/15/2013 - 10/15/2021
A80: CHOWCHILLA | B80: Madera County | C80: 01/01/2014-12/31/2023 | D80: 01/31/2016 - 01/31/2024 | E80: Chowchilla | F80: 2014-01-01 | G80: 2023-12-31 | H80: 2014 | I80: 2023 | J80: 2016-01-31 | K80: 2024-01-31 | L80: 2016 | M80: 2024 | N80: 01/31/2016 - 01/31/2024
A81: CHULA VISTA | B81: San Diego County | C81: 01/01/2010-12/31/2020 | D81: 04/30/2013 - 04/30/2021 | E81: Chula Vista | F81: 2010-01-01 | G81: 2020-12-31 | H81: 2010 | I81: 2020 | J81: 2013-04-30 | K81: 2021-04-30 | L81: 2013 | M81: 2021 | N81: 04/30/2013 - 04/30/2021
A82: CITRUS HEIGHTS | B82: Sacramento County | C82: 01/01/2013-10/31/2021 | D82: 10/31/2013 - 10/31/2021 | E82: Citrus Heights | F82: 2013-01-01 | G82: 2021-10-31 | H82: 2013 | I82: 2021 | J82: 2013-10-31 | K82: 2021-10-31 | L82: 2013 | M82: 2021 | N82: 10/31/2013 - 10/31/2021
A83: CLAREMONT | B83: Los Angeles County | C83: 01/01/2014-10/31/2021 | D83: 10/15/2013 - 10/15/2021 | E83: Claremont | F83: 2014-01-01 | G83: 2021-10-31 | H83: 2014 | I83: 2021 | J83: 2013-10-15 | K83: 2021-10-15 | L83: 2013 | M83: 2021 | N83: 10/15/2013 - 10/15/2021
A84: CLAYTON | B84: Contra Costa County | C84: 01/01/2014-10/31/2022 | D84: 01/31/2015 - 01/31/2023 | E84: Clayton | F84: 2014-01-01 | G84: 2022-10-31 | H84: 2014 | I84: 2022 | J84: 2015-01-31 | K84: 2023-01-31 | L84: 2015 | M84: 2023 | N84: 01/31/2015 - 01/31/2023
A85: CLEARLAKE | B85: Lake County | C85: 01/01/2014-06/30/2019 | D85: 06/30/2014 - 06/30/2019 | E85: Clearlake | F85: 2014-01-01 | G85: 2019-06-30 | H85: 2014 | I85: 2019 | J85: 2014-06-30 | K85: 2019-06-30 | L85: 2014 | M85: 2019 | N85: 06/30/2014 - 06/30/2019
A86: CLOVERDALE | B86: Sonoma County | C86: 01/01/2014-10/31/2022 | D86: 01/31/2015 - 01/31/2023 | E86: Cloverdale | F86: 2014-01-01 | G86: 2022-10-31 | H86: 2014 | I86: 2022 | J86: 2015-01-31 | K86: 2023-01-31 | L86: 2015 | M86: 2023 | N86: 01/31/2015 - 01/31/2023
A87: CLOVIS | B87: Fresno County | C87: 01/01/2013-12/31/2023 | D87: 12/31/2015 - 12/31/2023 | E87: Clovis | F87: 2013-01-01 | G87: 2023-12-31 | H87: 2013 | I87: 2023 | J87: 2015-12-31 | K87: 2023-12-31 | L87: 2015 | M87: 2023 | N87: 12/31/2015 - 12/31/2023
A88: COACHELLA | B88: Riverside County | C88: 01/01/2014-10/31/2021 | D88: 10/15/2013 - 10/15/2021 | E88: Coachella | F88: 2014-01-01 | G88: 2021-10-31 | H88: 2014 | I88: 2021 | J88: 2013-10-15 | K88: 2021-10-15 | L88: 2013 | M88: 2021 | N88: 10/15/2013 - 10/15/2021
A89: COALINGA | B89: Fresno County | C89: 01/01/2013-12/31/2023 | D89: 12/31/2015 - 12/31/2023 | E89: Coalinga | F89: 2013-01-01 | G89: 2023-12-31 | H89: 2013 | I89: 2023 | J89: 2015-12-31 | K89: 2023-12-31 | L89: 2015 | M89: 2023 | N89: 12/31/2015 - 12/31/2023
A90: COLFAX | B90: Placer County | C90: 01/01/2013-10/31/2021 | D90: 10/31/2013 - 10/31/2021 | E90: Colfax | F90: 2013-01-01 | G90: 2021-10-31 | H90: 2013 | I90: 2021 | J90: 2013-10-31 | K90: 2021-10-31 | L90: 2013 | M90: 2021 | N90: 10/31/2013 - 10/31/2021
A91: COLMA | B91: San Mateo County | C91: 01/01/2014-10/31/2022 | D91: 01/31/2015 - 01/31/2023 | E91: Colma | F91: 2014-01-01 | G91: 2022-10-31 | H91: 2014 | I91: 2022 | J91: 2015-01-31 | K91: 2023-01-31 | L91: 2015 | M91: 2023 | N91: 01/31/2015 - 01/31/2023
A92: COLTON | B92: San Bernardino County | C92: 01/01/2014-10/31/2021 | D92: 10/15/2013 - 10/15/2021 | E92: Colton | F92: 2014-01-01 | G92: 2021-10-31 | H92: 2014 | I92: 2021 | J92: 2013-10-15 | K92: 2021-10-15 | L92: 2013 | M92: 2021 | N92: 10/15/2013 - 10/15/2021
A93: COLUSA | B93: Colusa County | C93: 01/01/2014-06/30/2019 | D93: 06/30/2014 - 06/30/2019 | E93: Colusa | F93: 2014-01-01 | G93: 2019-06-30 | H93: 2014 | I93: 2019 | J93: 2014-06-30 | K93: 2019-06-30 | L93: 2014 | M93: 2019 | N93: 06/30/2014 - 06/30/2019
A94: =B94 -> Colusa County - Unincorporated | B94: Colusa County - Unincorporated | C94: 01/01/2014-06/30/2019 | D94: 06/30/2014 - 06/30/2019 | E94: Colusa County - Unincorporated | F94: 2014-01-01 | G94: 2019-06-30 | H94: 2014 | I94: 2019 | J94: 2014-06-30 | K94: 2019-06-30 | L94: 2014 | M94: 2019 | N94: 06/30/2014 - 06/30/2019
A95: COMMERCE | B95: Los Angeles County | C95: 01/01/2014-10/31/2021 | D95: 10/15/2013 - 10/15/2021 | E95: Commerce | F95: 2014-01-01 | G95: 2021-10-31 | H95: 2014 | I95: 2021 | J95: 2013-10-15 | K95: 2021-10-15 | L95: 2013 | M95: 2021 | N95: 10/15/2013 - 10/15/2021
A96: COMPTON | B96: Los Angeles County | C96: 01/01/2014-10/31/2021 | D96: 10/15/2013 - 10/15/2021 | E96: Compton | F96: 2014-01-01 | G96: 2021-10-31 | H96: 2014 | I96: 2021 | J96: 2013-10-15 | K96: 2021-10-15 | L96: 2013 | M96: 2021 | N96: 10/15/2013 - 10/15/2021
A97: CONCORD | B97: Contra Costa County | C97: 01/01/2014-10/31/2022 | D97: 01/31/2015 - 01/31/2023 | E97: Concord | F97: 2014-01-01 | G97: 2022-10-31 | H97: 2014 | I97: 2022 | J97: 2015-01-31 | K97: 2023-01-31 | L97: 2015 | M97: 2023 | N97: 01/31/2015 - 01/31/2023
A98: =B98 -> Contra Costa County - Unincorporated | B98: Contra Costa County - Unincorporated | C98: 01/01/2014-10/31/2022 | D98: 01/31/2015 - 01/31/2023 | E98: Contra Costa County - Unincorporated | F98: 2014-01-01 | G98: 2022-10-31 | H98: 2014 | I98: 2022 | J98: 2015-01-31 | K98: 2023-01-31 | L98: 2015 | M98: 2023 | N98: 01/31/2015 - 01/31/2023
A99: CORCORAN | B99: Kings County | C99: 01/01/2014-12/31/2023 | D99: 01/31/2016 - 01/31/2024 | E99: Corcoran | F99: 2014-01-01 | G99: 2023-12-31 | H99: 2014 | I99: 2023 | J99: 2016-01-31 | K99: 2024-01-31 | L99: 2016 | M99: 2024 | N99: 01/31/2016 - 01/31/2024
A100: CORNING | B100: Tehama County | C100: 01/01/2014-06/30/2019 | D100: 06/30/2014 - 06/30/2019 | E100: Corning | F100: 2014-01-01 | G100: 2019-06-30 | H100: 2014 | I100: 2019 | J100: 2014-06-30 | K100: 2019-06-30 | L100: 2014 | M100: 2019 | N100: 06/30/2014 - 06/30/2019
A101: CORONA | B101: Riverside County | C101: 01/01/2014-10/31/2021 | D101: 10/15/2013 - 10/15/2021 | E101: Corona | F101: 2014-01-01 | G101: 2021-10-31 | H101: 2014 | I101: 2021 | J101: 2013-10-15 | K101: 2021-10-15 | L101: 2013 | M101: 2021 | N101: 10/15/2013 - 10/15/2021
A102: CORONADO | B102: San Diego County | C102: 01/01/2010-12/31/2020 | D102: 04/30/2013 - 04/30/2021 | E102: Coronado | F102: 2010-01-01 | G102: 2020-12-31 | H102: 2010 | I102: 2020 | J102: 2013-04-30 | K102: 2021-04-30 | L102: 2013 | M102: 2021 | N102: 04/30/2013 - 04/30/2021
A103: CORTE MADERA | B103: Marin County | C103: 01/01/2014-10/31/2022 | D103: 01/31/2015 - 01/31/2023 | E103: Corte Madera | F103: 2014-01-01 | G103: 2022-10-31 | H103: 2014 | I103: 2022 | J103: 2015-01-31 | K103: 2023-01-31 | L103: 2015 | M103: 2023 | N103: 01/31/2015 - 01/31/2023
A104: COSTA MESA | B104: Orange County | C104: 01/01/2014-10/31/2021 | D104: 10/15/2013 - 10/15/2021 | E104: Costa Mesa | F104: 2014-01-01 | G104: 2021-10-31 | H104: 2014 | I104: 2021 | J104: 2013-10-15 | K104: 2021-10-15 | L104: 2013 | M104: 2021 | N104: 10/15/2013 - 10/15/2021
A105: COTATI | B105: Sonoma County | C105: 01/01/2014-10/31/2022 | D105: 01/31/2015 - 01/31/2023 | E105: Cotati | F105: 2014-01-01 | G105: 2022-10-31 | H105: 2014 | I105: 2022 | J105: 2015-01-31 | K105: 2023-01-31 | L105: 2015 | M105: 2023 | N105: 01/31/2015 - 01/31/2023
A106: COVINA | B106: Los Angeles County | C106: 01/01/2014-10/31/2021 | D106: 10/15/2013 - 10/15/2021 | E106: Covina | F106: 2014-01-01 | G106: 2021-10-31 | H106: 2014 | I106: 2021 | J106: 2013-10-15 | K106: 2021-10-15 | L106: 2013 | M106: 2021 | N106: 10/15/2013 - 10/15/2021
A107: CRESCENT CITY | B107: Del Norte County | C107: 01/01/2014-06/30/2019 | D107: 06/30/2014 - 06/30/2019 | E107: Crescent City | F107: 2014-01-01 | G107: 2019-06-30 | H107: 2014 | I107: 2019 | J107: 2014-06-30 | K107: 2019-06-30 | L107: 2014 | M107: 2019 | N107: 06/30/2014 - 06/30/2019
A108: CUDAHY | B108: Los Angeles County | C108: 01/01/2014-10/31/2021 | D108: 10/15/2013 - 10/15/2021 | E108: Cudahy | F108: 2014-01-01 | G108: 2021-10-31 | H108: 2014 | I108: 2021 | J108: 2013-10-15 | K108: 2021-10-15 | L108: 2013 | M108: 2021 | N108: 10/15/2013 - 10/15/2021
A109: CULVER CITY | B109: Los Angeles County | C109: 01/01/2014-10/31/2021 | D109: 10/15/2013 - 10/15/2021 | E109: Culver City | F109: 2014-01-01 | G109: 2021-10-31 | H109: 2014 | I109: 2021 | J109: 2013-10-15 | K109: 2021-10-15 | L109: 2013 | M109: 2021 | N109: 10/15/2013 - 10/15/2021
A110: CUPERTINO | B110: Santa Clara County | C110: 01/01/2014-10/31/2022 | D110: 01/31/2015 - 01/31/2023 | E110: Cupertino | F110: 2014-01-01 | G110: 2022-10-31 | H110: 2014 | I110: 2022 | J110: 2015-01-31 | K110: 2023-01-31 | L110: 2015 | M110: 2023 | N110: 01/31/2015 - 01/31/2023
A111: CYPRESS | B111: Orange County | C111: 01/01/2014-10/31/2021 | D111: 10/15/2013 - 10/15/2021 | E111: Cypress | F111: 2014-01-01 | G111: 2021-10-31 | H111: 2014 | I111: 2021 | J111: 2013-10-15 | K111: 2021-10-15 | L111: 2013 | M111: 2021 | N111: 10/15/2013 - 10/15/2021
A112: DALY CITY | B112: San Mateo County | C112: 01/01/2014-10/31/2022 | D112: 01/31/2015 - 01/31/2023 | E112: Daly City | F112: 2014-01-01 | G112: 2022-10-31 | H112: 2014 | I112: 2022 | J112: 2015-01-31 | K112: 2023-01-31 | L112: 2015 | M112: 2023 | N112: 01/31/2015 - 01/31/2023
A113: DANA POINT | B113: Orange County | C113: 01/01/2014-10/31/2021 | D113: 10/15/2013 - 10/15/2021 | E113: Dana Point | F113: 2014-01-01 | G113: 2021-10-31 | H113: 2014 | I113: 2021 | J113: 2013-10-15 | K113: 2021-10-15 | L113: 2013 | M113: 2021 | N113: 10/15/2013 - 10/15/2021
A114: DANVILLE | B114: Contra Costa County | C114: 01/01/2014-10/31/2022 | D114: 01/31/2015 - 01/31/2023 | E114: Danville | F114: 2014-01-01 | G114: 2022-10-31 | H114: 2014 | I114: 2022 | J114: 2015-01-31 | K114: 2023-01-31 | L114: 2015 | M114: 2023 | N114: 01/31/2015 - 01/31/2023
A115: DAVIS | B115: Yolo County | C115: 01/01/2013-10/31/2021 | D115: 10/31/2013 - 10/31/2021 | E115: Davis | F115: 2013-01-01 | G115: 2021-10-31 | H115: 2013 | I115: 2021 | J115: 2013-10-31 | K115: 2021-10-31 | L115: 2013 | M115: 2021 | N115: 10/31/2013 - 10/31/2021
A116: DEL MAR | B116: San Diego County | C116: 01/01/2010-12/31/2020 | D116: 04/30/2013 - 04/30/2021 | E116: Del Mar | F116: 2010-01-01 | G116: 2020-12-31 | H116: 2010 | I116: 2020 | J116: 2013-04-30 | K116: 2021-04-30 | L116: 2013 | M116: 2021 | N116: 04/30/2013 - 04/30/2021
A117: =B117 -> Del Norte County - Unincorporated | B117: Del Norte County - Unincorporated | C117: 01/01/2014-06/30/2019 | D117: 06/30/2014 - 06/30/2019 | E117: Del Norte County - Unincorporated | F117: 2014-01-01 | G117: 2019-06-30 | H117: 2014 | I117: 2019 | J117: 2014-06-30 | K117: 2019-06-30 | L117: 2014 | M117: 2019 | N117: 06/30/2014 - 06/30/2019
A118: DEL REY OAKS | B118: Monterey County | C118: 01/01/2014-12/31/2023 | D118: 12/31/2015 - 12/31/2023 | E118: Del Rey Oaks | F118: 2014-01-01 | G118: 2023-12-31 | H118: 2014 | I118: 2023 | J118: 2015-12-31 | K118: 2023-12-31 | L118: 2015 | M118: 2023 | N118: 12/31/2015 - 12/31/2023
A119: DELANO | B119: Kern County | C119: 01/01/2013-12/31/2023 | D119: 12/31/2015 - 12/31/2023 | E119: Delano | F119: 2013-01-01 | G119: 2023-12-31 | H119: 2013 | I119: 2023 | J119: 2015-12-31 | K119: 2023-12-31 | L119: 2015 | M119: 2023 | N119: 12/31/2015 - 12/31/2023
A120: DESERT HOT SPRINGS | B120: Riverside County | C120: 01/01/2014-10/31/2021 | D120: 10/15/2013 - 10/15/2021 | E120: Desert Hot Springs | F120: 2014-01-01 | G120: 2021-10-31 | H120: 2014 | I120: 2021 | J120: 2013-10-15 | K120: 2021-10-15 | L120: 2013 | M120: 2021 | N120: 10/15/2013 - 10/15/2021
A121: DIAMOND BAR | B121: Los Angeles County | C121: 01/01/2014-10/31/2021 | D121: 10/15/2013 - 10/15/2021 | E121: Diamond Bar | F121: 2014-01-01 | G121: 2021-10-31 | H121: 2014 | I121: 2021 | J121: 2013-10-15 | K121: 2021-10-15 | L121: 2013 | M121: 2021 | N121: 10/15/2013 - 10/15/2021
A122: DINUBA | B122: Tulare County | C122: 01/01/2014-09/30/2023 | D122: 12/31/2015 - 12/31/2023 | E122: Dinuba | F122: 2014-01-01 | G122: 2023-09-30 | H122: 2014 | I122: 2023 | J122: 2015-12-31 | K122: 2023-12-31 | L122: 2015 | M122: 2023 | N122: 12/31/2015 - 12/31/2023
A123: DIXON | B123: Solano County | C123: 01/01/2014-10/31/2022 | D123: 01/31/2015 - 01/31/2023 | E123: Dixon | F123: 2014-01-01 | G123: 2022-10-31 | H123: 2014 | I123: 2022 | J123: 2015-01-31 | K123: 2023-01-31 | L123: 2015 | M123: 2023 | N123: 01/31/2015 - 01/31/2023
A124: DORRIS | B124: Siskiyou County | C124: 01/01/2014-06/30/2019 | D124: 06/30/2014 - 06/30/2019 | E124: Dorris | F124: 2014-01-01 | G124: 2019-06-30 | H124: 2014 | I124: 2019 | J124: 2014-06-30 | K124: 2019-06-30 | L124: 2014 | M124: 2019 | N124: 06/30/2014 - 06/30/2019
A125: DOS PALOS | B125: Merced County | C125: 01/01/2014-12/31/2023 | D125: 03/31/2016 - 03/31/2024 | E125: Dos Palos | F125: 2014-01-01 | G125: 2023-12-31 | H125: 2014 | I125: 2023 | J125: 2016-03-31 | K125: 2024-03-31 | L125: 2016 | M125: 2024 | N125: 03/31/2016 - 03/31/2024
A126: DOWNEY | B126: Los Angeles County | C126: 01/01/2014-10/31/2021 | D126: 10/15/2013 - 10/15/2021 | E126: Downey | F126: 2014-01-01 | G126: 2021-10-31 | H126: 2014 | I126: 2021 | J126: 2013-10-15 | K126: 2021-10-15 | L126: 2013 | M126: 2021 | N126: 10/15/2013 - 10/15/2021
A127: DUARTE | B127: Los Angeles County | C127: 01/01/2014-10/31/2021 | D127: 10/15/2013 - 10/15/2021 | E127: Duarte | F127: 2014-01-01 | G127: 2021-10-31 | H127: 2014 | I127: 2021 | J127: 2013-10-15 | K127: 2021-10-15 | L127: 2013 | M127: 2021 | N127: 10/15/2013 - 10/15/2021
A128: DUBLIN | B128: Alameda County | C128: 01/01/2014-10/31/2022 | D128: 01/31/2015 - 01/31/2023 | E128: Dublin | F128: 2014-01-01 | G128: 2022-10-31 | H128: 2014 | I128: 2022 | J128: 2015-01-31 | K128: 2023-01-31 | L128: 2015 | M128: 2023 | N128: 01/31/2015 - 01/31/2023
A129: DUNSMUIR | B129: Siskiyou County | C129: 01/01/2014-06/30/2019 | D129: 06/30/2014 - 06/30/2019 | E129: Dunsmuir | F129: 2014-01-01 | G129: 2019-06-30 | H129: 2014 | I129: 2019 | J129: 2014-06-30 | K129: 2019-06-30 | L129: 2014 | M129: 2019 | N129: 06/30/2014 - 06/30/2019
A130: EAST PALO ALTO | B130: San Mateo County | C130: 01/01/2014-10/31/2022 | D130: 01/31/2015 - 01/31/2023 | E130: =(PROPER(A130)) -> East Palo Alto | F130: 2014-01-01 | G130: 2022-10-31 | H130: =YEAR(F130) -> 2014 | I130: =YEAR(G130) -> 2022 | J130: 2015-01-31 | K130: 2023-01-31 | L130: =YEAR(J130) -> 2015 | M130: =YEAR(K130) -> 2023 | N130: 01/31/2015 - 01/31/2023
A131: EASTVALE | B131: Riverside County | C131: 01/01/2014-10/31/2021 | D131: 10/15/2013 - 10/15/2021 | E131: Eastvale | F131: 2014-01-01 | G131: 2021-10-31 | H131: 2014 | I131: 2021 | J131: 2013-10-15 | K131: 2021-10-15 | L131: 2013 | M131: 2021 | N131: 10/15/2013 - 10/15/2021
A132: EL CAJON | B132: San Diego County | C132: 01/01/2010-12/31/2020 | D132: 04/30/2013 - 04/30/2021 | E132: El Cajon | F132: 2010-01-01 | G132: 2020-12-31 | H132: 2010 | I132: 2020 | J132: 2013-04-30 | K132: 2021-04-30 | L132: 2013 | M132: 2021 | N132: 04/30/2013 - 04/30/2021
A133: EL CENTRO | B133: Imperial County | C133: 01/01/2014-10/31/2021 | D133: 10/15/2013 - 10/15/2021 | E133: El Centro | F133: 2014-01-01 | G133: 2021-10-31 | H133: 2014 | I133: 2021 | J133: 2013-10-15 | K133: 2021-10-15 | L133: 2013 | M133: 2021 | N133: 10/15/2013 - 10/15/2021
A134: EL CERRITO | B134: Contra Costa County | C134: 01/01/2014-10/31/2022 | D134: 01/31/2015 - 01/31/2023 | E134: El Cerrito | F134: 2014-01-01 | G134: 2022-10-31 | H134: 2014 | I134: 2022 | J134: 2015-01-31 | K134: 2023-01-31 | L134: 2015 | M134: 2023 | N134: 01/31/2015 - 01/31/2023
A135: =B135 -> El Dorado County - Unincorporated | B135: El Dorado County - Unincorporated | C135: 01/01/2013-10/31/2021 | D135: 10/31/2013 - 10/31/2021 | E135: El Dorado County - Unincorporated | F135: 2013-01-01 | G135: 2021-10-31 | H135: 2013 | I135: 2021 | J135: 2013-10-31 | K135: 2021-10-31 | L135: 2013 | M135: 2021 | N135: 10/31/2013 - 10/31/2021
A136: EL MONTE | B136: Los Angeles County | C136: 01/01/2014-10/31/2021 | D136: 10/15/2013 - 10/15/2021 | E136: El Monte | F136: 2014-01-01 | G136: 2021-10-31 | H136: 2014 | I136: 2021 | J136: 2013-10-15 | K136: 2021-10-15 | L136: 2013 | M136: 2021 | N136: 10/15/2013 - 10/15/2021
A137: EL SEGUNDO | B137: Los Angeles County | C137: 01/01/2014-10/31/2021 | D137: 10/15/2013 - 10/15/2021 | E137: El Segundo | F137: 2014-01-01 | G137: 2021-10-31 | H137: 2014 | I137: 2021 | J137: 2013-10-15 | K137: 2021-10-15 | L137: 2013 | M137: 2021 | N137: 10/15/2013 - 10/15/2021
A138: ELK GROVE | B138: Sacramento County | C138: 01/01/2013-10/31/2021 | D138: 10/31/2013 - 10/31/2021 | E138: Elk Grove | F138: 2013-01-01 | G138: 2021-10-31 | H138: 2013 | I138: 2021 | J138: 2013-10-31 | K138: 2021-10-31 | L138: 2013 | M138: 2021 | N138: 10/31/2013 - 10/31/2021
A139: EMERYVILLE | B139: Alameda County | C139: 01/01/2014-10/31/2022 | D139: 01/31/2015 - 01/31/2023 | E139: Emeryville | F139: 2014-01-01 | G139: 2022-10-31 | H139: 2014 | I139: 2022 | J139: 2015-01-31 | K139: 2023-01-31 | L139: 2015 | M139: 2023 | N139: 01/31/2015 - 01/31/2023
A140: ENCINITAS | B140: San Diego County | C140: 01/01/2010-12/31/2020 | D140: 04/30/2013 - 04/30/2021 | E140: Encinitas | F140: 2010-01-01 | G140: 2020-12-31 | H140: 2010 | I140: 2020 | J140: 2013-04-30 | K140: 2021-04-30 | L140: 2013 | M140: 2021 | N140: 04/30/2013 - 04/30/2021
A141: ESCALON | B141: San Joaquin County | C141: 01/01/2014-12/31/2023 | D141: 12/31/2015 - 12/31/2023 | E141: Escalon | F141: 2014-01-01 | G141: 2023-12-31 | H141: 2014 | I141: 2023 | J141: 2015-12-31 | K141: 2023-12-31 | L141: 2015 | M141: 2023 | N141: 12/31/2015 - 12/31/2023
A142: ESCONDIDO | B142: San Diego County | C142: 01/01/2010-12/31/2020 | D142: 04/30/2013 - 04/30/2021 | E142: Escondido | F142: 2010-01-01 | G142: 2020-12-31 | H142: 2010 | I142: 2020 | J142: 2013-04-30 | K142: 2021-04-30 | L142: 2013 | M142: 2021 | N142: 04/30/2013 - 04/30/2021
A143: ETNA | B143: Siskiyou County | C143: 01/01/2014-06/30/2019 | D143: 06/30/2014 - 06/30/2019 | E143: Etna | F143: 2014-01-01 | G143: 2019-06-30 | H143: 2014 | I143: 2019 | J143: 2014-06-30 | K143: 2019-06-30 | L143: 2014 | M143: 2019 | N143: 06/30/2014 - 06/30/2019
A144: EUREKA | B144: Humboldt County | C144: 01/01/2014-06/30/2019 | D144: 06/30/2014 - 06/30/2019 | E144: Eureka | F144: 2014-01-01 | G144: 2019-06-30 | H144: 2014 | I144: 2019 | J144: 2014-06-30 | K144: 2019-06-30 | L144: 2014 | M144: 2019 | N144: 06/30/2014 - 06/30/2019
A145: EXETER | B145: Tulare County | C145: 01/01/2014-09/30/2023 | D145: 12/31/2015 - 12/31/2023 | E145: Exeter | F145: 2014-01-01 | G145: 2023-09-30 | H145: 2014 | I145: 2023 | J145: 2015-12-31 | K145: 2023-12-31 | L145: 2015 | M145: 2023 | N145: 12/31/2015 - 12/31/2023
A146: FAIRFAX | B146: Marin County | C146: 01/01/2014-10/31/2022 | D146: 01/31/2015 - 01/31/2023 | E146: Fairfax | F146: 2014-01-01 | G146: 2022-10-31 | H146: 2014 | I146: 2022 | J146: 2015-01-31 | K146: 2023-01-31 | L146: 2015 | M146: 2023 | N146: 01/31/2015 - 01/31/2023
A147: FAIRFIELD | B147: Solano County | C147: 01/01/2014-10/31/2022 | D147: 01/31/2015 - 01/31/2023 | E147: Fairfield | F147: 2014-01-01 | G147: 2022-10-31 | H147: 2014 | I147: 2022 | J147: 2015-01-31 | K147: 2023-01-31 | L147: 2015 | M147: 2023 | N147: 01/31/2015 - 01/31/2023
A148: FARMERSVILLE | B148: Tulare County | C148: 01/01/2014-09/30/2023 | D148: 12/31/2015 - 12/31/2023 | E148: Farmersville | F148: 2014-01-01 | G148: 2023-09-30 | H148: 2014 | I148: 2023 | J148: 2015-12-31 | K148: 2023-12-31 | L148: 2015 | M148: 2023 | N148: 12/31/2015 - 12/31/2023
A149: FERNDALE | B149: Humboldt County | C149: 01/01/2014-06/30/2019 | D149: 06/30/2014 - 06/30/2019 | E149: Ferndale | F149: 2014-01-01 | G149: 2019-06-30 | H149: 2014 | I149: 2019 | J149: 2014-06-30 | K149: 2019-06-30 | L149: 2014 | M149: 2019 | N149: 06/30/2014 - 06/30/2019
A150: FILLMORE | B150: Ventura County | C150: 01/01/2014-10/31/2021 | D150: 10/15/2013 - 10/15/2021 | E150: Fillmore | F150: 2014-01-01 | G150: 2021-10-31 | H150: 2014 | I150: 2021 | J150: 2013-10-15 | K150: 2021-10-15 | L150: 2013 | M150: 2021 | N150: 10/15/2013 - 10/15/2021
A151: FIREBAUGH | B151: Fresno County | C151: 01/01/2013-12/31/2023 | D151: 12/31/2015 - 12/31/2023 | E151: Firebaugh | F151: 2013-01-01 | G151: 2023-12-31 | H151: 2013 | I151: 2023 | J151: 2015-12-31 | K151: 2023-12-31 | L151: 2015 | M151: 2023 | N151: 12/31/2015 - 12/31/2023
A152: FOLSOM | B152: Sacramento County | C152: 01/01/2013-10/31/2021 | D152: 10/31/2013 - 10/31/2021 | E152: Folsom | F152: 2013-01-01 | G152: 2021-10-31 | H152: 2013 | I152: 2021 | J152: 2013-10-31 | K152: 2021-10-31 | L152: 2013 | M152: 2021 | N152: 10/31/2013 - 10/31/2021
A153: FONTANA | B153: San Bernardino County | C153: 01/01/2014-10/31/2021 | D153: 10/15/2013 - 10/15/2021 | E153: Fontana | F153: 2014-01-01 | G153: 2021-10-31 | H153: 2014 | I153: 2021 | J153: 2013-10-15 | K153: 2021-10-15 | L153: 2013 | M153: 2021 | N153: 10/15/2013 - 10/15/2021
A154: FORT BRAGG | B154: Mendocino County | C154: 01/01/2014-06/30/2019 | D154: 06/30/2014 - 06/30/2019 | E154: Fort Bragg | F154: 2014-01-01 | G154: 2019-06-30 | H154: 2014 | I154: 2019 | J154: 2014-06-30 | K154: 2019-06-30 | L154: 2014 | M154: 2019 | N154: 06/30/2014 - 06/30/2019
A155: FORT JONES | B155: Siskiyou County | C155: 01/01/2014-06/30/2019 | D155: 06/30/2014 - 06/30/2019 | E155: Fort Jones | F155: 2014-01-01 | G155: 2019-06-30 | H155: 2014 | I155: 2019 | J155: 2014-06-30 | K155: 2019-06-30 | L155: 2014 | M155: 2019 | N155: 06/30/2014 - 06/30/2019
A156: FORTUNA | B156: Humboldt County | C156: 01/01/2014-06/30/2019 | D156: 06/30/2014 - 06/30/2019 | E156: Fortuna | F156: 2014-01-01 | G156: 2019-06-30 | H156: 2014 | I156: 2019 | J156: 2014-06-30 | K156: 2019-06-30 | L156: 2014 | M156: 2019 | N156: 06/30/2014 - 06/30/2019
A157: FOSTER CITY | B157: San Mateo County | C157: 01/01/2014-10/31/2022 | D157: 01/31/2015 - 01/31/2023 | E157: Foster City | F157: 2014-01-01 | G157: 2022-10-31 | H157: 2014 | I157: 2022 | J157: 2015-01-31 | K157: 2023-01-31 | L157: 2015 | M157: 2023 | N157: 01/31/2015 - 01/31/2023
A158: FOUNTAIN VALLEY | B158: Orange County | C158: 01/01/2014-10/31/2021 | D158: 10/15/2013 - 10/15/2021 | E158: Fountain Valley | F158: 2014-01-01 | G158: 2021-10-31 | H158: 2014 | I158: 2021 | J158: 2013-10-15 | K158: 2021-10-15 | L158: 2013 | M158: 2021 | N158: 10/15/2013 - 10/15/2021
A159: FOWLER | B159: Fresno County | C159: 01/01/2013-12/31/2023 | D159: 12/31/2015 - 12/31/2023 | E159: Fowler | F159: 2013-01-01 | G159: 2023-12-31 | H159: 2013 | I159: 2023 | J159: 2015-12-31 | K159: 2023-12-31 | L159: 2015 | M159: 2023 | N159: 12/31/2015 - 12/31/2023
A160: FREMONT | B160: Alameda County | C160: 01/01/2014-10/31/2022 | D160: 01/31/2015 - 01/31/2023 | E160: Fremont | F160: 2014-01-01 | G160: 2022-10-31 | H160: 2014 | I160: 2022 | J160: 2015-01-31 | K160: 2023-01-31 | L160: 2015 | M160: 2023 | N160: 01/31/2015 - 01/31/2023
A161: FRESNO | B161: Fresno County | C161: 01/01/2013-12/31/2023 | D161: 12/31/2015 - 12/31/2023 | E161: Fresno | F161: 2013-01-01 | G161: 2023-12-31 | H161: 2013 | I161: 2023 | J161: 2015-12-31 | K161: 2023-12-31 | L161: 2015 | M161: 2023 | N161: 12/31/2015 - 12/31/2023
A162: =B162 -> Fresno County - Unincorporated | B162: Fresno County - Unincorporated | C162: 01/01/2013-12/31/2023 | D162: 12/31/2015 - 12/31/2023 | E162: Fresno County - Unincorporated | F162: 2013-01-01 | G162: 2023-12-31 | H162: 2013 | I162: 2023 | J162: 2015-12-31 | K162: 2023-12-31 | L162: 2015 | M162: 2023 | N162: 12/31/2015 - 12/31/2023
A163: FULLERTON | B163: Orange County | C163: 01/01/2014-10/31/2021 | D163: 10/15/2013 - 10/15/2021 | E163: Fullerton | F163: 2014-01-01 | G163: 2021-10-31 | H163: 2014 | I163: 2021 | J163: 2013-10-15 | K163: 2021-10-15 | L163: 2013 | M163: 2021 | N163: 10/15/2013 - 10/15/2021
A164: GALT | B164: Sacramento County | C164: 01/01/2013-10/31/2021 | D164: 10/31/2013 - 10/31/2021 | E164: Galt | F164: 2013-01-01 | G164: 2021-10-31 | H164: 2013 | I164: 2021 | J164: 2013-10-31 | K164: 2021-10-31 | L164: 2013 | M164: 2021 | N164: 10/31/2013 - 10/31/2021
A165: GARDEN GROVE | B165: Orange County | C165: 01/01/2014-10/31/2021 | D165: 10/15/2013 - 10/15/2021 | E165: Garden Grove | F165: 2014-01-01 | G165: 2021-10-31 | H165: 2014 | I165: 2021 | J165: 2013-10-15 | K165: 2021-10-15 | L165: 2013 | M165: 2021 | N165: 10/15/2013 - 10/15/2021
A166: GARDENA | B166: Los Angeles County | C166: 01/01/2014-10/31/2021 | D166: 10/15/2013 - 10/15/2021 | E166: Gardena | F166: 2014-01-01 | G166: 2021-10-31 | H166: 2014 | I166: 2021 | J166: 2013-10-15 | K166: 2021-10-15 | L166: 2013 | M166: 2021 | N166: 10/15/2013 - 10/15/2021
A167: GILROY | B167: Santa Clara County | C167: 01/01/2014-10/31/2022 | D167: 01/31/2015 - 01/31/2023 | E167: Gilroy | F167: 2014-01-01 | G167: 2022-10-31 | H167: 2014 | I167: 2022 | J167: 2015-01-31 | K167: 2023-01-31 | L167: 2015 | M167: 2023 | N167: 01/31/2015 - 01/31/2023
A168: GLENDALE | B168: Los Angeles County | C168: 01/01/2014-10/31/2021 | D168: 10/15/2013 - 10/15/2021 | E168: Glendale | F168: 2014-01-01 | G168: 2021-10-31 | H168: 2014 | I168: 2021 | J168: 2013-10-15 | K168: 2021-10-15 | L168: 2013 | M168: 2021 | N168: 10/15/2013 - 10/15/2021
A169: GLENDORA | B169: Los Angeles County | C169: 01/01/2014-10/31/2021 | D169: 10/15/2013 - 10/15/2021 | E169: Glendora | F169: 2014-01-01 | G169: 2021-10-31 | H169: 2014 | I169: 2021 | J169: 2013-10-15 | K169: 2021-10-15 | L169: 2013 | M169: 2021 | N169: 10/15/2013 - 10/15/2021
A170: =B170 -> Glenn County - Unincorporated | B170: Glenn County - Unincorporated | C170: 01/01/2014-06/30/2019 | D170: 06/30/2014 - 06/30/2019 | E170: Glenn County - Unincorporated | F170: 2014-01-01 | G170: 2019-06-30 | H170: 2014 | I170: 2019 | J170: 2014-06-30 | K170: 2019-06-30 | L170: 2014 | M170: 2019 | N170: 06/30/2014 - 06/30/2019
A171: GOLETA | B171: Santa Barbara County | C171: 01/01/2014-09/30/2022 | D171: 02/15/2015 - 02/15/2023 | E171: Goleta | F171: 2014-01-01 | G171: 2022-09-30 | H171: 2014 | I171: 2022 | J171: 2015-02-15 | K171: 2023-02-15 | L171: 2015 | M171: 2023 | N171: 02/15/2015 - 02/15/2023
A172: GONZALES | B172: Monterey County | C172: 01/01/2014-12/31/2023 | D172: 12/31/2015 - 12/31/2023 | E172: Gonzales | F172: 2014-01-01 | G172: 2023-12-31 | H172: 2014 | I172: 2023 | J172: 2015-12-31 | K172: 2023-12-31 | L172: 2015 | M172: 2023 | N172: 12/31/2015 - 12/31/2023
A173: GRAND TERRACE | B173: San Bernardino County | C173: 01/01/2014-10/31/2021 | D173: 10/15/2013 - 10/15/2021 | E173: Grand Terrace | F173: 2014-01-01 | G173: 2021-10-31 | H173: 2014 | I173: 2021 | J173: 2013-10-15 | K173: 2021-10-15 | L173: 2013 | M173: 2021 | N173: 10/15/2013 - 10/15/2021
A174: GRASS VALLEY | B174: Nevada County | C174: 01/01/2014-06/30/2019 | D174: 06/30/2014 - 06/30/2019 | E174: Grass Valley | F174: 2014-01-01 | G174: 2019-06-30 | H174: 2014 | I174: 2019 | J174: 2014-06-30 | K174: 2019-06-30 | L174: 2014 | M174: 2019 | N174: 06/30/2014 - 06/30/2019
A175: GREENFIELD | B175: Monterey County | C175: 01/01/2014-12/31/2023 | D175: 12/31/2015 - 12/31/2023 | E175: Greenfield | F175: 2014-01-01 | G175: 2023-12-31 | H175: 2014 | I175: 2023 | J175: 2015-12-31 | K175: 2023-12-31 | L175: 2015 | M175: 2023 | N175: 12/31/2015 - 12/31/2023
A176: GRIDLEY | B176: Butte County | C176: 01/01/2014-06/15/2022 | D176: 06/15/2014 - 06/15/2022 | E176: Gridley | F176: 2014-01-01 | G176: 2022-06-15 | H176: 2014 | I176: 2022 | J176: 2014-06-15 | K176: 2022-06-15 | L176: 2014 | M176: 2022 | N176: 06/15/2014 - 06/15/2022
A177: GROVER BEACH | B177: San Luis Obispo County | C177: 01/01/2014-06/30/2019 | D177: 06/30/2014 - 06/30/2019 | E177: Grover Beach | F177: 2014-01-01 | G177: 2019-06-30 | H177: 2014 | I177: 2019 | J177: 2014-06-30 | K177: 2019-06-30 | L177: 2014 | M177: 2019 | N177: 06/30/2014 - 06/30/2019
A178: GUADALUPE | B178: Santa Barbara County | C178: 01/01/2014-09/30/2022 | D178: 02/15/2015 - 02/15/2023 | E178: Guadalupe | F178: 2014-01-01 | G178: 2022-09-30 | H178: 2014 | I178: 2022 | J178: 2015-02-15 | K178: 2023-02-15 | L178: 2015 | M178: 2023 | N178: 02/15/2015 - 02/15/2023
A179: GUSTINE | B179: Merced County | C179: 01/01/2014-12/31/2023 | D179: 03/31/2016 - 03/31/2024 | E179: Gustine | F179: 2014-01-01 | G179: 2023-12-31 | H179: 2014 | I179: 2023 | J179: 2016-03-31 | K179: 2024-03-31 | L179: 2016 | M179: 2024 | N179: 03/31/2016 - 03/31/2024
A180: HALF MOON BAY | B180: San Mateo County | C180: 01/01/2014-10/31/2022 | D180: 01/31/2015 - 01/31/2023 | E180: Half Moon Bay | F180: 2014-01-01 | G180: 2022-10-31 | H180: 2014 | I180: 2022 | J180: 2015-01-31 | K180: 2023-01-31 | L180: 2015 | M180: 2023 | N180: 01/31/2015 - 01/31/2023
A181: HANFORD | B181: Kings County | C181: 01/01/2014-12/31/2023 | D181: 01/31/2016 - 01/31/2024 | E181: Hanford | F181: 2014-01-01 | G181: 2023-12-31 | H181: 2014 | I181: 2023 | J181: 2016-01-31 | K181: 2024-01-31 | L181: 2016 | M181: 2024 | N181: 01/31/2016 - 01/31/2024
A182: HAWAIIAN GARDENS | B182: Los Angeles County | C182: 01/01/2014-10/31/2021 | D182: 10/15/2013 - 10/15/2021 | E182: Hawaiian Gardens | F182: 2014-01-01 | G182: 2021-10-31 | H182: 2014 | I182: 2021 | J182: 2013-10-15 | K182: 2021-10-15 | L182: 2013 | M182: 2021 | N182: 10/15/2013 - 10/15/2021
A183: HAWTHORNE | B183: Los Angeles County | C183: 01/01/2014-10/31/2021 | D183: 10/15/2013 - 10/15/2021 | E183: Hawthorne | F183: 2014-01-01 | G183: 2021-10-31 | H183: 2014 | I183: 2021 | J183: 2013-10-15 | K183: 2021-10-15 | L183: 2013 | M183: 2021 | N183: 10/15/2013 - 10/15/2021
A184: HAYWARD | B184: Alameda County | C184: 01/01/2014-10/31/2022 | D184: 01/31/2015 - 01/31/2023 | E184: Hayward | F184: 2014-01-01 | G184: 2022-10-31 | H184: 2014 | I184: 2022 | J184: 2015-01-31 | K184: 2023-01-31 | L184: 2015 | M184: 2023 | N184: 01/31/2015 - 01/31/2023
A185: HEALDSBURG | B185: Sonoma County | C185: 01/01/2014-10/31/2022 | D185: 01/31/2015 - 01/31/2023 | E185: Healdsburg | F185: 2014-01-01 | G185: 2022-10-31 | H185: 2014 | I185: 2022 | J185: 2015-01-31 | K185: 2023-01-31 | L185: 2015 | M185: 2023 | N185: 01/31/2015 - 01/31/2023
A186: HEMET | B186: Riverside County | C186: 01/01/2014-10/31/2021 | D186: 10/15/2013 - 10/15/2021 | E186: Hemet | F186: 2014-01-01 | G186: 2021-10-31 | H186: 2014 | I186: 2021 | J186: 2013-10-15 | K186: 2021-10-15 | L186: 2013 | M186: 2021 | N186: 10/15/2013 - 10/15/2021
A187: HERCULES | B187: Contra Costa County | C187: 01/01/2014-10/31/2022 | D187: 01/31/2015 - 01/31/2023 | E187: Hercules | F187: 2014-01-01 | G187: 2022-10-31 | H187: 2014 | I187: 2022 | J187: 2015-01-31 | K187: 2023-01-31 | L187: 2015 | M187: 2023 | N187: 01/31/2015 - 01/31/2023
A188: HERMOSA BEACH | B188: Los Angeles County | C188: 01/01/2014-10/31/2021 | D188: 10/15/2013 - 10/15/2021 | E188: Hermosa Beach | F188: 2014-01-01 | G188: 2021-10-31 | H188: 2014 | I188: 2021 | J188: 2013-10-15 | K188: 2021-10-15 | L188: 2013 | M188: 2021 | N188: 10/15/2013 - 10/15/2021
A189: HESPERIA | B189: San Bernardino County | C189: 01/01/2014-10/31/2021 | D189: 10/15/2013 - 10/15/2021 | E189: Hesperia | F189: 2014-01-01 | G189: 2021-10-31 | H189: 2014 | I189: 2021 | J189: 2013-10-15 | K189: 2021-10-15 | L189: 2013 | M189: 2021 | N189: 10/15/2013 - 10/15/2021
A190: HIDDEN HILLS | B190: Los Angeles County | C190: 01/01/2014-10/31/2021 | D190: 10/15/2013 - 10/15/2021 | E190: Hidden Hills | F190: 2014-01-01 | G190: 2021-10-31 | H190: 2014 | I190: 2021 | J190: 2013-10-15 | K190: 2021-10-15 | L190: 2013 | M190: 2021 | N190: 10/15/2013 - 10/15/2021
A191: HIGHLAND | B191: San Bernardino County | C191: 01/01/2014-10/31/2021 | D191: 10/15/2013 - 10/15/2021 | E191: Highland | F191: 2014-01-01 | G191: 2021-10-31 | H191: 2014 | I191: 2021 | J191: 2013-10-15 | K191: 2021-10-15 | L191: 2013 | M191: 2021 | N191: 10/15/2013 - 10/15/2021
A192: HILLSBOROUGH | B192: San Mateo County | C192: 01/01/2014-10/31/2022 | D192: 01/31/2015 - 01/31/2023 | E192: Hillsborough | F192: 2014-01-01 | G192: 2022-10-31 | H192: 2014 | I192: 2022 | J192: 2015-01-31 | K192: 2023-01-31 | L192: 2015 | M192: 2023 | N192: 01/31/2015 - 01/31/2023
A193: HOLLISTER | B193: San Benito County | C193: 01/01/2014-12/31/2023 | D193: 12/31/2015 - 12/31/2023 | E193: Hollister | F193: 2014-01-01 | G193: 2023-12-31 | H193: 2014 | I193: 2023 | J193: 2015-12-31 | K193: 2023-12-31 | L193: 2015 | M193: 2023 | N193: 12/31/2015 - 12/31/2023
A194: HOLTVILLE | B194: Imperial County | C194: 01/01/2014-10/31/2021 | D194: 10/15/2013 - 10/15/2021 | E194: =(PROPER(A194)) -> Holtville | F194: 2014-01-01 | G194: 2021-10-31 | H194: =YEAR(F194) -> 2014 | I194: =YEAR(G194) -> 2021 | J194: 2013-10-15 | K194: 2021-10-15 | L194: =YEAR(J194) -> 2013 | M194: =YEAR(K194) -> 2021 | N194: 10/15/2013 - 10/15/2021
A195: HUGHSON | B195: Stanislaus County | C195: 01/01/2014-09/30/2023 | D195: 12/31/2015 - 12/31/2023 | E195: Hughson | F195: 2014-01-01 | G195: 2023-09-30 | H195: 2014 | I195: 2023 | J195: 2015-12-31 | K195: 2023-12-31 | L195: 2015 | M195: 2023 | N195: 12/31/2015 - 12/31/2023
A196: =B196 -> Humboldt County - Unincorporated | B196: Humboldt County - Unincorporated | C196: 01/01/2014-06/30/2019 | D196: 06/30/2014 - 06/30/2019 | E196: Humboldt County - Unincorporated | F196: 2014-01-01 | G196: 2019-06-30 | H196: 2014 | I196: 2019 | J196: 2014-06-30 | K196: 2019-06-30 | L196: 2014 | M196: 2019 | N196: 06/30/2014 - 06/30/2019
A197: HUNTINGTON BEACH | B197: Orange County | C197: 01/01/2014-10/31/2021 | D197: 10/15/2013 - 10/15/2021 | E197: Huntington Beach | F197: 2014-01-01 | G197: 2021-10-31 | H197: 2014 | I197: 2021 | J197: 2013-10-15 | K197: 2021-10-15 | L197: 2013 | M197: 2021 | N197: 10/15/2013 - 10/15/2021
A198: HUNTINGTON PARK | B198: Los Angeles County | C198: 01/01/2014-10/31/2021 | D198: 10/15/2013 - 10/15/2021 | E198: Huntington Park | F198: 2014-01-01 | G198: 2021-10-31 | H198: 2014 | I198: 2021 | J198: 2013-10-15 | K198: 2021-10-15 | L198: 2013 | M198: 2021 | N198: 10/15/2013 - 10/15/2021
A199: HURON | B199: Fresno County | C199: 01/01/2013-12/31/2023 | D199: 12/31/2015 - 12/31/2023 | E199: Huron | F199: 2013-01-01 | G199: 2023-12-31 | H199: 2013 | I199: 2023 | J199: 2015-12-31 | K199: 2023-12-31 | L199: 2015 | M199: 2023 | N199: 12/31/2015 - 12/31/2023
A200: IMPERIAL | B200: Imperial County | C200: 01/01/2014-10/31/2021 | D200: 10/15/2013 - 10/15/2021 | E200: Imperial | F200: 2014-01-01 | G200: 2021-10-31 | H200: 2014 | I200: 2021 | J200: 2013-10-15 | K200: 2021-10-15 | L200: 2013 | M200: 2021 | N200: 10/15/2013 - 10/15/2021
... 340 more rows

Sheet RHNA past year values (hidden)
A1: Jurisdiction | B1: PLANNING PERIOD | C1: APR YEAR | D1: Lookup value | E1: MIN VLI RHNA | F1: SUM VLI PERMITS | G1: SUM VLI (DR) UNITS | H1: SUM VLI (NDR) UNITS | I1: VLI REMAIN UNITS | J1: MIN LI RHNA | K1: SUM LI PERMITS | L1: SUM LI (DR) UNITS | M1: SUM LI (NDR) UNITS | N1: LI REMAIN UNITS | O1: MIN MOD RHNA | P1: SUM MOD PERMITS | Q1: MOD REMAIN UNITS | R1: MIN ABOVE MOD RHNA | S1: SUM ABOVE MOD PERMITS | T1: ABOVE MOD REMAIN UNITS | U1: MIN RHNA TOTAL | V1: SUM TOTAL PERMITS
A2: Adelanto | B2: =VLOOKUP(A2,'Planning Periods'!$E$2:$N$540,10,FALSE) -> 10/15/2013 - 10/15/2021 | C2: 2013 | D2: =CONCATENATE(A2," ",C2) -> Adelanto 2013
A3: Adelanto | B3: =VLOOKUP(A3,'Planning Periods'!$E$2:$N$540,10,FALSE) -> 10/15/2013 - 10/15/2021 | C3: 2014 | D3: Adelanto 2014
A4: Adelanto | B4: =VLOOKUP(A4,'Planning Periods'!$E$2:$N$540,10,FALSE) -> 10/15/2013 - 10/15/2021 | C4: 2015 | D4: Adelanto 2015
A5: Adelanto | B5: =VLOOKUP(A5,'Planning Periods'!$E$2:$N$540,10,FALSE) -> 10/15/2013 - 10/15/2021 | C5: 2016 | D5: Adelanto 2016
A6: Adelanto | B6: =VLOOKUP(A6,'Planning Periods'!$E$2:$N$540,10,FALSE) -> 10/15/2013 - 10/15/2021 | C6: 2017 | D6: =CONCATENATE(A6," ",C6) -> Adelanto 2017
A7: Agoura Hills | B7: =VLOOKUP(A7,'Planning Periods'!$E$2:$N$540,10,FALSE) -> 10/15/2013 - 10/15/2021 | C7: 2013 | D7: Agoura Hills 2013
A8: Agoura Hills | B8: =VLOOKUP(A8,'Planning Periods'!$E$2:$N$540,10,FALSE) -> 10/15/2013 - 10/15/2021 | C8: 2014 | D8: Agoura Hills 2014 | E8: 31 | F8: 0 | G8: 0 | H8: 0 | J8: 19 | K8: 0 | L8: 0 | M8: 0 | O8: 20 | P8: 0 | R8: 45 | S8: 17 | U8: 115 | V8: 17
A9: Agoura Hills | B9: =VLOOKUP(A9,'Planning Periods'!$E$2:$N$540,10,FALSE) -> 10/15/2013 - 10/15/2021 | C9: 2015 | D9: Agoura Hills 2015 | E9: 31 | F9: 0 | G9: 0 | H9: 0 | J9: 19 | K9: 0 | L9: 0 | M9: 0 | O9: 20 | P9: 0 | R9: 45 | S9: 15 | U9: 115 | V9: 15
A10: Agoura Hills | B10: =VLOOKUP(A10,'Planning Periods'!$E$2:$N$540,10,FALSE) -> 10/15/2013 - 10/15/2021 | C10: 2016 | D10: Agoura Hills 2016 | E10: 31 | F10: 0 | G10: 0 | H10: 0 | J10: 19 | K10: 0 | L10: 0 | M10: 0 | O10: 20 | P10: 0 | R10: 45 | S10: 2 | U10: 115 | V10: 2
A11: Agoura Hills | B11: =VLOOKUP(A11,'Planning Periods'!$E$2:$N$540,10,FALSE) -> 10/15/2013 - 10/15/2021 | C11: 2017 | D11: Agoura Hills 2017 | E11: 31 | F11: 0 | G11: 0 | H11: 0 | J11: 19 | K11: 0 | L11: 0 | M11: 0 | O11: 20 | P11: 0 | R11: 45 | S11: 7 | U11: 115 | V11: 7
A12: Alameda | B12: =VLOOKUP(A12,'Planning Periods'!$E$2:$N$540,10,FALSE) -> 01/31/2015 - 01/31/2023 | C12: 2014 | D12: Alameda 2014
A13: Alameda | B13: =VLOOKUP(A13,'Planning Periods'!$E$2:$N$540,10,FALSE) -> 01/31/2015 - 01/31/2023 | C13: 2015 | D13: Alameda 2015 | E13: 444 | F13: 19 | G13: 19 | H13: 0 | J13: 248 | K13: 22 | L13: 22 | M13: 0 | O13: 283 | P13: 14 | R13: 748 | S13: 192 | U13: 1723 | V13: 247
A14: Alameda | B14: =VLOOKUP(A14,'Planning Periods'!$E$2:$N$540,10,FALSE) -> 01/31/2015 - 01/31/2023 | C14: 2016 | D14: Alameda 2016 | E14: 444 | F14: =SUM(G14:H14) -> 17 | G14: 17 | H14: 0 | J14: 248 | K14: =SUM(L14:M14) -> 14 | L14: 14 | M14: 0 | O14: 283 | P14: 7 | R14: 748 | S14: 61 | U14: 1723 | V14: 99
A15: Alameda | B15: =VLOOKUP(A15,'Planning Periods'!$E$2:$N$540,10,FALSE) -> 01/31/2015 - 01/31/2023 | C15: 2017 | D15: Alameda 2017 | E15: 444 | F15: 18 | G15: 18 | H15: 0 | J15: 248 | K15: 4 | L15: 4 | M15: 0 | O15: 283 | P15: 5 | R15: 748 | S15: 66 | U15: 1723 | V15: 93
A16: Alameda County - Unincorporated | B16: =VLOOKUP(A16,'Planning Periods'!$E$2:$N$540,10,FALSE) -> 01/31/2015 - 01/31/2023 | C16: 2014 | D16: Alameda County - Unincorporated 2014
A17: Alameda County - Unincorporated | B17: =VLOOKUP(A17,'Planning Periods'!$E$2:$N$540,10,FALSE) -> 01/31/2015 - 01/31/2023 | C17: 2015 | D17: Alameda County - Unincorporated 2015 | E17: 430 | F17: 35 | G17: 35 | H17: 0 | J17: 227 | K17: 65 | L17: 65 | M17: 0 | O17: 295 | P17: 21 | R17: 817 | S17: 17 | U17: 1769 | V17: 138
A18: Alameda County - Unincorporated | B18: =VLOOKUP(A18,'Planning Periods'!$E$2:$N$540,10,FALSE) -> 01/31/2015 - 01/31/2023 | C18: 2016 | D18: Alameda County - Unincorporated 2016 | E18: 430 | F18: 85 | G18: 85 | H18: 0 | J18: 227 | K18: 8 | L18: 8 | M18: 0 | O18: 295 | P18: 0 | R18: 817 | S18: 9 | U18: 1769 | V18: 102
A19: Alameda County - Unincorporated | B19: =VLOOKUP(A19,'Planning Periods'!$E$2:$N$540,10,FALSE) -> 01/31/2015 - 01/31/2023 | C19: 2017 | D19: Alameda County - Unincorporated 2017 | E19: 430 | F19: 0 | G19: 0 | H19: 0 | J19: 227 | K19: 3 | L19: 0 | M19: 3 | O19: 295 | P19: 0 | R19: 817 | S19: 32 | U19: 1769 | V19: 35
A20: Albany | B20: =VLOOKUP(A20,'Planning Periods'!$E$2:$N$540,10,FALSE) -> 01/31/2015 - 01/31/2023 | C20: 2014 | D20: Albany 2014
A21: Albany | B21: =VLOOKUP(A21,'Planning Periods'!$E$2:$N$540,10,FALSE) -> 01/31/2015 - 01/31/2023 | C21: 2015 | D21: Albany 2015
A22: Albany | B22: =VLOOKUP(A22,'Planning Periods'!$E$2:$N$540,10,FALSE) -> 01/31/2015 - 01/31/2023 | C22: 2016 | D22: Albany 2016 | E22: 80 | F22: 0 | G22: 0 | H22: 0 | J22: 53 | K22: 0 | L22: 0 | M22: 0 | O22: 57 | P22: 0 | R22: 145 | S22: 186 | U22: 335 | V22: 186
A23: Albany | B23: =VLOOKUP(A23,'Planning Periods'!$E$2:$N$540,10,FALSE) -> 01/31/2015 - 01/31/2023 | C23: 2017 | D23: Albany 2017 | E23: 80 | F23: 0 | G23: 0 | H23: 0 | J23: 53 | K23: 0 | L23: 0 | M23: 0 | O23: 57 | P23: 4 | R23: 145 | S23: 8 | U23: 335 | V23: 12
A24: Alhambra | B24: =VLOOKUP(A24,'Planning Periods'!$E$2:$N$540,10,FALSE) -> 10/15/2013 - 10/15/2021 | C24: 2013 | D24: Alhambra 2013
A25: Alhambra | B25: =VLOOKUP(A25,'Planning Periods'!$E$2:$N$540,10,FALSE) -> 10/15/2013 - 10/15/2021 | C25: 2014 | D25: Alhambra 2014 | E25: 380 | F25: 0 | G25: 0 | H25: 0 | J25: 224 | K25: 8 | L25: 8 | M25: 0 | O25: 246 | P25: 3 | R25: 642 | S25: 29 | U25: 1492 | V25: 40
A26: Alhambra | B26: =VLOOKUP(A26,'Planning Periods'!$E$2:$N$540,10,FALSE) -> 10/15/2013 - 10/15/2021 | C26: 2015 | D26: Alhambra 2015 | E26: 380 | F26: 0 | G26: 0 | H26: 0 | J26: 224 | K26: 0 | L26: 0 | M26: 0 | O26: 246 | P26: 0 | R26: 642 | S26: 0 | U26: 1492 | V26: 0
A27: Alhambra | B27: =VLOOKUP(A27,'Planning Periods'!$E$2:$N$540,10,FALSE) -> 10/15/2013 - 10/15/2021 | C27: 2016 | D27: Alhambra 2016 | E27: 380 | F27: 0 | G27: 0 | H27: 0 | J27: 224 | K27: 0 | L27: 0 | M27: 0 | O27: 246 | P27: 0 | R27: 642 | S27: 38 | U27: 1492 | V27: 38
A28: Alhambra | B28: =VLOOKUP(A28,'Planning Periods'!$E$2:$N$540,10,FALSE) -> 10/15/2013 - 10/15/2021 | C28: 2017 | D28: Alhambra 2017 | E28: 380 | F28: 0 | G28: 0 | H28: 0 | J28: 224 | K28: 0 | L28: 0 | M28: 0 | O28: 246 | P28: 0 | R28: 642 | S28: 74 | U28: 1492 | V28: 74
A29: Aliso Viejo | B29: =VLOOKUP(A29,'Planning Periods'!$E$2:$N$540,10,FALSE) -> 10/15/2013 - 10/15/2021 | C29: 2013 | D29: Aliso Viejo 2013
A30: Aliso Viejo | B30: =VLOOKUP(A30,'Planning Periods'!$E$2:$N$540,10,FALSE) -> 10/15/2013 - 10/15/2021 | C30: 2014 | D30: Aliso Viejo 2014 | E30: 210 | F30: 0 | G30: 0 | H30: 0 | J30: 80 | K30: 0 | L30: 0 | M30: 0 | O30: 7 | P30: 1 | R30: 18 | S30: 0 | U30: 315 | V30: 1
A31: Aliso Viejo | B31: =VLOOKUP(A31,'Planning Periods'!$E$2:$N$540,10,FALSE) -> 10/15/2013 - 10/15/2021 | C31: 2015 | D31: Aliso Viejo 2015 | E31: 210 | F31: 33 | G31: 33 | H31: 0 | J31: 80 | K31: 187 | L31: 187 | M31: 0 | O31: 7 | P31: 834 | R31: 18 | S31: 0 | U31: 315 | V31: 1054
A32: Aliso Viejo | B32: =VLOOKUP(A32,'Planning Periods'!$E$2:$N$540,10,FALSE) -> 10/15/2013 - 10/15/2021 | C32: 2016 | D32: Aliso Viejo 2016 | E32: 210 | F32: 50 | G32: 50 | H32: 0 | J32: 80 | K32: 148 | L32: 148 | M32: 0 | O32: 7 | P32: 4 | R32: 18 | S32: 0 | U32: 315 | V32: 202
A33: Aliso Viejo | B33: =VLOOKUP(A33,'Planning Periods'!$E$2:$N$540,10,FALSE) -> 10/15/2013 - 10/15/2021 | C33: 2017 | D33: Aliso Viejo 2017 | E33: 210 | F33: 0 | G33: 0 | H33: 0 | J33: 80 | K33: 0 | L33: 0 | M33: 0 | O33: 7 | P33: 0 | R33: 18 | S33: 0 | U33: 315 | V33: 0
A34: Alpine County - Unincorporated | B34: =VLOOKUP(A34,'Planning Periods'!$E$2:$N$540,10,FALSE) -> 06/30/2014 - 06/30/2019 | C34: 2014 | D34: Alpine County - Unincorporated 2014 | E34: 7 | F34: 0 | G34: 0 | H34: 0 | J34: 6 | K34: 0 | L34: 0 | M34: 0 | O34: 6 | P34: 1 | R34: 11 | S34: 1 | U34: 30 | V34: 2
A35: Alpine County - Unincorporated | B35: =VLOOKUP(A35,'Planning Periods'!$E$2:$N$540,10,FALSE) -> 06/30/2014 - 06/30/2019 | C35: 2015 | D35: Alpine County - Unincorporated 2015 | E35: 7 | F35: 0 | G35: 0 | H35: 0 | J35: 6 | K35: 0 | L35: 0 | M35: 0 | O35: 6 | P35: 0 | R35: 11 | S35: 4 | U35: 30 | V35: 4
A36: Alpine County - Unincorporated | B36: =VLOOKUP(A36,'Planning Periods'!$E$2:$N$540,10,FALSE) -> 06/30/2014 - 06/30/2019 | C36: 2016 | D36: Alpine County - Unincorporated 2016 | E36: 7 | F36: 0 | G36: 0 | H36: 0 | J36: 6 | K36: 0 | L36: 0 | M36: 0 | O36: 6 | P36: 0 | R36: 11 | S36: 2 | U36: 30 | V36: 2
A37: Alpine County - Unincorporated | B37: =VLOOKUP(A37,'Planning Periods'!$E$2:$N$540,10,FALSE) -> 06/30/2014 - 06/30/2019 | C37: 2017 | D37: Alpine County - Unincorporated 2017 | E37: 7 | F37: 0 | G37: 0 | H37: 0 | J37: 6 | K37: 2 | L37: 0 | M37: 2 | O37: 6 | P37: 3 | R37: 11 | S37: 3 | U37: 30 | V37: 8
A38: Alturas | B38: =VLOOKUP(A38,'Planning Periods'!$E$2:$N$540,10,FALSE) -> 06/30/2014 - 06/30/2019 | C38: 2014 | D38: Alturas 2014 | E38: 0 | F38: 0 | G38: 0 | H38: 0 | I38: 0 | J38: 0 | K38: 0 | L38: 0 | M38: 0 | N38: 0 | O38: 0 | P38: 0 | Q38: 0 | R38: 0 | S38: 0 | T38: 0 | U38: 0 | V38: 0
A39: Alturas | B39: =VLOOKUP(A39,'Planning Periods'!$E$2:$N$540,10,FALSE) -> 06/30/2014 - 06/30/2019 | C39: 2015 | D39: Alturas 2015
A40: Alturas | B40: =VLOOKUP(A40,'Planning Periods'!$E$2:$N$540,10,FALSE) -> 06/30/2014 - 06/30/2019 | C40: 2016 | D40: Alturas 2016
A41: Alturas | B41: =VLOOKUP(A41,'Planning Periods'!$E$2:$N$540,10,FALSE) -> 06/30/2014 - 06/30/2019 | C41: 2017 | D41: Alturas 2017
A42: Amador City | B42: =VLOOKUP(A42,'Planning Periods'!$E$2:$N$540,10,FALSE) -> 06/30/2014 - 06/30/2019 | C42: 2014 | D42: Amador City 2014 | E42: 0 | F42: 0 | G42: 0 | H42: 0 | I42: 0 | J42: 0 | K42: 0 | L42: 0 | M42: 0 | N42: 0 | O42: 0 | P42: 0 | Q42: 0 | R42: 0 | S42: 0 | T42: 0 | U42: 0 | V42: 0
A43: Amador City | B43: =VLOOKUP(A43,'Planning Periods'!$E$2:$N$540,10,FALSE) -> 06/30/2014 - 06/30/2019 | C43: 2015 | D43: Amador City 2015
A44: Amador City | B44: =VLOOKUP(A44,'Planning Periods'!$E$2:$N$540,10,FALSE) -> 06/30/2014 - 06/30/2019 | C44: 2016 | D44: Amador City 2016
A45: Amador City | B45: =VLOOKUP(A45,'Planning Periods'!$E$2:$N$540,10,FALSE) -> 06/30/2014 - 06/30/2019 | C45: 2017 | D45: Amador City 2017
A46: Amador County - Unincorporated | B46: =VLOOKUP(A46,'Planning Periods'!$E$2:$N$540,10,FALSE) -> 06/30/2014 - 06/30/2019 | C46: 2014 | D46: Amador County - Unincorporated 2014
A47: Amador County - Unincorporated | B47: =VLOOKUP(A47,'Planning Periods'!$E$2:$N$540,10,FALSE) -> 06/30/2014 - 06/30/2019 | C47: 2015 | D47: Amador County - Unincorporated 2015
A48: Amador County - Unincorporated | B48: =VLOOKUP(A48,'Planning Periods'!$E$2:$N$540,10,FALSE) -> 06/30/2014 - 06/30/2019 | C48: 2016 | D48: Amador County - Unincorporated 2016
A49: Amador County - Unincorporated | B49: =VLOOKUP(A49,'Planning Periods'!$E$2:$N$540,10,FALSE) -> 06/30/2014 - 06/30/2019 | C49: 2017 | D49: Amador County - Unincorporated 2017 | E49: 10 | F49: 0 | G49: 0 | H49: 0 | J49: 7 | K49: 2 | L49: 1 | M49: 1 | O49: 9 | P49: 13 | R49: 23 | S49: 17 | U49: 49 | V49: 32
A50: American Canyon | B50: =VLOOKUP(A50,'Planning Periods'!$E$2:$N$540,10,FALSE) -> 01/31/2015 - 01/31/2023 | C50: 2014 | D50: American Canyon 2014
A51: American Canyon | B51: =VLOOKUP(A51,'Planning Periods'!$E$2:$N$540,10,FALSE) -> 01/31/2015 - 01/31/2023 | C51: 2015 | D51: American Canyon 2015 | E51: 116 | F51: 0 | G51: 0 | H51: 0 | J51: 54 | K51: 9 | L51: 9 | M51: 0 | O51: 58 | P51: 280 | R51: 164 | S51: 148 | U51: 392 | V51: 437
A52: American Canyon | B52: =VLOOKUP(A52,'Planning Periods'!$E$2:$N$540,10,FALSE) -> 01/31/2015 - 01/31/2023 | C52: 2016 | D52: American Canyon 2016 | E52: 116 | F52: 0 | G52: 0 | H52: 0 | J52: 54 | K52: 0 | L52: 0 | M52: 0 | O52: 58 | P52: 0 | R52: 164 | S52: 0 | U52: 392 | V52: 0
A53: American Canyon | B53: =VLOOKUP(A53,'Planning Periods'!$E$2:$N$540,10,FALSE) -> 01/31/2015 - 01/31/2023 | C53: 2017 | D53: American Canyon 2017 | E53: 116 | F53: 49 | G53: 49 | H53: 0 | J53: 54 | K53: 20 | L53: 20 | M53: 0 | O53: 58 | P53: 1 | R53: 164 | S53: 0 | U53: 392 | V53: 70
A54: Anaheim | B54: =VLOOKUP(A54,'Planning Periods'!$E$2:$N$540,10,FALSE) -> 10/15/2013 - 10/15/2021 | C54: 2013 | D54: Anaheim 2013
A55: Anaheim | B55: =VLOOKUP(A55,'Planning Periods'!$E$2:$N$540,10,FALSE) -> 10/15/2013 - 10/15/2021 | C55: 2014 | D55: Anaheim 2014 | E55: 1256 | F55: 0 | G55: 0 | H55: 0 | J55: 907 | K55: 9 | L55: 9 | M55: 0 | O55: 1038 | P55: 21 | R55: 2501 | S55: 1271 | U55: 5702 | V55: 1301
A56: Anaheim | B56: =VLOOKUP(A56,'Planning Periods'!$E$2:$N$540,10,FALSE) -> 10/15/2013 - 10/15/2021 | C56: 2015 | D56: Anaheim 2015 | E56: 1256 | F56: 69 | G56: 69 | H56: 0 | J56: 907 | K56: 13 | L56: 13 | M56: 0 | O56: 1038 | P56: 23 | R56: 2501 | S56: 1169 | U56: 5702 | V56: 1274
A57: Anaheim | B57: =VLOOKUP(A57,'Planning Periods'!$E$2:$N$540,10,FALSE) -> 10/15/2013 - 10/15/2021 | C57: 2016 | D57: Anaheim 2016 | E57: 1256 | F57: 0 | G57: 0 | H57: 0 | J57: 907 | K57: 0 | L57: 0 | M57: 0 | O57: 1038 | P57: 0 | R57: 2501 | S57: 1317 | U57: 5702 | V57: 1317
A58: Anaheim | B58: =VLOOKUP(A58,'Planning Periods'!$E$2:$N$540,10,FALSE) -> 10/15/2013 - 10/15/2021 | C58: 2017 | D58: Anaheim 2017 | E58: 1256 | F58: 2 | G58: 2 | H58: 0 | J58: 907 | K58: 0 | L58: 0 | M58: 0 | O58: 1038 | P58: 0 | R58: 2501 | S58: 1533 | U58: 5702 | V58: 1535
A59: Anderson | B59: =VLOOKUP(A59,'Planning Periods'!$E$2:$N$540,10,FALSE) -> 06/30/2014 - 06/30/2019 | C59: 2014 | D59: Anderson 2014
A60: Anderson | B60: =VLOOKUP(A60,'Planning Periods'!$E$2:$N$540,10,FALSE) -> 06/30/2014 - 06/30/2019 | C60: 2015 | D60: Anderson 2015 | E60: 32 | F60: 0 | G60: 0 | H60: 0 | J60: 21 | K60: 0 | L60: 0 | M60: 0 | O60: 24 | P60: 19 | R60: 59 | S60: 1 | U60: 136 | V60: 20
A61: Anderson | B61: =VLOOKUP(A61,'Planning Periods'!$E$2:$N$540,10,FALSE) -> 06/30/2014 - 06/30/2019 | C61: 2016 | D61: Anderson 2016 | E61: 32 | F61: 0 | G61: 0 | H61: 0 | J61: 21 | K61: 4 | L61: 4 | M61: 0 | O61: 24 | P61: 33 | R61: 59 | S61: 9 | U61: 136 | V61: 46
A62: Anderson | B62: =VLOOKUP(A62,'Planning Periods'!$E$2:$N$540,10,FALSE) -> 06/30/2014 - 06/30/2019 | C62: 2017 | D62: Anderson 2017 | E62: 32 | F62: 23 | G62: 23 | H62: 0 | J62: 21 | K62: 15 | L62: 15 | M62: 0 | O62: 24 | P62: 40 | R62: 59 | S62: 23 | U62: 136 | V62: 101
A63: Angels Camp | B63: =VLOOKUP(A63,'Planning Periods'!$E$2:$N$540,10,FALSE) -> 06/30/2014 - 06/30/2019 | C63: 2014 | D63: Angels Camp 2014 | E63: 0 | F63: 0 | G63: 0 | H63: 0 | I63: 0 | J63: 0 | K63: 0 | L63: 0 | M63: 0 | N63: 0 | O63: 0 | P63: 0 | Q63: 0 | R63: 0 | S63: 0 | T63: 0 | U63: 0 | V63: 0
A64: Angels Camp | B64: =VLOOKUP(A64,'Planning Periods'!$E$2:$N$540,10,FALSE) -> 06/30/2014 - 06/30/2019 | C64: 2015 | D64: Angels Camp 2015
A65: Angels Camp | B65: =VLOOKUP(A65,'Planning Periods'!$E$2:$N$540,10,FALSE) -> 06/30/2014 - 06/30/2019 | C65: 2016 | D65: Angels Camp 2016
A66: Angels Camp | B66: =VLOOKUP(A66,'Planning Periods'!$E$2:$N$540,10,FALSE) -> 06/30/2014 - 06/30/2019 | C66: 2017 | D66: Angels Camp 2017
A67: Antioch | B67: =VLOOKUP(A67,'Planning Periods'!$E$2:$N$540,10,FALSE) -> 01/31/2015 - 01/31/2023 | C67: 2014 | D67: =CONCATENATE(A67," ",C67) -> Antioch 2014
A68: Antioch | B68: =VLOOKUP(A68,'Planning Periods'!$E$2:$N$540,10,FALSE) -> 01/31/2015 - 01/31/2023 | C68: 2015 | D68: Antioch 2015 | E68: 349 | F68: 1 | G68: 0 | H68: 1 | J68: 205 | K68: 0 | L68: 0 | M68: 0 | O68: 214 | P68: 19 | R68: 680 | S68: 47 | U68: 1448 | V68: 67
A69: Antioch | B69: =VLOOKUP(A69,'Planning Periods'!$E$2:$N$540,10,FALSE) -> 01/31/2015 - 01/31/2023 | C69: 2016 | D69: Antioch 2016 | E69: 349 | F69: 84 | G69: 84 | H69: 0 | J69: 205 | K69: 0 | L69: 0 | M69: 0 | O69: 214 | P69: 1 | R69: 680 | S69: 42 | U69: 1448 | V69: 127
A70: Antioch | B70: =VLOOKUP(A70,'Planning Periods'!$E$2:$N$540,10,FALSE) -> 01/31/2015 - 01/31/2023 | C70: 2017 | D70: Antioch 2017 | E70: 349 | F70: 2 | G70: 2 | H70: 0 | J70: 205 | K70: 0 | L70: 0 | M70: 0 | O70: 214 | P70: 0 | R70: 680 | S70: 41 | U70: 1448 | V70: 43
A71: Apple Valley | B71: =VLOOKUP(A71,'Planning Periods'!$E$2:$N$540,10,FALSE) -> 10/15/2013 - 10/15/2021 | C71: 2013 | D71: Apple Valley 2013
A72: Apple Valley | B72: =VLOOKUP(A72,'Planning Periods'!$E$2:$N$540,10,FALSE) -> 10/15/2013 - 10/15/2021 | C72: 2014 | D72: Apple Valley 2014
A73: Apple Valley | B73: =VLOOKUP(A73,'Planning Periods'!$E$2:$N$540,10,FALSE) -> 10/15/2013 - 10/15/2021 | C73: 2015 | D73: Apple Valley 2015 | E73: 764 | F73: 0 | G73: 0 | H73: 0 | J73: 541 | K73: 0 | L73: 0 | M73: 0 | O73: 622 | P73: 0 | R73: 1407 | S73: 0 | U73: 3334 | V73: 0
A74: Apple Valley | B74: =VLOOKUP(A74,'Planning Periods'!$E$2:$N$540,10,FALSE) -> 10/15/2013 - 10/15/2021 | C74: 2016 | D74: Apple Valley 2016 | E74: 764 | F74: 0 | G74: 0 | H74: 0 | J74: 541 | K74: 0 | L74: 0 | M74: 0 | O74: 622 | P74: 0 | R74: 1407 | S74: 0 | U74: 3334 | V74: 0
A75: Apple Valley | B75: =VLOOKUP(A75,'Planning Periods'!$E$2:$N$540,10,FALSE) -> 10/15/2013 - 10/15/2021 | C75: 2017 | D75: Apple Valley 2017 | E75: 764 | F75: 0 | G75: 0 | H75: 0 | J75: 541 | K75: 0 | L75: 0 | M75: 0 | O75: 622 | P75: 0 | R75: 1407 | S75: 0 | U75: 3334 | V75: 0
A76: Arcadia | B76: =VLOOKUP(A76,'Planning Periods'!$E$2:$N$540,10,FALSE) -> 10/15/2013 - 10/15/2021 | C76: 2013 | D76: Arcadia 2013
A77: Arcadia | B77: =VLOOKUP(A77,'Planning Periods'!$E$2:$N$540,10,FALSE) -> 10/15/2013 - 10/15/2021 | C77: 2013 | D77: Arcadia 2013
A78: Arcadia | B78: =VLOOKUP(A78,'Planning Periods'!$E$2:$N$540,10,FALSE) -> 10/15/2013 - 10/15/2021 | C78: 2014 | D78: Arcadia 2014
A79: Arcadia | B79: =VLOOKUP(A79,'Planning Periods'!$E$2:$N$540,10,FALSE) -> 10/15/2013 - 10/15/2021 | C79: 2015 | D79: Arcadia 2015
A80: Arcadia | B80: =VLOOKUP(A80,'Planning Periods'!$E$2:$N$540,10,FALSE) -> 10/15/2013 - 10/15/2021 | C80: 2016 | D80: Arcadia 2016
A81: Arcadia | B81: =VLOOKUP(A81,'Planning Periods'!$E$2:$N$540,10,FALSE) -> 10/15/2013 - 10/15/2021 | C81: 2017 | D81: Arcadia 2017 | E81: 276 | F81: 0 | G81: 0 | H81: 0 | J81: 167 | K81: 0 | L81: 0 | M81: 0 | O81: 177 | P81: 38 | R81: 434 | S81: 101 | U81: 1054 | V81: 139
A82: Arcata | B82: =VLOOKUP(A82,'Planning Periods'!$E$2:$N$540,10,FALSE) -> 06/30/2014 - 06/30/2019 | C82: 2014 | D82: Arcata 2014 | E82: 85 | F82: 26 | G82: 26 | H82: 0 | J82: 56 | K82: 5 | L82: 5 | M82: 0 | O82: 62 | P82: 8 | R82: 160 | S82: 7 | U82: 363 | V82: 46
A83: Arcata | B83: =VLOOKUP(A83,'Planning Periods'!$E$2:$N$540,10,FALSE) -> 06/30/2014 - 06/30/2019 | C83: 2015 | D83: Arcata 2015 | E83: 85 | F83: 17 | G83: 17 | H83: 0 | J83: 56 | K83: 0 | L83: 0 | M83: 0 | O83: 62 | P83: 3 | R83: 160 | S83: 2 | U83: 363 | V83: 22
A84: Arcata | B84: =VLOOKUP(A84,'Planning Periods'!$E$2:$N$540,10,FALSE) -> 06/30/2014 - 06/30/2019 | C84: 2016 | D84: Arcata 2016 | E84: 85 | F84: 0 | G84: 0 | H84: 0 | J84: 56 | K84: 0 | L84: 0 | M84: 0 | O84: 62 | P84: 43 | R84: 160 | S84: 7 | U84: 363 | V84: 50
A85: Arcata | B85: =VLOOKUP(A85,'Planning Periods'!$E$2:$N$540,10,FALSE) -> 06/30/2014 - 06/30/2019 | C85: 2017 | D85: Arcata 2017 | E85: 85 | F85: 0 | G85: 0 | H85: 0 | J85: 56 | K85: 0 | L85: 0 | M85: 0 | O85: 62 | P85: 164 | R85: 160 | S85: 5 | U85: 363 | V85: 169
A86: Arroyo Grande | B86: =VLOOKUP(A86,'Planning Periods'!$E$2:$N$540,10,FALSE) -> 06/30/2014 - 06/30/2019 | C86: 2014 | D86: Arroyo Grande 2014
A87: Arroyo Grande | B87: =VLOOKUP(A87,'Planning Periods'!$E$2:$N$540,10,FALSE) -> 06/30/2014 - 06/30/2019 | C87: 2015 | D87: Arroyo Grande 2015
A88: Arroyo Grande | B88: =VLOOKUP(A88,'Planning Periods'!$E$2:$N$540,10,FALSE) -> 06/30/2014 - 06/30/2019 | C88: 2016 | D88: Arroyo Grande 2016
A89: Arroyo Grande | B89: =VLOOKUP(A89,'Planning Periods'!$E$2:$N$540,10,FALSE) -> 06/30/2014 - 06/30/2019 | C89: 2017 | D89: Arroyo Grande 2017 | E89: 60 | F89: 0 | G89: 0 | H89: 0 | J89: 38 | K89: 4 | L89: 0 | M89: 4 | O89: 43 | P89: 0 | R89: 101 | S89: 37 | U89: 242 | V89: 41
A90: Artesia | B90: =VLOOKUP(A90,'Planning Periods'!$E$2:$N$540,10,FALSE) -> 10/15/2013 - 10/15/2021 | C90: 2013 | D90: Artesia 2013
A91: Artesia | B91: =VLOOKUP(A91,'Planning Periods'!$E$2:$N$540,10,FALSE) -> 10/15/2013 - 10/15/2021 | C91: 2014 | D91: Artesia 2014 | E91: 31 | F91: 0 | G91: 0 | H91: 0 | J91: 18 | K91: 0 | L91: 0 | M91: 0 | O91: 20 | P91: 0 | R91: 51 | S91: 17 | U91: 120 | V91: 17
A92: Artesia | B92: =VLOOKUP(A92,'Planning Periods'!$E$2:$N$540,10,FALSE) -> 10/15/2013 - 10/15/2021 | C92: 2015 | D92: Artesia 2015 | E92: 31 | F92: 0 | G92: 0 | H92: 0 | J92: 18 | K92: 0 | L92: 0 | M92: 0 | O92: 20 | P92: 0 | R92: 51 | S92: 8 | U92: 120 | V92: 8
A93: Artesia | B93: =VLOOKUP(A93,'Planning Periods'!$E$2:$N$540,10,FALSE) -> 10/15/2013 - 10/15/2021 | C93: 2016 | D93: Artesia 2016 | E93: 31 | F93: 0 | G93: 0 | H93: 0 | J93: 18 | K93: 0 | L93: 0 | M93: 0 | O93: 20 | P93: 0 | R93: 51 | S93: 22 | U93: 120 | V93: 22
A94: Artesia | B94: =VLOOKUP(A94,'Planning Periods'!$E$2:$N$540,10,FALSE) -> 10/15/2013 - 10/15/2021 | C94: 2017 | D94: Artesia 2017 | E94: 31 | F94: 0 | G94: 0 | H94: 0 | J94: 18 | K94: 0 | L94: 0 | M94: 0 | O94: 20 | P94: 0 | R94: 51 | S94: 8 | U94: 120 | V94: 8
A95: Arvin | B95: =VLOOKUP(A95,'Planning Periods'!$E$2:$N$540,10,FALSE) -> 12/31/2015 - 12/31/2023 | C95: 2013 | D95: Arvin 2013
A96: Arvin | B96: =VLOOKUP(A96,'Planning Periods'!$E$2:$N$540,10,FALSE) -> 12/31/2015 - 12/31/2023 | C96: 2014 | D96: Arvin 2014
A97: Arvin | B97: =VLOOKUP(A97,'Planning Periods'!$E$2:$N$540,10,FALSE) -> 12/31/2015 - 12/31/2023 | C97: 2015 | D97: Arvin 2015 | E97: 398 | F97: 0 | G97: 0 | H97: 0 | J97: 239 | K97: 26 | L97: 9 | M97: 17 | O97: 183 | P97: 60 | R97: 349 | S97: 0 | U97: 1169 | V97: 86
A98: Arvin | B98: =VLOOKUP(A98,'Planning Periods'!$E$2:$N$540,10,FALSE) -> 12/31/2015 - 12/31/2023 | C98: 2016 | D98: Arvin 2016 | E98: 398 | F98: 0 | G98: 0 | H98: 0 | J98: 239 | K98: 24 | L98: 11 | M98: 13 | O98: 183 | P98: 29 | R98: 349 | S98: 0 | U98: 1169 | V98: 53
A99: Arvin | B99: =VLOOKUP(A99,'Planning Periods'!$E$2:$N$540,10,FALSE) -> 12/31/2015 - 12/31/2023 | C99: 2017 | D99: Arvin 2017 | E99: 398 | F99: 0 | G99: 0 | H99: 0 | J99: 239 | K99: 6 | L99: 0 | M99: 6 | O99: 183 | P99: 79 | R99: 349 | S99: 0 | U99: 1169 | V99: 85
A100: Atascadero | B100: =VLOOKUP(A100,'Planning Periods'!$E$2:$N$540,10,FALSE) -> 06/30/2014 - 06/30/2019 | C100: 2014 | D100: Atascadero 2014 | E100: 98 | F100: 2 | G100: 2 | H100: 0 | J100: 62 | K100: 1 | L100: 1 | M100: 0 | O100: 69 | P100: 76 | R100: 164 | S100: 106 | U100: 393 | V100: 185
A101: Atascadero | B101: =VLOOKUP(A101,'Planning Periods'!$E$2:$N$540,10,FALSE) -> 06/30/2014 - 06/30/2019 | C101: 2015 | D101: Atascadero 2015 | E101: 98 | F101: 1 | G101: 1 | H101: 0 | J101: 62 | K101: 0 | L101: 0 | M101: 0 | O101: 69 | P101: 58 | R101: 164 | S101: 29 | U101: 393 | V101: 88
A102: Atascadero | B102: =VLOOKUP(A102,'Planning Periods'!$E$2:$N$540,10,FALSE) -> 06/30/2014 - 06/30/2019 | C102: 2016 | D102: Atascadero 2016 | E102: 98 | F102: 45 | G102: 45 | H102: 0 | J102: 62 | K102: 25 | L102: 25 | M102: 0 | O102: 69 | P102: 29 | R102: 164 | S102: 21 | U102: 393 | V102: 120
A103: Atascadero | B103: =VLOOKUP(A103,'Planning Periods'!$E$2:$N$540,10,FALSE) -> 06/30/2014 - 06/30/2019 | C103: 2017 | D103: Atascadero 2017
A104: Atherton | B104: =VLOOKUP(A104,'Planning Periods'!$E$2:$N$540,10,FALSE) -> 01/31/2015 - 01/31/2023 | C104: 2014 | D104: Atherton 2014 | E104: 35 | F104: 1 | G104: 0 | H104: 1 | J104: 26 | K104: 3 | L104: 0 | M104: 3 | O104: 29 | P104: 0 | R104: 3 | S104: 1 | U104: 93 | V104: 5
A105: Atherton | B105: =VLOOKUP(A105,'Planning Periods'!$E$2:$N$540,10,FALSE) -> 01/31/2015 - 01/31/2023 | C105: 2015 | D105: Atherton 2015 | E105: 35 | F105: 12 | G105: 12 | H105: 0 | J105: 26 | K105: 0 | L105: 0 | M105: 0 | O105: 29 | P105: 0 | R105: 3 | S105: 0 | U105: 93 | V105: 12
A106: Atherton | B106: =VLOOKUP(A106,'Planning Periods'!$E$2:$N$540,10,FALSE) -> 01/31/2015 - 01/31/2023 | C106: 2016 | D106: Atherton 2016 | E106: 35 | F106: 5 | G106: 0 | H106: 5 | J106: 26 | K106: 3 | L106: 0 | M106: 3 | O106: 29 | P106: 2 | R106: 3 | S106: 5 | U106: 93 | V106: 15
A107: Atherton | B107: =VLOOKUP(A107,'Planning Periods'!$E$2:$N$540,10,FALSE) -> 01/31/2015 - 01/31/2023 | C107: 2017 | D107: Atherton 2017 | E107: 35 | F107: 6 | G107: 0 | H107: 6 | J107: 26 | K107: 5 | L107: 0 | M107: 5 | O107: 29 | P107: 0 | R107: 3 | S107: 25 | U107: 93 | V107: 36
A108: Atwater | B108: =VLOOKUP(A108,'Planning Periods'!$E$2:$N$540,10,FALSE) -> 03/31/2016 - 03/31/2024 | C108: 2014 | D108: Atwater 2014
A109: Atwater | B109: =VLOOKUP(A109,'Planning Periods'!$E$2:$N$540,10,FALSE) -> 03/31/2016 - 03/31/2024 | C109: 2015 | D109: Atwater 2015
A110: Atwater | B110: =VLOOKUP(A110,'Planning Periods'!$E$2:$N$540,10,FALSE) -> 03/31/2016 - 03/31/2024 | C110: 2016 | D110: Atwater 2016 | E110: 429 | F110: 0 | G110: 0 | H110: 0 | J110: 307 | K110: 0 | L110: 0 | M110: 0 | O110: 281 | P110: 0 | R110: 748 | S110: 235 | U110: 1765 | V110: 235
A111: Atwater | B111: =VLOOKUP(A111,'Planning Periods'!$E$2:$N$540,10,FALSE) -> 03/31/2016 - 03/31/2024 | C111: 2017 | D111: Atwater 2017 | E111: 429 | F111: 0 | G111: 0 | H111: 0 | J111: 307 | K111: 0 | L111: 0 | M111: 0 | O111: 281 | P111: 0 | R111: 748 | S111: 133 | U111: 1765 | V111: 133
A112: Auburn | B112: =VLOOKUP(A112,'Planning Periods'!$E$2:$N$540,10,FALSE) -> 10/31/2013 - 10/31/2021 | C112: 2013 | D112: Auburn 2013 | E112: 74 | F112: 0 | G112: 0 | H112: 0 | J112: 52 | K112: 0 | L112: 0 | M112: 0 | O112: 57 | P112: 2 | R112: 125 | S112: 10 | U112: 308 | V112: 12
A113: Auburn | B113: =VLOOKUP(A113,'Planning Periods'!$E$2:$N$540,10,FALSE) -> 10/31/2013 - 10/31/2021 | C113: 2014 | D113: Auburn 2014 | E113: 74 | F113: 0 | G113: 0 | H113: 0 | J113: 52 | K113: 0 | L113: 0 | M113: 0 | O113: 57 | P113: 0 | R113: 125 | S113: 13 | U113: 308 | V113: 13
A114: Auburn | B114: =VLOOKUP(A114,'Planning Periods'!$E$2:$N$540,10,FALSE) -> 10/31/2013 - 10/31/2021 | C114: 2015 | D114: Auburn 2015 | E114: 74 | F114: 0 | G114: 0 | H114: 0 | J114: 52 | K114: 0 | L114: 0 | M114: 0 | O114: 57 | P114: 0 | R114: 125 | S114: 10 | U114: 308 | V114: 10
A115: Auburn | B115: =VLOOKUP(A115,'Planning Periods'!$E$2:$N$540,10,FALSE) -> 10/31/2013 - 10/31/2021 | C115: 2016 | D115: Auburn 2016 | E115: 74 | F115: 0 | G115: 0 | H115: 0 | J115: 52 | K115: 0 | L115: 0 | M115: 0 | O115: 57 | P115: 9 | R115: 125 | S115: 13 | U115: 308 | V115: 22
A116: Auburn | B116: =VLOOKUP(A116,'Planning Periods'!$E$2:$N$540,10,FALSE) -> 10/31/2013 - 10/31/2021 | C116: 2017 | D116: Auburn 2017 | E116: 74 | F116: 0 | G116: 0 | H116: 0 | J116: 52 | K116: 0 | L116: 0 | M116: 0 | O116: 57 | P116: 22 | R116: 125 | S116: 17 | U116: 308 | V116: 39
A117: Avalon | B117: =VLOOKUP(A117,'Planning Periods'!$E$2:$N$540,10,FALSE) -> 10/15/2013 - 10/15/2021 | C117: 2013 | D117: Avalon 2013
A118: Avalon | B118: =VLOOKUP(A118,'Planning Periods'!$E$2:$N$540,10,FALSE) -> 10/15/2013 - 10/15/2021 | C118: 2014 | D118: Avalon 2014 | E118: 20 | F118: 0 | G118: 0 | H118: 0 | J118: 12 | K118: 0 | L118: 0 | M118: 0 | O118: 14 | P118: 0 | R118: 34 | S118: 2 | U118: 80 | V118: 2
A119: Avalon | B119: =VLOOKUP(A119,'Planning Periods'!$E$2:$N$540,10,FALSE) -> 10/15/2013 - 10/15/2021 | C119: 2015 | D119: Avalon 2015 | E119: 20 | F119: 0 | G119: 0 | H119: 0 | J119: 12 | K119: 0 | L119: 0 | M119: 0 | O119: 14 | P119: 0 | R119: 34 | S119: 1 | U119: 80 | V119: 1
A120: Avalon | B120: =VLOOKUP(A120,'Planning Periods'!$E$2:$N$540,10,FALSE) -> 10/15/2013 - 10/15/2021 | C120: 2016 | D120: Avalon 2016 | E120: 20 | F120: 0 | G120: 0 | H120: 0 | J120: 12 | K120: 0 | L120: 0 | M120: 0 | O120: 14 | P120: 0 | R120: 34 | S120: 0 | U120: 80 | V120: 0
A121: Avalon | B121: =VLOOKUP(A121,'Planning Periods'!$E$2:$N$540,10,FALSE) -> 10/15/2013 - 10/15/2021 | C121: 2017 | D121: Avalon 2017 | E121: 20 | F121: 0 | G121: 0 | H121: 0 | J121: 12 | K121: 0 | L121: 0 | M121: 0 | O121: 14 | P121: 0 | R121: 34 | S121: 1 | U121: 80 | V121: 1
A122: Avenal | B122: =VLOOKUP(A122,'Planning Periods'!$E$2:$N$540,10,FALSE) -> 01/31/2016 - 01/31/2024 | C122: 2014 | D122: Avenal 2014
A123: Avenal | B123: =VLOOKUP(A123,'Planning Periods'!$E$2:$N$540,10,FALSE) -> 01/31/2016 - 01/31/2024 | C123: 2015 | D123: Avenal 2015
A124: Avenal | B124: =VLOOKUP(A124,'Planning Periods'!$E$2:$N$540,10,FALSE) -> 01/31/2016 - 01/31/2024 | C124: 2016 | D124: Avenal 2016
A125: Avenal | B125: =VLOOKUP(A125,'Planning Periods'!$E$2:$N$540,10,FALSE) -> 01/31/2016 - 01/31/2024 | C125: 2017 | D125: Avenal 2017 | E125: 72 | F125: 0 | G125: 0 | H125: 0 | J125: 108 | K125: 2 | L125: 2 | M125: 0 | O125: 115 | P125: 6 | R125: 115 | S125: 0 | U125: 410 | V125: 8
A126: Azusa | B126: =VLOOKUP(A126,'Planning Periods'!$E$2:$N$540,10,FALSE) -> 10/15/2013 - 10/15/2021 | C126: 2013 | D126: Azusa 2013
A127: Azusa | B127: =VLOOKUP(A127,'Planning Periods'!$E$2:$N$540,10,FALSE) -> 10/15/2013 - 10/15/2021 | C127: 2014 | D127: Azusa 2014 | E127: 0 | F127: 0 | G127: 0 | H127: 0 | I127: 0 | J127: 0 | K127: 0 | L127: 0 | M127: 0 | N127: 0 | O127: 0 | P127: 0 | Q127: 0 | R127: 0 | S127: 0 | T127: 0 | U127: 0 | V127: 0
A128: Azusa | B128: =VLOOKUP(A128,'Planning Periods'!$E$2:$N$540,10,FALSE) -> 10/15/2013 - 10/15/2021 | C128: 2015 | D128: Azusa 2015
A129: Azusa | B129: =VLOOKUP(A129,'Planning Periods'!$E$2:$N$540,10,FALSE) -> 10/15/2013 - 10/15/2021 | C129: 2016 | D129: Azusa 2016
A130: Azusa | B130: =VLOOKUP(A130,'Planning Periods'!$E$2:$N$540,10,FALSE) -> 10/15/2013 - 10/15/2021 | C130: 2017 | D130: Azusa 2017
A131: Bakersfield | B131: =VLOOKUP(A131,'Planning Periods'!$E$2:$N$540,10,FALSE) -> 12/31/2015 - 12/31/2023 | C131: 2013 | D131: Bakersfield 2013
A132: Bakersfield | B132: =VLOOKUP(A132,'Planning Periods'!$E$2:$N$540,10,FALSE) -> 12/31/2015 - 12/31/2023 | C132: 2014 | D132: =CONCATENATE(A132," ",C132) -> Bakersfield 2014
A133: Bakersfield | B133: =VLOOKUP(A133,'Planning Periods'!$E$2:$N$540,10,FALSE) -> 12/31/2015 - 12/31/2023 | C133: 2015 | D133: Bakersfield 2015
A134: Bakersfield | B134: =VLOOKUP(A134,'Planning Periods'!$E$2:$N$540,10,FALSE) -> 12/31/2015 - 12/31/2023 | C134: 2016 | D134: Bakersfield 2016
A135: Bakersfield | B135: =VLOOKUP(A135,'Planning Periods'!$E$2:$N$540,10,FALSE) -> 12/31/2015 - 12/31/2023 | C135: 2017 | D135: Bakersfield 2017 | E135: 9706 | F135: 182 | G135: 182 | H135: 0 | J135: 5800 | K135: 76 | L135: 76 | M135: 0 | O135: 6453 | P135: 4388 | R135: 14331 | S135: 3117 | U135: 36290 | V135: 7763
A136: Baldwin Park | B136: =VLOOKUP(A136,'Planning Periods'!$E$2:$N$540,10,FALSE) -> 10/15/2013 - 10/15/2021 | C136: 2013 | D136: Baldwin Park 2013
A137: Baldwin Park | B137: =VLOOKUP(A137,'Planning Periods'!$E$2:$N$540,10,FALSE) -> 10/15/2013 - 10/15/2021 | C137: 2014 | D137: Baldwin Park 2014 | E137: 142 | F137: 47 | G137: 47 | H137: 0 | J137: 83 | K137: 16 | L137: 16 | M137: 0 | O137: 90 | P137: 0 | R137: 242 | S137: 19 | U137: 557 | V137: 82
A138: Baldwin Park | B138: =VLOOKUP(A138,'Planning Periods'!$E$2:$N$540,10,FALSE) -> 10/15/2013 - 10/15/2021 | C138: 2015 | D138: Baldwin Park 2015 | E138: 142 | F138: 0 | G138: 0 | H138: 0 | J138: 83 | K138: 1 | L138: 1 | M138: 0 | O138: 90 | P138: 0 | R138: 242 | S138: 21 | U138: 557 | V138: 22
A139: Baldwin Park | B139: =VLOOKUP(A139,'Planning Periods'!$E$2:$N$540,10,FALSE) -> 10/15/2013 - 10/15/2021 | C139: 2016 | D139: Baldwin Park 2016 | E139: 142 | F139: 0 | G139: 0 | H139: 0 | J139: 83 | K139: 0 | L139: 0 | M139: 0 | O139: 90 | P139: 0 | R139: 242 | S139: 31 | U139: 557 | V139: 31
A140: Baldwin Park | B140: =VLOOKUP(A140,'Planning Periods'!$E$2:$N$540,10,FALSE) -> 10/15/2013 - 10/15/2021 | C140: 2017 | D140: Baldwin Park 2017 | E140: 142 | F140: 0 | G140: 0 | H140: 0 | J140: 83 | K140: 0 | L140: 0 | M140: 0 | O140: 90 | P140: 1 | R140: 242 | S140: 56 | U140: 557 | V140: 57
A141: Banning | B141: =VLOOKUP(A141,'Planning Periods'!$E$2:$N$540,10,FALSE) -> 10/15/2013 - 10/15/2021 | C141: 2013 | D141: Banning 2013
A142: Banning | B142: =VLOOKUP(A142,'Planning Periods'!$E$2:$N$540,10,FALSE) -> 10/15/2013 - 10/15/2021 | C142: 2014 | D142: Banning 2014 | E142: 872 | F142: 0 | G142: 0 | H142: 0 | J142: 593 | K142: 0 | L142: 0 | M142: 0 | O142: 685 | P142: 0 | R142: 1642 | S142: 0 | U142: 3792 | V142: 0
A143: Banning | B143: =VLOOKUP(A143,'Planning Periods'!$E$2:$N$540,10,FALSE) -> 10/15/2013 - 10/15/2021 | C143: 2015 | D143: Banning 2015 | E143: 872 | F143: 0 | G143: 0 | H143: 0 | J143: 593 | K143: 0 | L143: 0 | M143: 0 | O143: 685 | P143: 0 | R143: 1642 | S143: 0 | U143: 3792 | V143: 0
A144: Banning | B144: =VLOOKUP(A144,'Planning Periods'!$E$2:$N$540,10,FALSE) -> 10/15/2013 - 10/15/2021 | C144: 2016 | D144: Banning 2016 | E144: 872 | F144: 0 | G144: 0 | H144: 0 | J144: 593 | K144: 0 | L144: 0 | M144: 0 | O144: 685 | P144: 0 | R144: 1642 | S144: 0 | U144: 3792 | V144: 0
A145: Banning | B145: =VLOOKUP(A145,'Planning Periods'!$E$2:$N$540,10,FALSE) -> 10/15/2013 - 10/15/2021 | C145: 2017 | D145: Banning 2017 | E145: 872 | F145: 0 | G145: 0 | H145: 0 | J145: 593 | K145: 0 | L145: 0 | M145: 0 | O145: 685 | P145: 0 | R145: 1642 | S145: 0 | U145: 3792 | V145: 0
A146: Barstow | B146: =VLOOKUP(A146,'Planning Periods'!$E$2:$N$540,10,FALSE) -> 10/15/2013 - 10/15/2021 | C146: 2013 | D146: Barstow 2013
A147: Barstow | B147: =VLOOKUP(A147,'Planning Periods'!$E$2:$N$540,10,FALSE) -> 10/15/2013 - 10/15/2021 | C147: 2014 | D147: Barstow 2014
A148: Barstow | B148: =VLOOKUP(A148,'Planning Periods'!$E$2:$N$540,10,FALSE) -> 10/15/2013 - 10/15/2021 | C148: 2015 | D148: Barstow 2015
A149: Barstow | B149: =VLOOKUP(A149,'Planning Periods'!$E$2:$N$540,10,FALSE) -> 10/15/2013 - 10/15/2021 | C149: 2016 | D149: Barstow 2016 | E149: 188 | F149: 0 | G149: 0 | H149: 0 | J149: 138 | K149: 0 | L149: 0 | M149: 0 | O149: 154 | P149: 0 | R149: 363 | S149: 0 | U149: 843 | V149: 0
A150: Barstow | B150: =VLOOKUP(A150,'Planning Periods'!$E$2:$N$540,10,FALSE) -> 10/15/2013 - 10/15/2021 | C150: 2017 | D150: Barstow 2017 | E150: 188 | F150: 0 | G150: 0 | H150: 0 | J150: 138 | K150: 0 | L150: 0 | M150: 0 | O150: 154 | P150: 2 | R150: 363 | S150: 1 | U150: 843 | V150: 3
A151: Beaumont | B151: =VLOOKUP(A151,'Planning Periods'!$E$2:$N$540,10,FALSE) -> 10/15/2013 - 10/15/2021 | C151: 2013 | D151: Beaumont 2013
A152: Beaumont | B152: =VLOOKUP(A152,'Planning Periods'!$E$2:$N$540,10,FALSE) -> 10/15/2013 - 10/15/2021 | C152: 2014 | D152: Beaumont 2014
A153: Beaumont | B153: =VLOOKUP(A153,'Planning Periods'!$E$2:$N$540,10,FALSE) -> 10/15/2013 - 10/15/2021 | C153: 2015 | D153: Beaumont 2015
A154: Beaumont | B154: =VLOOKUP(A154,'Planning Periods'!$E$2:$N$540,10,FALSE) -> 10/15/2013 - 10/15/2021 | C154: 2016 | D154: Beaumont 2016
A155: Beaumont | B155: =VLOOKUP(A155,'Planning Periods'!$E$2:$N$540,10,FALSE) -> 10/15/2013 - 10/15/2021 | C155: 2017 | D155: Beaumont 2017 | E155: 1267 | F155: 0 | G155: 0 | H155: 0 | J155: 854 | K155: 0 | L155: 0 | M155: 0 | O155: 969 | P155: 323 | R155: 2160 | S155: 423 | U155: 5250 | V155: 746
A156: Bell | B156: =VLOOKUP(A156,'Planning Periods'!$E$2:$N$540,10,FALSE) -> 10/15/2013 - 10/15/2021 | C156: 2013 | D156: Bell 2013
A157: Bell | B157: =VLOOKUP(A157,'Planning Periods'!$E$2:$N$540,10,FALSE) -> 10/15/2013 - 10/15/2021 | C157: 2014 | D157: Bell 2014 | E157: 11 | F157: 0 | G157: 0 | H157: 0 | J157: 7 | K157: 0 | L157: 0 | M157: 0 | O157: 8 | P157: 0 | R157: 21 | S157: 0 | U157: 47 | V157: 0
A158: Bell | B158: =VLOOKUP(A158,'Planning Periods'!$E$2:$N$540,10,FALSE) -> 10/15/2013 - 10/15/2021 | C158: 2015 | D158: Bell 2015 | E158: 11 | F158: 0 | G158: 0 | H158: 0 | J158: 7 | K158: 0 | L158: 0 | M158: 0 | O158: 8 | P158: 3 | R158: 21 | S158: 0 | U158: 47 | V158: 3
A159: Bell | B159: =VLOOKUP(A159,'Planning Periods'!$E$2:$N$540,10,FALSE) -> 10/15/2013 - 10/15/2021 | C159: 2016 | D159: Bell 2016 | E159: 11 | F159: 0 | G159: 0 | H159: 0 | J159: 7 | K159: 0 | L159: 0 | M159: 0 | O159: 8 | P159: 0 | R159: 21 | S159: 10 | U159: 47 | V159: 10
A160: Bell | B160: =VLOOKUP(A160,'Planning Periods'!$E$2:$N$540,10,FALSE) -> 10/15/2013 - 10/15/2021 | C160: 2017 | D160: Bell 2017 | E160: 11 | F160: 65 | G160: 65 | H160: 0 | J160: 7 | K160: 0 | L160: 0 | M160: 0 | O160: 8 | P160: 0 | R160: 21 | S160: 62 | U160: 47 | V160: 127
A161: Bell Gardens | B161: =VLOOKUP(A161,'Planning Periods'!$E$2:$N$540,10,FALSE) -> 10/15/2013 - 10/15/2021 | C161: 2013 | D161: Bell Gardens 2013
A162: Bell Gardens | B162: =VLOOKUP(A162,'Planning Periods'!$E$2:$N$540,10,FALSE) -> 10/15/2013 - 10/15/2021 | C162: 2014 | D162: Bell Gardens 2014 | E162: 11 | F162: 0 | G162: 0 | H162: 0 | J162: 7 | K162: 0 | L162: 0 | M162: 0 | O162: 8 | P162: 4 | R162: 20 | S162: 2 | U162: 46 | V162: 6
A163: Bell Gardens | B163: =VLOOKUP(A163,'Planning Periods'!$E$2:$N$540,10,FALSE) -> 10/15/2013 - 10/15/2021 | C163: 2015 | D163: Bell Gardens 2015 | E163: 11 | F163: 0 | G163: 0 | H163: 0 | J163: 7 | K163: 0 | L163: 0 | M163: 0 | O163: 8 | P163: 1 | R163: 20 | S163: 3 | U163: 46 | V163: 4
A164: Bell Gardens | B164: =VLOOKUP(A164,'Planning Periods'!$E$2:$N$540,10,FALSE) -> 10/15/2013 - 10/15/2021 | C164: 2016 | D164: Bell Gardens 2016 | E164: 11 | F164: 0 | G164: 0 | H164: 0 | J164: 7 | K164: 0 | L164: 0 | M164: 0 | O164: 8 | P164: 0 | R164: 20 | S164: 5 | U164: 46 | V164: 5
A165: Bell Gardens | B165: =VLOOKUP(A165,'Planning Periods'!$E$2:$N$540,10,FALSE) -> 10/15/2013 - 10/15/2021 | C165: 2017 | D165: Bell Gardens 2017 | E165: 11 | F165: 0 | G165: 0 | H165: 0 | J165: 7 | K165: 0 | L165: 0 | M165: 0 | O165: 8 | P165: 5 | R165: 20 | S165: 7 | U165: 46 | V165: 12
A166: Bellflower | C166: 2013 | D166: Bellflower 2013
A167: Bellflower | B167: =VLOOKUP(A167,'Planning Periods'!$E$2:$N$540,10,FALSE) -> 10/15/2013 - 10/15/2021 | C167: 2014 | D167: Bellflower 2014 | E167: 1 | F167: 0 | G167: 0 | H167: 0 | J167: 1 | K167: 0 | L167: 0 | M167: 0 | O167: 0 | P167: 0 | R167: 0 | S167: 67 | U167: 2 | V167: 67
A168: Bellflower | B168: =VLOOKUP(A168,'Planning Periods'!$E$2:$N$540,10,FALSE) -> 10/15/2013 - 10/15/2021 | C168: 2015 | D168: Bellflower 2015 | E168: 1 | F168: 0 | G168: 0 | H168: 0 | J168: 1 | K168: 0 | L168: 0 | M168: 0 | O168: 0 | P168: 0 | R168: 0 | S168: 3 | U168: 2 | V168: 3
A169: Bellflower | B169: =VLOOKUP(A169,'Planning Periods'!$E$2:$N$540,10,FALSE) -> 10/15/2013 - 10/15/2021 | C169: 2016 | D169: Bellflower 2016 | E169: 1 | F169: 0 | G169: 0 | H169: 0 | J169: 1 | K169: 6 | L169: 6 | M169: 0 | O169: 0 | P169: 6 | R169: 0 | S169: 108 | U169: 2 | V169: 120
A170: Bellflower | B170: =VLOOKUP(A170,'Planning Periods'!$E$2:$N$540,10,FALSE) -> 10/15/2013 - 10/15/2021 | C170: 2017 | D170: Bellflower 2017 | E170: 1 | F170: 0 | G170: 0 | H170: 0 | J170: 1 | K170: 0 | L170: 0 | M170: 0 | O170: 0 | P170: 0 | R170: 0 | S170: 64 | U170: 2 | V170: 64
A171: Belmont | B171: =VLOOKUP(A171,'Planning Periods'!$E$2:$N$540,10,FALSE) -> 01/31/2015 - 01/31/2023 | C171: 2014 | D171: Belmont 2014 | E171: 116 | F171: 0 | G171: 0 | H171: 0 | J171: 63 | K171: 0 | L171: 0 | M171: 0 | O171: 67 | P171: 0 | R171: 222 | S171: 18 | U171: 468 | V171: 18
A172: Belmont | B172: =VLOOKUP(A172,'Planning Periods'!$E$2:$N$540,10,FALSE) -> 01/31/2015 - 01/31/2023 | C172: 2015 | D172: Belmont 2015 | E172: 116 | F172: 0 | G172: 0 | H172: 0 | J172: 63 | K172: 0 | L172: 0 | M172: 0 | O172: 67 | P172: 0 | R172: 222 | S172: 7 | U172: 468 | V172: 7
A173: Belmont | B173: =VLOOKUP(A173,'Planning Periods'!$E$2:$N$540,10,FALSE) -> 01/31/2015 - 01/31/2023 | C173: 2016 | D173: Belmont 2016 | E173: 116 | F173: 0 | G173: 0 | H173: 0 | J173: 63 | K173: 0 | L173: 0 | M173: 0 | O173: 67 | P173: 0 | R173: 222 | S173: 7 | U173: 468 | V173: 7
A174: Belmont | B174: =VLOOKUP(A174,'Planning Periods'!$E$2:$N$540,10,FALSE) -> 01/31/2015 - 01/31/2023 | C174: 2017 | D174: Belmont 2017 | E174: 116 | F174: 0 | G174: 0 | H174: 0 | J174: 63 | K174: 0 | L174: 0 | M174: 0 | O174: 67 | P174: 4 | R174: 222 | S174: 109 | U174: 468 | V174: 113
A175: Belvedere | B175: =VLOOKUP(A175,'Planning Periods'!$E$2:$N$540,10,FALSE) -> 01/31/2015 - 01/31/2023 | C175: 2014 | D175: Belvedere 2014
A176: Belvedere | B176: =VLOOKUP(A176,'Planning Periods'!$E$2:$N$540,10,FALSE) -> 01/31/2015 - 01/31/2023 | C176: 2015 | D176: Belvedere 2015 | E176: 4 | F176: 0 | G176: 0 | H176: 0 | J176: 3 | K176: 0 | L176: 0 | M176: 0 | O176: 4 | P176: 0 | R176: 5 | S176: 0 | U176: 16 | V176: 0
A177: Belvedere | B177: =VLOOKUP(A177,'Planning Periods'!$E$2:$N$540,10,FALSE) -> 01/31/2015 - 01/31/2023 | C177: 2016 | D177: Belvedere 2016 | E177: 4 | F177: 0 | G177: 0 | H177: 0 | J177: 3 | K177: 0 | L177: 0 | M177: 0 | O177: 4 | P177: 0 | R177: 5 | S177: 0 | U177: 16 | V177: 0
A178: Belvedere | B178: =VLOOKUP(A178,'Planning Periods'!$E$2:$N$540,10,FALSE) -> 01/31/2015 - 01/31/2023 | C178: 2017 | D178: Belvedere 2017 | E178: 4 | F178: 0 | G178: 0 | H178: 0 | J178: 3 | K178: 0 | L178: 0 | M178: 0 | O178: 4 | P178: 3 | R178: 5 | S178: 1 | U178: 16 | V178: 4
A179: Benicia | B179: =VLOOKUP(A179,'Planning Periods'!$E$2:$N$540,10,FALSE) -> 01/31/2015 - 01/31/2023 | C179: 2014 | D179: Benicia 2014 | E179: 94 | F179: 0 | G179: 0 | H179: 0 | J179: 54 | K179: 0 | L179: 0 | M179: 0 | O179: 56 | P179: 0 | R179: 123 | S179: 4 | U179: 327 | V179: 4
A180: Benicia | B180: =VLOOKUP(A180,'Planning Periods'!$E$2:$N$540,10,FALSE) -> 01/31/2015 - 01/31/2023 | C180: 2015 | D180: Benicia 2015 | E180: 94 | F180: 0 | G180: 0 | H180: 0 | J180: 54 | K180: 1 | L180: 1 | M180: 0 | O180: 56 | P180: 0 | R180: 123 | S180: 2 | U180: 327 | V180: 3
A181: Benicia | B181: =VLOOKUP(A181,'Planning Periods'!$E$2:$N$540,10,FALSE) -> 01/31/2015 - 01/31/2023 | C181: 2016 | D181: Benicia 2016 | E181: 94 | F181: 0 | G181: 0 | H181: 0 | J181: 54 | K181: 2 | L181: 2 | M181: 0 | O181: 56 | P181: 0 | R181: 123 | S181: 1 | U181: 327 | V181: 3
A182: Benicia | B182: =VLOOKUP(A182,'Planning Periods'!$E$2:$N$540,10,FALSE) -> 01/31/2015 - 01/31/2023 | C182: 2017 | D182: Benicia 2017 | E182: 94 | F182: 1 | G182: 1 | H182: 0 | J182: 54 | K182: 0 | L182: 0 | M182: 0 | O182: 56 | P182: 0 | R182: 123 | S182: 8 | U182: 327 | V182: 9
A183: Berkeley | B183: =VLOOKUP(A183,'Planning Periods'!$E$2:$N$540,10,FALSE) -> 01/31/2015 - 01/31/2023 | C183: 2014 | D183: Berkeley 2014
A184: Berkeley | B184: =VLOOKUP(A184,'Planning Periods'!$E$2:$N$540,10,FALSE) -> 01/31/2015 - 01/31/2023 | C184: 2015 | D184: Berkeley 2015 | E184: 532 | F184: 59 | G184: 59 | H184: 0 | J184: 442 | K184: 17 | L184: 17 | M184: 0 | O184: 584 | P184: 132 | R184: 1401 | S184: 326 | U184: 2959 | V184: 534
A185: Berkeley | B185: =VLOOKUP(A185,'Planning Periods'!$E$2:$N$540,10,FALSE) -> 01/31/2015 - 01/31/2023 | C185: 2016 | D185: Berkeley 2016 | E185: 532 | F185: 16 | G185: 16 | H185: 0 | J185: 442 | K185: 0 | L185: 0 | M185: 0 | O185: 584 | P185: 0 | R185: 1401 | S185: 212 | U185: 2959 | V185: 228
A186: Berkeley | B186: =VLOOKUP(A186,'Planning Periods'!$E$2:$N$540,10,FALSE) -> 01/31/2015 - 01/31/2023 | C186: 2017 | D186: Berkeley 2017 | E186: 532 | F186: 10 | G186: 10 | H186: 0 | J186: 442 | K186: 0 | L186: 0 | M186: 0 | O186: 584 | P186: 0 | R186: 1401 | S186: 262 | U186: 2959 | V186: 272
A187: Beverly Hills | C187: 2013 | D187: Beverly Hills 2013
A188: Beverly Hills | B188: =VLOOKUP(A188,'Planning Periods'!$E$2:$N$540,10,FALSE) -> 10/15/2013 - 10/15/2021 | C188: 2014 | D188: Beverly Hills 2014 | E188: 1 | F188: 2 | G188: 0 | H188: 2 | J188: 1 | K188: 3 | L188: 3 | M188: 0 | O188: 1 | P188: 0 | R188: 0 | S188: 38 | U188: 3 | V188: 43
A189: Beverly Hills | B189: =VLOOKUP(A189,'Planning Periods'!$E$2:$N$540,10,FALSE) -> 10/15/2013 - 10/15/2021 | C189: 2015 | D189: Beverly Hills 2015 | E189: 1 | F189: 2 | G189: 2 | H189: 0 | J189: 1 | K189: 0 | L189: 0 | M189: 0 | O189: 1 | P189: 0 | R189: 0 | S189: 21 | U189: 3 | V189: 23
A190: Beverly Hills | B190: =VLOOKUP(A190,'Planning Periods'!$E$2:$N$540,10,FALSE) -> 10/15/2013 - 10/15/2021 | C190: 2016 | D190: Beverly Hills 2016 | E190: 1 | F190: 0 | G190: 0 | H190: 0 | J190: 1 | K190: 0 | L190: 0 | M190: 0 | O190: 1 | P190: 2 | R190: 0 | S190: 16 | U190: 3 | V190: 18
A191: Beverly Hills | B191: =VLOOKUP(A191,'Planning Periods'!$E$2:$N$540,10,FALSE) -> 10/15/2013 - 10/15/2021 | C191: 2017 | D191: Beverly Hills 2017 | E191: 1 | F191: 0 | G191: 0 | H191: 0 | J191: 1 | K191: 0 | L191: 0 | M191: 0 | O191: 1 | P191: 0 | R191: 0 | S191: 16 | U191: 3 | V191: 16
A192: Big Bear Lake | B192: =VLOOKUP(A192,'Planning Periods'!$E$2:$N$540,10,FALSE) -> 10/15/2013 - 10/15/2021 | C192: 2013 | D192: Big Bear Lake 2013
A193: Big Bear Lake | B193: =VLOOKUP(A193,'Planning Periods'!$E$2:$N$540,10,FALSE) -> 10/15/2013 - 10/15/2021 | C193: 2014 | D193: Big Bear Lake 2014
A194: Big Bear Lake | B194: =VLOOKUP(A194,'Planning Periods'!$E$2:$N$540,10,FALSE) -> 10/15/2013 - 10/15/2021 | C194: 2015 | D194: Big Bear Lake 2015
A195: Big Bear Lake | B195: =VLOOKUP(A195,'Planning Periods'!$E$2:$N$540,10,FALSE) -> 10/15/2013 - 10/15/2021 | C195: 2016 | D195: Big Bear Lake 2016
A196: Big Bear Lake | B196: =VLOOKUP(A196,'Planning Periods'!$E$2:$N$540,10,FALSE) -> 10/15/2013 - 10/15/2021 | C196: 2017 | D196: Big Bear Lake 2017 | E196: 1 | F196: 0 | G196: 0 | H196: 0 | J196: 1 | K196: 0 | L196: 0 | M196: 0 | O196: 0 | P196: 4 | R196: 0 | S196: 23 | U196: 2 | V196: 27
A197: Biggs | B197: =VLOOKUP(A197,'Planning Periods'!$E$2:$N$540,10,FALSE) -> 06/15/2014 - 06/15/2022 | C197: 2014 | D197: Biggs 2014 | E197: 48 | F197: 0 | G197: 0 | H197: 0 | J197: 30 | K197: 0 | L197: 0 | M197: 0 | O197: 24 | P197: 0 | R197: 82 | S197: 0 | U197: 184 | V197: 0
A198: Biggs | B198: =VLOOKUP(A198,'Planning Periods'!$E$2:$N$540,10,FALSE) -> 06/15/2014 - 06/15/2022 | C198: 2015 | D198: Biggs 2015 | E198: 48 | F198: 26 | G198: 26 | H198: 0 | J198: 30 | K198: 30 | L198: 30 | M198: 0 | O198: 24 | P198: 0 | R198: 82 | S198: 0 | U198: 184 | V198: 56
A199: Biggs | B199: =VLOOKUP(A199,'Planning Periods'!$E$2:$N$540,10,FALSE) -> 06/15/2014 - 06/15/2022 | C199: 2016 | D199: Biggs 2016
A200: Biggs | B200: =VLOOKUP(A200,'Planning Periods'!$E$2:$N$540,10,FALSE) -> 06/15/2014 - 06/15/2022 | C200: 2017 | D200: Biggs 2017
... 2233 more rows

Sheet RHNA Allocations (hidden)
A1: County | B1: Jurisdiction | C1: Name ID | D1: Very Low | E1: Low | F1: Mod | G1: Above Mod | H1: TOTAL
A2: San Bernardino | B2: Adelanto | C2: =B2 -> Adelanto | D2: 633 | E2: 459 | F2: 513 | G2: 1236 | H2: =SUM(D2:G2) -> 2841
A3: Los Angeles | B3: Agoura Hills | C3: Agoura Hills | D3: 31 | E3: 19 | F3: 20 | G3: 45 | H3: 115
A4: Alameda | B4: Alameda | C4: Alameda | D4: 444 | E4: 248 | F4: 283 | G4: 748 | H4: 1723
A5: Alameda County - Unincorporated | B5: =A5 -> Alameda County - Unincorporated | C5: Alameda County - Unincorporated | D5: 430 | E5: 227 | F5: 295 | G5: 817 | H5: 1769
A6: Alameda | B6: Albany | C6: Albany | D6: 80 | E6: 53 | F6: 57 | G6: 145 | H6: 335
A7: Los Angeles | B7: Alhambra | C7: Alhambra | D7: 380 | E7: 224 | F7: 246 | G7: 642 | H7: 1492
A8: Orange | B8: Aliso Viejo | C8: Aliso Viejo | D8: 9 | E8: 7 | F8: 7 | G8: 16 | H8: 39
A9: Alpine County - Unincorporated | B9: =A9 -> Alpine County - Unincorporated | C9: Alpine County - Unincorporated | D9: 7 | E9: 6 | F9: 6 | G9: 11 | H9: 30
A10: Modoc | B10: Alturas | C10: Alturas | D10: 1 | E10: 1 | F10: 1 | G10: 2 | H10: 5
A11: Amador | B11: Amador City | C11: Amador City | D11: 1 | E11: 1 | F11: 0 | G11: 0 | H11: 2
A12: Amador County - Unincorporated | B12: =A12 -> Amador County - Unincorporated | C12: Amador County - Unincorporated | D12: 10 | E12: 7 | F12: 9 | G12: 23 | H12: 49
A13: Napa | B13: American Canyon | C13: American Canyon | D13: 116 | E13: 54 | F13: 58 | G13: 164 | H13: 392
A14: Orange | B14: Anaheim | C14: Anaheim | D14: 1256 | E14: 907 | F14: 1038 | G14: 2501 | H14: 5702
A15: Shasta | B15: Anderson | C15: Anderson | D15: 32 | E15: 21 | F15: 24 | G15: 59 | H15: 136
A16: Calaveras | B16: Angels Camp | C16: Angels Camp | D16: 39 | E16: 25 | F16: 28 | G16: 69 | H16: 161
A17: Contra Costa | B17: Antioch | C17: Antioch | D17: 349 | E17: 205 | F17: 214 | G17: 680 | H17: 1448
A18: San Bernardino | B18: Apple Valley | C18: Apple Valley | D18: 764 | E18: 541 | F18: 622 | G18: 1407 | H18: 3334
A19: Los Angeles | B19: Arcadia | C19: Arcadia | D19: 276 | E19: 167 | F19: 177 | G19: 434 | H19: 1054
A20: Humboldt | B20: Arcata | C20: Arcata | D20: 85 | E20: 56 | F20: 62 | G20: 160 | H20: 363
A21: San Luis Obispo | B21: Arroyo Grande | C21: Arroyo Grande | D21: 60 | E21: 38 | F21: 43 | G21: 101 | H21: 242
A22: Los Angeles | B22: Artesia | C22: Artesia | D22: 31 | E22: 18 | F22: 20 | G22: 51 | H22: 120
A23: Kern | B23: Arvin | C23: Arvin | D23: 398 | E23: 239 | F23: 183 | G23: 349 | H23: 1169
A24: San Luis Obispo | B24: Atascadero | C24: Atascadero | D24: 98 | E24: 62 | F24: 69 | G24: 164 | H24: 393
A25: San Mateo | B25: Atherton | C25: Atherton | D25: 35 | E25: 26 | F25: 29 | G25: 3 | H25: 93
A26: Merced | B26: Atwater | C26: Atwater | D26: 429 | E26: 307 | F26: 281 | G26: 748 | H26: 1765
A27: Placer | B27: Auburn | C27: Auburn | D27: 74 | E27: 52 | F27: 57 | G27: 125 | H27: 308
A28: Los Angeles | B28: Avalon | C28: Avalon | D28: 20 | E28: 12 | F28: 14 | G28: 34 | H28: 80
A29: Kings | B29: Avenal | C29: Avenal | D29: 145 | E29: 108 | F29: 115 | G29: 271 | H29: 639
A30: Los Angeles | B30: Azusa | C30: Azusa | D30: 198 | E30: 118 | F30: 127 | G30: 336 | H30: 779
A31: Kern | B31: Bakersfield | C31: Bakersfield | D31: 9706 | E31: 5800 | F31: 6453 | G31: 14331 | H31: 36290
A32: Los Angeles | B32: Baldwin Park | C32: Baldwin Park | D32: 142 | E32: 83 | F32: 90 | G32: 242 | H32: 557
A33: Riverside | B33: Banning | C33: Banning | D33: 872 | E33: 593 | F33: 685 | G33: 1642 | H33: 3792
A34: San Bernardino | B34: Barstow | C34: Barstow | D34: 188 | E34: 138 | F34: 154 | G34: 363 | H34: 843
A35: Riverside | B35: Beaumont | C35: Beaumont | D35: 1267 | E35: 854 | F35: 969 | G35: 2160 | H35: 5250
A36: Los Angeles | B36: Bell | C36: Bell | D36: 11 | E36: 7 | F36: 8 | G36: 21 | H36: 47
A37: Los Angeles | B37: Bell Gardens | C37: Bell Gardens | D37: 11 | E37: 7 | F37: 8 | G37: 20 | H37: 46
A38: Los Angeles | B38: Bellflower | C38: Bellflower | D38: 1 | E38: 1 | F38: 0 | G38: 0 | H38: 2
A39: San Mateo | B39: Belmont | C39: Belmont | D39: 116 | E39: 63 | F39: 67 | G39: 222 | H39: 468
A40: Marin | B40: Belvedere | C40: Belvedere | D40: 4 | E40: 3 | F40: 4 | G40: 5 | H40: 16
A41: Solano | B41: Benicia | C41: Benicia | D41: 94 | E41: 54 | F41: 56 | G41: 123 | H41: 327
A42: Alameda | B42: Berkeley | C42: Berkeley | D42: 532 | E42: 442 | F42: 584 | G42: 1401 | H42: 2959
A43: Los Angeles | B43: Beverly Hills | C43: Beverly Hills | D43: 1 | E43: 1 | F43: 1 | G43: 0 | H43: 3
A44: San Bernardino | B44: Big Bear Lake | C44: Big Bear Lake | D44: 1 | E44: 1 | F44: 0 | G44: 0 | H44: 2
A45: Butte | B45: Biggs | C45: Biggs | D45: 48 | E45: 30 | F45: 24 | G45: 82 | H45: 184
A46: Inyo | B46: Bishop | C46: Bishop | D46: 15 | E46: 10 | F46: 12 | G46: 28 | H46: 65
A47: Humboldt | B47: Blue Lake | C47: Blue Lake | D47: 4 | E47: 1 | F47: 2 | G47: 4 | H47: 11
A48: Riverside | B48: Blythe | C48: Blythe | D48: 91 | E48: 64 | F48: 75 | G48: 172 | H48: 402
A49: Los Angeles | B49: Bradbury | C49: Bradbury | D49: 1 | E49: 1 | F49: 0 | G49: 0 | H49: 2
A50: Imperial | B50: Brawley | C50: Brawley | D50: 760 | E50: 470 | F50: 466 | G50: 1338 | H50: 3034
A51: Orange | B51: Brea | C51: Brea | D51: 426 | E51: 305 | F51: 335 | G51: 785 | H51: 1851
A52: Contra Costa | B52: Brentwood | C52: Brentwood | D52: 234 | E52: 124 | F52: 123 | G52: 279 | H52: 760
A53: San Mateo | B53: Brisbane | C53: Brisbane | D53: 25 | E53: 13 | F53: 15 | G53: 30 | H53: 83
A54: Santa Barbara | B54: Buellton | C54: Buellton | D54: 66 | E54: 44 | F54: 41 | G54: 124 | H54: 275
A55: Orange | B55: Buena Park | C55: Buena Park | D55: 76 | E55: 53 | F55: 62 | G55: 148 | H55: 339
A56: Los Angeles | B56: Burbank | C56: Burbank | D56: 694 | E56: 413 | F56: 443 | G56: 1134 | H56: 2684
A57: San Mateo | B57: Burlingame | C57: Burlingame | D57: 276 | E57: 144 | F57: 155 | G57: 288 | H57: 863
A58: Butte County - Unincorporated | B58: =A58 -> Butte County - Unincorporated | C58: Butte County - Unincorporated | D58: 682 | E58: 545 | F58: 480 | G58: 1267 | H58: 2974
A59: Los Angeles | B59: Calabasas | C59: Calabasas | D59: 88 | E59: 54 | F59: 57 | G59: 131 | H59: 330
A60: Calaveras County - Unincorporated | B60: =A60 -> Calaveras County - Unincorporated | C60: Calaveras County - Unincorporated | D60: 241 | E60: 175 | F60: 192 | G60: 471 | H60: 1079
A61: Imperial | B61: Calexico | C61: Calexico | D61: 817 | E61: 489 | F61: 490 | G61: 1428 | H61: 3224
A62: Kern | B62: California City | C62: California City | D62: 254 | E62: 131 | F62: 155 | G62: 726 | H62: 1266
A63: Riverside | B63: Calimesa | C63: Calimesa | D63: 543 | E63: 383 | F63: 433 | G63: 982 | H63: 2341
A64: Imperial | B64: Calipatria | C64: Calipatria | D64: 37 | E64: 22 | F64: 22 | G64: 63 | H64: 144
A65: Napa | B65: Calistoga | C65: Calistoga | D65: 6 | E65: 2 | F65: 4 | G65: 15 | H65: 27
A66: Ventura | B66: Camarillo | C66: =B66 -> Camarillo | D66: 539 | E66: 366 | F66: 411 | G66: 908 | H66: =SUM(D66:G66) -> 2224
A67: Santa Clara | B67: Campbell | C67: Campbell | D67: 253 | E67: 138 | F67: 151 | G67: 391 | H67: 933
A68: Riverside | B68: Canyon Lake | C68: Canyon Lake | D68: 21 | E68: 14 | F68: 16 | G68: 32 | H68: 83
A69: Santa Cruz | B69: Capitola | C69: Capitola | D69: 34 | E69: 23 | F69: 26 | G69: 60 | H69: 143
A70: San Diego | B70: Carlsbad | C70: Carlsbad | D70: 912 | E70: 693 | F70: 1062 | G70: 2332 | H70: 4999
A71: Monterey | B71: Carmel-by-the-Sea | C71: Carmel-by-the-Sea | D71: 7 | E71: 5 | F71: 6 | G71: 13 | H71: 31
A72: Santa Barbara | B72: Carpinteria | C72: Carpinteria | D72: 39 | E72: 26 | F72: 34 | G72: 64 | H72: 163
A73: Los Angeles | B73: Carson | C73: Carson | D73: 447 | E73: 263 | F73: 280 | G73: 708 | H73: 1698
A74: Riverside | B74: Cathedral | C74: Cathedral | D74: 141 | E74: 95 | F74: 110 | G74: 254 | H74: 600
A75: Stanislaus | B75: Ceres | C75: Ceres | D75: 622 | E75: 399 | F75: 446 | G75: 1104 | H75: 2571
A76: Los Angeles | B76: Cerritos | C76: Cerritos | D76: 23 | E76: 14 | F76: 14 | G76: 35 | H76: 86
A77: Butte | B77: Chico | C77: Chico | D77: 974 | E77: 643 | F77: 708 | G77: 1638 | H77: 3963
A78: San Bernardino | B78: Chino | C78: Chino | D78: 707 | E78: 478 | F78: 533 | G78: 1176 | H78: 2894
A79: San Bernardino | B79: Chino Hills | C79: Chino Hills | D79: 217 | E79: 148 | F79: 164 | G79: 333 | H79: 862
A80: Madera | B80: Chowchilla | C80: Chowchilla | D80: 253 | E80: 190 | F80: 204 | G80: 467 | H80: 1114
A81: San Diego | B81: Chula Vista | C81: Chula Vista | D81: 3209 | E81: 2439 | F81: 2257 | G81: 4956 | H81: 12861
A82: Sacramento | B82: Citrus Heights | C82: Citrus Heights | D82: 146 | E82: 102 | F82: 130 | G82: 318 | H82: 696
A83: Los Angeles | B83: Claremont | C83: Claremont | D83: 98 | E83: 59 | F83: 64 | G83: 152 | H83: 373
A84: Contra Costa | B84: Clayton | C84: Clayton | D84: 51 | E84: 25 | F84: 31 | G84: 34 | H84: 141
A85: Lake | B85: Clearlake | C85: Clearlake | D85: 108 | E85: 67 | F85: 87 | G85: 205 | H85: 467
A86: Sonoma | B86: Cloverdale | C86: Cloverdale | D86: 39 | E86: 29 | F86: 31 | G86: 112 | H86: 211
A87: Fresno | B87: Clovis | C87: Clovis | D87: 2321 | E87: 1145 | F87: 1018 | G87: 1844 | H87: 6328
A88: Riverside | B88: Coachella | C88: Coachella | D88: 1555 | E88: 1059 | F88: 1212 | G88: 2945 | H88: 6771
A89: Fresno | B89: Coalinga | C89: Coalinga | D89: 150 | E89: 115 | F89: 123 | G89: 201 | H89: 589
A90: Placer | B90: Colfax | C90: Colfax | D90: 10 | E90: 7 | F90: 10 | G90: 24 | H90: 51
A91: San Mateo | B91: Colma | C91: Colma | D91: 20 | E91: 8 | F91: 9 | G91: 22 | H91: 59
A92: San Bernardino | B92: Colton | C92: Colton | D92: 443 | E92: 302 | F92: 347 | G92: 831 | H92: 1923
A93: Colusa | B93: Colusa | C93: Colusa | D93: 79 | E93: 64 | F93: 61 | G93: 150 | H93: 354
A94: Colusa County - Unincorporated | B94: =A94 -> Colusa County - Unincorporated | C94: Colusa County - Unincorporated | D94: 107 | E94: 91 | F94: 91 | G94: 210 | H94: 499
A95: Los Angeles | B95: Commerce | C95: Commerce | D95: 12 | E95: 7 | F95: 7 | G95: 20 | H95: 46
A96: Los Angeles | B96: Compton | C96: Compton | D96: 1 | E96: 1 | F96: 0 | G96: 0 | H96: 2
A97: Contra Costa | B97: Concord | C97: Concord | D97: 798 | E97: 444 | F97: 559 | G97: 1677 | H97: 3478
A98: Contra Costa County - Unincorporated | B98: =A98 -> Contra Costa County - Unincorporated | C98: Contra Costa County - Unincorporated | D98: 374 | E98: 218 | F98: 243 | G98: 532 | H98: 1367
A99: Kings | B99: Corcoran | C99: Corcoran | D99: 215 | E99: 161 | F99: 169 | G99: 401 | H99: 946
A100: Tehama | B100: Corning | C100: Corning | D100: 38 | E100: 30 | F100: 33 | G100: 75 | H100: 176
A101: Riverside | B101: Corona | C101: Corona | D101: 192 | E101: 128 | F101: 142 | G101: 308 | H101: 770
A102: San Diego | B102: Coronado | C102: Coronado | D102: 13 | E102: 9 | F102: 9 | G102: 19 | H102: 50
A103: Marin | B103: Corte Madera | C103: Corte Madera | D103: 22 | E103: 13 | F103: 13 | G103: 24 | H103: 72
A104: Orange | B104: Costa Mesa | C104: Costa Mesa | D104: 1 | E104: 1 | F104: 0 | G104: 0 | H104: 2
A105: Sonoma | B105: Cotati | C105: Cotati | D105: 35 | E105: 18 | F105: 18 | G105: 66 | H105: 137
A106: Los Angeles | B106: Covina | C106: Covina | D106: 60 | E106: 35 | F106: 38 | G106: 97 | H106: 230
A107: Del Norte | B107: Crescent City | C107: Crescent City | D107: 20 | E107: 13 | F107: 10 | G107: 34 | H107: 77
A108: Los Angeles | B108: Cudahy | C108: Cudahy | D108: 80 | E108: 46 | F108: 51 | G108: 141 | H108: 318
A109: Los Angeles | B109: Culver City | C109: Culver City | D109: 48 | E109: 29 | F109: 31 | G109: 77 | H109: 185
A110: Santa Clara | B110: Cupertino | C110: Cupertino | D110: 356 | E110: 207 | F110: 231 | G110: 270 | H110: 1064
A111: Orange | B111: Cypress | C111: Cypress | D111: 71 | E111: 50 | F111: 56 | G111: 131 | H111: 308
A112: San Mateo | B112: Daly City | C112: Daly City | D112: 400 | E112: 188 | F112: 221 | G112: 541 | H112: 1350
A113: Orange | B113: Dana Point | C113: Dana Point | D113: 76 | E113: 53 | F113: 61 | G113: 137 | H113: 327
A114: Contra Costa | B114: Danville | C114: Danville | D114: 196 | E114: 111 | F114: 124 | G114: 126 | H114: 557
A115: Yolo | B115: Davis | C115: Davis | D115: 248 | E115: 174 | F115: 198 | G115: 446 | H115: 1066
A116: San Diego | B116: Del Mar | C116: Del Mar | D116: 7 | E116: 5 | F116: 15 | G116: 34 | H116: 61
A117: Del Norte County - Unincorporated | B117: =A117 -> Del Norte County - Unincorporated | C117: Del Norte County - Unincorporated | D117: 60 | E117: 37 | F117: 30 | G117: 106 | H117: 233
A118: Monterey | B118: Del Rey Oaks | C118: Del Rey Oaks | D118: 7 | E118: 4 | F118: 5 | G118: 11 | H118: 27
A119: Kern | B119: Delano | C119: Delano | D119: 396 | E119: 277 | F119: 243 | G119: 546 | H119: 1462
A120: Riverside | B120: Desert Hot Springs | C120: Desert Hot Springs | D120: 946 | E120: 661 | F120: 772 | G120: 1817 | H120: 4196
A121: Los Angeles | B121: Diamond Bar | C121: Diamond Bar | D121: 308 | E121: 182 | F121: 190 | G121: 466 | H121: 1146
A122: Tulare | B122: Dinuba | C122: Dinuba | D122: 211 | E122: 163 | F122: 121 | G122: 470 | H122: 965
A123: Solano | B123: Dixon | C123: Dixon | D123: 50 | E123: 24 | F123: 30 | G123: 93 | H123: 197
A124: Siskiyou | B124: Dorris | C124: Dorris | D124: 3 | E124: 2 | F124: 2 | G124: 5 | H124: 12
A125: Merced | B125: Dos Palos | C125: Dos Palos | D125: 71 | E125: 27 | F125: 47 | G125: 124 | H125: 269
A126: Los Angeles | B126: Downey | C126: Downey | D126: 210 | E126: 123 | F126: 135 | G126: 346 | H126: 814
A127: Los Angeles | B127: Duarte | C127: Duarte | D127: 87 | E127: 53 | F127: 55 | G127: 142 | H127: 337
A128: Alameda | B128: Dublin | C128: Dublin | D128: 796 | E128: 446 | F128: 425 | G128: 618 | H128: 2285
A129: Siskiyou | B129: Dunsmuir | C129: Dunsmuir | D129: 6 | E129: 4 | F129: 4 | G129: 9 | H129: 23
A130: San Mateo | B130: East Palo Alto | C130: =B130 -> East Palo Alto | D130: 64 | E130: 54 | F130: 83 | G130: 266 | H130: =SUM(D130:G130) -> 467
A131: Riverside | B131: Eastvale | C131: Eastvale | D131: 374 | E131: 250 | F131: 274 | G131: 565 | H131: 1463
A132: San Diego | B132: El Cajon | C132: El Cajon | D132: 1448 | E132: 1101 | F132: 1019 | G132: 2237 | H132: 5805
A133: Imperial | B133: El Centro | C133: El Centro | D133: 487 | E133: 300 | F133: 297 | G133: 840 | H133: 1924
A134: Contra Costa | B134: El Cerrito | C134: El Cerrito | D134: 100 | E134: 63 | F134: 69 | G134: 166 | H134: 398
A135: El Dorado County - Unincorporated | B135: =A135 -> El Dorado County - Unincorporated | C135: El Dorado County - Unincorporated | D135: 1086 | E135: 762 | F135: 823 | G135: 1757 | H135: 4428
A136: Los Angeles | B136: El Monte | C136: El Monte | D136: 529 | E136: 315 | F136: 352 | G136: 946 | H136: 2142
A137: Los Angeles | B137: El Segundo | C137: El Segundo | D137: 18 | E137: 11 | F137: 12 | G137: 28 | H137: 69
A138: Sacramento | B138: Elk Grove | C138: Elk Grove | D138: 2035 | E138: 1427 | F138: 1377 | G138: 2563 | H138: 7402
A139: Alameda | B139: Emeryville | C139: Emeryville | D139: 276 | E139: 211 | F139: 259 | G139: 752 | H139: 1498
A140: San Diego | B140: Encinitas | C140: Encinitas | D140: 587 | E140: 446 | F140: 413 | G140: 907 | H140: 2353
A141: San Joaquin | B141: Escalon | C141: Escalon | D141: 103 | E141: 66 | F141: 64 | G141: 192 | H141: 425
A142: San Diego | B142: Escondido | C142: Escondido | D142: 1042 | E142: 791 | F142: 733 | G142: 1609 | H142: 4175
A143: Siskiyou | B143: Etna | C143: Etna | D143: 3 | E143: 2 | F143: 2 | G143: 3 | H143: 10
A144: Humboldt | B144: Eureka | C144: Eureka | D144: 145 | E144: 96 | F144: 104 | G144: 264 | H144: 609
A145: Tulare | B145: Exeter | C145: Exeter | D145: 143 | E145: 125 | F145: 85 | G145: 272 | H145: 625
A146: Marin | B146: Fairfax | C146: Fairfax | D146: 16 | E146: 11 | F146: 11 | G146: 23 | H146: 61
A147: Solano | B147: Fairfield | C147: Fairfield | D147: 779 | E147: 404 | F147: 456 | G147: 1461 | H147: 3100
A148: Tulare | B148: Farmersville | C148: Farmersville | D148: 74 | E148: 65 | F148: 68 | G148: 259 | H148: 466
A149: Humboldt | B149: Ferndale | C149: Ferndale | D149: 6 | E149: 3 | F149: 4 | G149: 8 | H149: 21
A150: Ventura | B150: Fillmore | C150: Fillmore | D150: 160 | E150: 112 | F150: 128 | G150: 294 | H150: 694
A151: Fresno | B151: Firebaugh | C151: Firebaugh | D151: 128 | E151: 169 | F151: 204 | G151: 211 | H151: 712
A152: Sacramento | B152: Folsom | C152: Folsom | D152: 1218 | E152: 854 | F152: 862 | G152: 1699 | H152: 4633
A153: San Bernardino | B153: Fontana | C153: Fontana | D153: 1442 | E153: 974 | F153: 1090 | G153: 2471 | H153: 5977
A154: Mendocino | B154: Fort Bragg | C154: Fort Bragg | D154: 5 | E154: 3 | F154: 3 | G154: 9 | H154: 20
A155: Siskiyou | B155: Fort Jones | C155: Fort Jones | D155: 2 | E155: 1 | F155: 2 | G155: 4 | H155: 9
A156: Humboldt | B156: Fortuna | C156: Fortuna | D156: 39 | E156: 24 | F156: 27 | G156: 71 | H156: 161
A157: San Mateo | B157: Foster City | C157: Foster City | D157: 148 | E157: 87 | F157: 76 | G157: 119 | H157: 430
A158: Orange | B158: Fountain Valley | C158: Fountain Valley | D158: 83 | E158: 59 | F158: 65 | G158: 151 | H158: 358
A159: Fresno | B159: Fowler | C159: Fowler | D159: 123 | E159: 83 | F159: 75 | G159: 243 | H159: 524
A160: Alameda | B160: Fremont | C160: Fremont | D160: 1714 | E160: 926 | F160: 978 | G160: 1837 | H160: 5455
A161: Fresno | B161: Fresno | C161: Fresno | D161: 5666 | E161: 3289 | F161: 3571 | G161: 11039 | H161: 23565
A162: Fresno County - Unincorporated | B162: =A162 -> Fresno County - Unincorporated | C162: Fresno County - Unincorporated | D162: 460 | E162: 527 | F162: 589 | G162: 1146 | H162: 2722
A163: Orange | B163: Fullerton | C163: Fullerton | D163: 411 | E163: 299 | F163: 337 | G163: 794 | H163: 1841
A164: Sacramento | B164: Galt | C164: Galt | D164: 131 | E164: 91 | F164: 126 | G164: 331 | H164: 679
A165: Orange | B165: Garden Grove | C165: Garden Grove | D165: 164 | E165: 120 | F165: 135 | G165: 328 | H165: 747
A166: Los Angeles | B166: Gardena | C166: Gardena | D166: 98 | E166: 60 | F166: 66 | G166: 173 | H166: 397
A167: Santa Clara | B167: Gilroy | C167: Gilroy | D167: 236 | E167: 160 | F167: 217 | G167: 475 | H167: 1088
A168: Los Angeles | B168: Glendale | C168: Glendale | D168: 508 | E168: 310 | F168: 337 | G168: 862 | H168: 2017
A169: Los Angeles | B169: Glendora | C169: Glendora | D169: 171 | E169: 100 | F169: 108 | G169: 267 | H169: 646
A170: Glenn County - Unincorporated | B170: =A170 -> Glenn County - Unincorporated | C170: Glenn County - Unincorporated | D170: 25 | E170: 19 | F170: 25 | G170: 48 | H170: 117
A171: Santa Barbara | B171: Goleta | C171: Goleta | D171: 235 | E171: 157 | F171: 174 | G171: 413 | H171: 979
A172: Monterey | B172: Gonzales | C172: Gonzales | D172: 71 | E172: 46 | F172: 53 | G172: 123 | H172: 293
A173: San Bernardino | B173: Grand Terrace | C173: Grand Terrace | D173: 28 | E173: 19 | F173: 22 | G173: 49 | H173: 118
A174: Nevada | B174: Grass Valley | C174: Grass Valley | D174: 122 | E174: 88 | F174: 100 | G174: 220 | H174: 530
A175: Monterey | B175: Greenfield | C175: Greenfield | D175: 87 | E175: 57 | F175: 66 | G175: 153 | H175: 363
A176: Butte | B176: Gridley | C176: Gridley | D176: 231 | E176: 118 | F176: 99 | G176: 321 | H176: 769
A177: San Luis Obispo | B177: Grover Beach | C177: Grover Beach | D177: 41 | E177: 26 | F177: 29 | G177: 69 | H177: 165
A178: Santa Barbara | B178: Guadalupe | C178: Guadalupe | D178: 12 | E178: 8 | F178: 13 | G178: 16 | H178: 49
A179: Merced | B179: Gustine | C179: Gustine | D179: 61 | E179: 56 | F179: 51 | G179: 136 | H179: 304
A180: San Mateo | B180: Half Moon Bay | C180: Half Moon Bay | D180: 52 | E180: 31 | F180: 36 | G180: 121 | H180: 240
A181: Kings | B181: Hanford | C181: Hanford | D181: 1097 | E181: 821 | F181: 865 | G181: 2049 | H181: 4832
A182: Los Angeles | B182: Hawaiian Gardens | C182: Hawaiian Gardens | D182: 32 | E182: 19 | F182: 21 | G182: 57 | H182: 129
A183: Los Angeles | B183: Hawthorne | C183: Hawthorne | D183: 170 | E183: 101 | F183: 112 | G183: 300 | H183: 683
A184: Alameda | B184: Hayward | C184: Hayward | D184: 851 | E184: 480 | F184: 608 | G184: 1981 | H184: 3920
A185: Sonoma | B185: Healdsburg | C185: Healdsburg | D185: 31 | E185: 24 | F185: 26 | G185: 76 | H185: 157
A186: Riverside | B186: Hemet | C186: Hemet | D186: 134 | E186: 96 | F186: 112 | G186: 262 | H186: 604
A187: Contra Costa | B187: Hercules | C187: Hercules | D187: 220 | E187: 118 | F187: 100 | G187: 244 | H187: 682
A188: Los Angeles | B188: Hermosa Beach | C188: Hermosa Beach | D188: 1 | E188: 1 | F188: 0 | G188: 0 | H188: 2
A189: San Bernardino | B189: Hesperia | C189: Hesperia | D189: 398 | E189: 274 | F189: 314 | G189: 729 | H189: 1715
A190: Los Angeles | B190: Hidden Hills | C190: Hidden Hills | D190: 5 | E190: 3 | F190: 3 | G190: 7 | H190: 18
A191: San Bernardino | B191: Highland | C191: Highland | D191: 349 | E191: 246 | F191: 280 | G191: 625 | H191: 1500
A192: San Mateo | B192: Hillsborough | C192: Hillsborough | D192: 32 | E192: 17 | F192: 21 | G192: 21 | H192: 91
A193: San Benito | B193: Hollister | C193: Hollister | D193: 312 | E193: 189 | F193: 258 | G193: 557 | H193: 1316
A194: Imperial | B194: Holtville | C194: =B194 -> Holtville | D194: 54 | E194: 31 | F194: 32 | G194: 92 | H194: =SUM(D194:G194) -> 209
A195: Stanislaus | B195: Hughson | C195: Hughson | D195: 53 | E195: 34 | F195: 38 | G195: 93 | H195: 218
A196: Humboldt County - Unincorporated | B196: =A196 -> Humboldt County - Unincorporated | C196: Humboldt County - Unincorporated | D196: 212 | E196: 135 | F196: 146 | G196: 366 | H196: 859
A197: Orange | B197: Huntington Beach | C197: Huntington Beach | D197: 313 | E197: 220 | F197: 248 | G197: 572 | H197: 1353
A198: Los Angeles | B198: Huntington Park | C198: Huntington Park | D198: 216 | E198: 128 | F198: 149 | G198: 402 | H198: 895
A199: Fresno | B199: Huron | C199: Huron | D199: 87 | E199: 107 | F199: 106 | G199: 124 | H199: 424
A200: Imperial | B200: Imperial | C200: Imperial | D200: 349 | E200: 205 | F200: 202 | G200: 553 | H200: 1309
... 340 more rows

Sheet Table C
A1: ANNUAL ELEMENT PROGRESS REPORT
A2: Housing Element Implementation
A3: (CCR Title 25 §6202)
A4: Jurisdiction | B4: ='Start Here'!B4:D4 -> Elk Grove | K4: Note: + Optional field
A5: Reporting Year | B5: ='Start Here'!B5 -> 2018 | C5: ='Table A2'!C5 -> (Jan. 1 - Dec. 31) | K5: Cells in grey contain auto-calculation formulas
A8: Table C
A9: Sites Identified or Rezoned to Accommodate Shortfall Housing Need
A10: Project Identifier | E10: Date of Rezone | F10: Affordability by Household Income | J10: Type of Shortfall | K10: Sites Description
A11: 1 | E11: 2 | F11: 3 | J11: 4 | K11: 5 | L11: 6 | M11: 7 | N11: 8 | P11: 9 | Q11: 10 | R11: 11
A12: APN | B12: Street Address | C12: Project Name+ | D12: Local Jurisdiction Tracking ID+ | E12: Date of Rezone | F12: Very-Low Income | G12: Low-Income | H12: Moderate Income | I12: Above Moderate -Income | J12: Type of Shortfall | K12: Parcel Size (Acres) | L12: General Plan Designation | M12: Zoning | N12: Minimum Density Allowed | O12: Maximum Density Allowed | P12: Realistic Capacity | Q12: Vacant/Nonvacant | R12: Description of Existing Uses
A13: Summary Row: Start Data Entry Below | F13: =SUM(F14:F500) -> 0 | G13: =SUM(G14:G500) -> 0 | H13: =SUM(H14:H500) -> 0 | I13: =SUM(I14:I500) -> 0 | P13: =SUM(P14:P514) -> 0 | Q13: =SUM(Q14:Q9998) -> 0

Sheet Table D
A1: ANNUAL ELEMENT PROGRESS REPORT
A2: Housing Element Implementation
A3: (CCR Title 25 §6202)
A4: Jurisdiction | B4: ='Start Here'!B4:D4 -> Elk Grove
A5: Reporting Year | B5: ='Start Here'!B5 -> 2018 | C5: ='Table A2'!C5 -> (Jan. 1 - Dec. 31)
A7: Table D
A8: Program Implementation Status pursuant to GC Section 65583
A9: Housing Programs Progress Report Describe progress of all programs including local efforts to remove governmental constraints to the maintenance, improvement, and development of housing as identified in the housing element.
A10: 1 | B10: 2 | C10: 3 | D10: 4
A11: Name of Program | B11: Objective | C11: Timeframe in H.E | D11: Status of Program Implementation
A12: H-1 Action 1 | B12: To the extent that there are high-density residential sites identified as accommodating the City’s RHNA that ultimately develop with a use other than high-density residential development, the City will ensure that it maintains adequate inventory to accommodate the RHNA, including by rezoning as necessary. | C12: Review the sites inventory periodically throughout the planning period | D12: Since the adoption of the Housing Element, no high-density residential sites identified as accommodating the City’s RHNA have developed with another use. The City maintained an adequate inventory of sites to accommodate the RHNA.
A13: H-1 Action 2 | B13: The City has a lower income regional housing need of 3,462 units. In an effort to meet the lower income regional housing need, the City will complete the following: 1. Concurrently with adoption, the City will identify and rezone sites in Table 35 that meet the City’s lower income RHNA of 3,462. (Please note: this includes capacity from the SEPA and site 21). 2. The City will rezone 15 acres of site 21, which will provide for a capacity of 315 units, consistent with Land Use Policy LU-40. 3. The City will rezone approximately 60 acres of the Southeast Policy Area (SEPA), to meet a portion of the City’s lower-income housing needs. The SEPA and site 21 will permit owner-occupied and rental multifamily developments by right and will not require a conditional use permit. The City has, since 2003, required Design Review for all multifamily development. Design Review would be required for multifamily projects on these sites. Projects under 151 units are reviewed at the "staff-level", while larger projects are reviewed by the Planning Commission. All sites will accommodate a minimum of 20 units per acre and at least 16 units per site, pursuant to State law requirements. Should it be determined that the SEPA or site 21 will not be completed within the three year rezone timeframe, the City will identify additional sites to meet the City’s RHNA. | C13: By January 1, 2017 | D13: Concurrently with the adoption of the Housing Element in February 2014, the City rezoned designated sites to meet the RHNA, except for Site 21. In July 2014, the City adopted the Southeast Policy Area Strategic Plan, which included a land plan. The land plan designated a total of 64.27 acres as High-Density Residential, on sites ranging from about 5 to 15 acres. The Southeast Policy Area High-Density Residential zoning allows projects from 15.1 to 40 units per acre, but consistent with the Housing Element policy, the City will ensure these sites develop at a minimum density of 20.1 units per acre. In December 2016, the City rezoned 15 acres on Site 21, split between two locations on the site, to high-density residential zoning. The new RD-25 zoning allows for development at a density of 20.1 to 30 units per acre.
A14: H-1 Action 3 | B14: To facilitate the development of affordable housing, and provide for development phases of 50 to 150 units in size, the City will routinely coordinate with property owners and give high priority to processing subdivision maps that include affordable housing units. | C14: As projects are processed through the Development Services Department | D14: The City did not receive any requests to process subdivision maps that included an affordable housing component in 2018.
A15: H-1 Action 4 | B15: To ensure that there is a sufficient supply of multifamily zoned land to meet the City’s RHNA, the City will help facilitate lot consolidations to combine small residential lots into larger developable lots by annually meeting with local developers to discuss development opportunities and incentives for lot consolidation to accommodate affordable housing units. As developers/owners approach the City interested in lot consolidation for the development of affordable housing, the City will offer the following incentives on a project by project basis: • Allow affordable projects to exceed the maximum height limits, • Lessen set-backs, and/or • Reduce parking requirements. The City will also consider offsetting fees (when financially feasible) and concurrent/fast tracking of project application reviews to developers who provide affordable housing. | C15: Ongoing, as projects are processed through the Development Services Department. Annually meet with local developers to discuss development opportunities and incentives for lot consolidation. | D15: Since 2013, the City has completed one lot consolidation in support of an affordable housing project (Avery Gardens). Two lots were combined to create an approximately 3.4 acre site on which a 64-unit complex was built. The City regularly convenes meetings of its Industry Working Group, a group of developers, property owners, public agencies, and others with an interest in high-level development issues in the City. As a part of updates on the Housing Element, the City discussed development opportunities with this group. City staff also responded to individual inquiries from developers related to lot consolidation issues, although none specifically concerned affordable housing.
A16: H-2 Action 1 | B16: Continue to allow corner duplexes in single-family residential developments without a use permit. | C16: Ongoing | D16: No interested developers or persons requested approval of corner duplexes in single-family residential developments. They continue to be allowed without a use permit.
A17: H-3 Action 1 | B17: Continue to encourage multifamily development throughout the City. Utilize the following non-binding guidelines in the analysis process of identifying opportunity locations for new multifamily housing: 1. Proximity to public transit or bus service. 2. Proximity to commercial and social services. 3. Parcel size and configuration that enhances the feasibility of development. 4. Lack of physical constraints (e.g., noise, wetlands). 5. Provision for a variety of housing types and affordable housing opportunities. 6. Of an appropriate size to provide for on-site management. 7. Integration into and compatibility with surrounding development. 8. Proximity to other multifamily development. The City may also consider other criteria, as it deems appropriate, in order to determine the feasibility and potential constraints of new multifamily development. | C17: Ongoing | D17: The City used these factors in considering the sites to be rezoned to meet the RHNA, and remains committed to considering these factors in locating future affordable housing.
A18: H-3 Action 2 | B18: Offer fast track/priority processing, density bonuses, flexibility in development standards, and fee subsidies (when feasible) to developers proposing new housing, mixed-use, or infill projects affordable to lower-income households, farmworkers, seniors, and other special needs groups. | C18: Ongoing | D18: The City continued to offer these benefits to developers of affordable housing. In 2016, the City approved a density bonus to allow parking and setback concessions for a proposed 98-unit affordable housing project. No such requests were received in 2018.
A19: H-4 Action 1 | B19: Continue to support affordable housing development through financial assistance from sources such as the Affordable Housing Fund, CalHome, Community Development Block Grant (CDBG), Home Investment Partnerships Program (HOME), and other US Department of Housing and Urban Development (HUD) or California Department of Housing and Community Development (HCD) funding, as feasible. | C19: Ongoing | D19: In 2018, construction was underway on the Bow Street Apartments (97 affordable units and one manager's unit). The project was supported by a $5 million City loan. The City also made a conditional loan commitment of $5 million to the Gardens at Quail Run, a 96-unit project (95 affordable units and one manager's unit). The Gardens at Quail Run applied for 9% tax credit funding in the second round of 2018, but was unsuccessful in securing tax credits. The developer plans to apply again in 2019.
A20: H-4 Action 2 | B20: When feasible, continue to provide waivers of or exemptions from select fees to all affordable housing projects and participate in the Sacramento Regional County Sanitation District’s fee waiver and deferral program to reduce impact fees for affordable housing development. | C20: Ongoing | D20: The City provides a waiver of the affordable housing fee on affordable housing projects and continues to participate in the Sacramento County Regional Sanitation District’s fee waiver and deferral program to reduce impact fees for affordable housing development.
A21: H-4 Action 3 | B21: Offer affordable housing funding sources through the issuance of a Request for Proposals process consistent with the City’s Affordable Housing Loan Program guidelines, or other process as approved by the City Council. | C21: Ongoing | D21: In 2018, the City made a conditional loan commitment of $5 million to the Gardens at Quail Run, a 96-unit affordable apartment complex. The City will consider making additional funding available when the Affordable Housing Fund uncommitted balance again reaches the $5 million threshold, but may also explore strategic land purchases to support affordable housing.
A22: H-5 Action 1 | B22: Continue to apply for HOME and CalHome funds for homebuyer assistance programs as they are available and when the City is eligible. Continue to administer the Affordable Homeownership Program, which provides limited fee waivers for deed-restricted for-sale affordable housing units. Information on these programs will be advertised on the City’s website when funds or homes are available. | C22: Ongoing; apply for HOME/CalHome funds annually or as available/eligible | D22: In 2018, the City continued to implement its Homebuyer Assistance Programs using the City’s Affordable Housing Fund, following the expiration of the City's CalHome grant. No loans were made, as there was a mismatch between home prices what low-income buyers could afford, even with City assistance.
A23: H-5 Action 2 | B23: Continue to partner with NeighborWorks to provide homeownership services, such as homebuyer education and one-on-one or group counseling. | C23: Ongoing | D23: In 2018, the City contracted with NeighborWorks to provide homebuyer education to participants in the City’s Homebuyer Assistance Program. NeighborWorks services, including pre- and post-homeownership counseling and foreclosure counseling, were available to all Elk Grove residents. NeighborWorks operated two convenient locations for Elk Grove residents, in Sacramento and in Stockton.
A24: H-6 Action 1 | B24: Continue to promote and support energy efficiency in new construction by encouraging developers to utilize Sacramento Municipal Utility District (SMUD) energy programs and other energy efficiency programs and to be consistent with the Sustainability Element of the General Plan and the City’s Climate Action Plan. | C24: Ongoing | D24: The developers of affordable multifamily housing were encouraged to work with SMUD and other utility providers to improve energy efficiency in their projects and obtain any fee credits or rebates for which they might be eligible.
A25: H-6 Action 2 | B25: Continue to encourage participation in SMUD’s PV (photovoltaic) Pioneer program by issuing PV system permits at no charge upon SMUD’s approval. | C25: Ongoing | D25: There have been 2,469 PV permits issued since January 1, 2013.
A26: H-7 Action 1 | B26: Continue to allow flexibility in development standards, such as smaller unit sizes and parking reductions for senior projects, and by allowing development incorporating universal design measures. | C26: Ongoing | D26: The City did not receive any requests for flexible development standards on senior projects. City staff discussed potential options for flexibility at initial meetings with developers interested in building senior housing.
A27: H-7 Action 2 | B27: Continue to contribute funding and work closely with local nonprofits and regional agencies to assess homeless needs and develop plans to address homelessness at a regional level. The City will annually meet with local service providers and regional agencies (as applicable) to assess the needs regarding homelessness of the City and the region. | C27: Ongoing | D27: The City participated in the HART Solutions Committee, which is a committee of local individuals and organizations focused on local solutions to homelessness as well as regional coordination. The City continued to work with Sacramento Self Help Housing, Elk Grove HART, and the Elk Grove Food Bank on homeless issues. City staff also served on the Continuum of Care Advisory Board, and participated in many discussions through Sacramento Steps Forward and Sacramento County on homeless needs and priorities.
A28: H-7 Action 3 | B28: Continue to procure funding sources that will allow the City to contribute to agencies that provide services for persons with special housing needs. | C28: Ongoing; as Notices of Funding Availability are released | D28: For the 2018-19 fiscal year, the City allocated about $109,000 to Sacramento Self-Help Housing (SSHH) and Elk Grove HART, which provides assistance to homeless persons and housing counseling to persons who are homeless or at risk of becoming homeless. SSHH also owns and operates the City’s Grace House and Meadow House transitional housing projects, and the Sun Sprite permanent shared housing project, and provides case management to residents. An additional $32,000 was provided to the Elk Grove Food Bank for their Support Works self-sufficiency program.
A29: H-7 Action 4 | B29: Amend the Zoning Code to comply with Health and Safety Code Sections 17021.5 and 17021.6, which deal with certain kinds of employee housing. The City will amend the Zoning Ordinance to treat employee housing that serves six or fewer persons as a single-family structure and permitted in the same manner as other single-family structures of the same type in the same zone (Section 17021.5). The Zoning Ordinance will also be amended to treat employee housing consisting of no more than 12 units or 36 beds as an agricultural use and permitted in the same manner as other agricultural uses in the same zone (Section 17021.6) in zones where agricultural uses are permitted. | C29: Within one year from adoption of the Housing Element | D29: This Zoning Code amendment was completed in August 2014.
A30: H-7 Action 5 | B30: Work with the Alta California Regional Center to implement an outreach program that informs families within the City about housing and services available for persons with developmental disabilities. The program could include the development of an informational brochure, including information on services on the City’s website, and providing housing-related training for individuals/families through workshops. | C30: Within one year from adoption of the Housing Element | D30: The City met with Elk Grove Adult Community Training, which locally provides service to many Alta California Regional Center clients, to collect information on housing needs and share information on City housing programs. The City also circulated information on the Homebuyer Assistance Program to several organizations serving disabled persons, and provided information to individuals on affordable rental units and homebuyer programs.
A31: H-8 Action 1 | B31: Continue to update the affordable housing unit database and to provide information regarding affordable housing opportunities, both through direct response to inquiries and making information available on the City’s website. | C31: Ongoing | D31: The City’s website lists all affordable housing properties within the City boundaries, including those not directly funded by the City. The listing contains property address, phone, and website information, as well as a photo and map. City staff continued to respond directly to public inquiries regarding affordable housing, and received an average of 10-15 calls per week plus additional emails.
A32: H-8 Action 2 | B32: Consider a housing choice voucher (Section 8) education program for residents (neighbors) and landlords to provide awareness of the program and the opportunities and constraints it provides. | C32: Education outreach would occur annually | D32: The City provided information on the Section 8 program to requesting individuals, including landlords and tenants. When appropriate, inquiries were referred to the Sacramento Housing and Redevelopment Agency (SHRA), which implements the Housing Choice Voucher (HCV or Section 8) program. SHRA participated in a local training for landlords offered by the City’s Code Enforcement Department, with a focus on promoting the benefits of participation. An estimated 5-6 calls per week were received related to HCV matters. The vast majority of callers were requesting information on participating in the HCV program. Few calls were complaints about the HCV program.
A33: H-9 Action 1 | B33: Continue to provide regulatory incentives for the development of units affordable to extremely low-, very low-, and low-income households, including second dwelling units, senior housing, and apartment units, and housing for special needs groups, including agricultural employees, persons with disabilities (including developmental disabilities), and individuals and families in need of emergency/transitional housing. The City will also take subsequent action, as appropriate, to make the development of such units more financially feasible and will consider providing financial incentives, such as reducing, waiving, and/or deferring fees, where feasible. | C33: Ongoing, as projects are processed through the Development Services Department | D33: The City continued to offer regulatory incentives, such as a density bonus, to affordable housing projects.
A34: H-10 Action 1 | B34: Continue to designate a staff planner to guide affordable housing development projects through the planning process and designate the Housing Program Manager to implement housing-related programs and policy initiatives. | C34: Ongoing | D34: All projects are assigned a staff planner to guide the developer through the planning process. The Housing Program Manager (now termed the Housing and Public Services Manager) implements all housing-related programs and policy initiatives.
A35: H-10 Action 2 | B35: Continue to allow the Planning Director to serve as the approving authority on all multifamily projects of 150 units or less, including affordable projects, that are consistent with General Plan and zoning requirements. | C35: Ongoing | D35: The Planning Director (now termed the Development Services Director and/or Zoning Adminstrator) continued to have this authority. Since 2013, the Planning Director/Development Services Director has administratively approved two affordable housing projects (Avery Gardens and the Gardens at Quail Run).
A36: H-10 Action 3 | B36: Continue to conduct interdepartmental meetings to coordinate the early review of development projects and address policy concerns. | C36: Ongoing | D36: The City’s Development Services team met weekly to discuss issues related to new developments, with the goal of streamlining the process from the developer’s perspective. City staff also sets up project meetings with relevant divisions throughout the project consideration process, as needed based on the project requirements.
A37: H-11 Action 1 | B37: Continue to encourage more creative and flexibly designed projects with an affordable housing component through the use of the Design Review process, which eliminated minimum lot width and public street frontage requirements, thus creating more flexibility for higher-density projects. | C37: Ongoing | D37: Staff worked extensively with the Gardens at Quail Run developer during the design review process.
A38: H-11 Action 2 | B38: Consider adopting a Universal Design Ordinance that would encourage construction or modification of new and existing homes using design principles that allow individuals to remain in their homes as their physical needs and capabilities change. | C38: Consider the adoption of an ordinance by December 2014 | D38: City staff continues to collect information from other jurisdictions that have similar ordinances and discuss implementation of an ordinance. There has been relatively little interest from developers or residents in the implementation of such an ordinance.
A39: H-12 Action 1 | B39: Continue to annually review the Housing Element to determine its effectiveness and its consistency with the General Plan, as part of the annual review required by Government Code Section 65400. Report on the findings of this review and suggest changes if needed. | C39: Ongoing | D39: The City submitted its 2017 Housing Element Annual Progress Report in early 2018.
A40: H-13 Action 1 | B40: Continue to operate housing repair and/or rehabilitation programs that assist lower-income households occupying housing in need of repair, including the new Minor Home Repair Program that offers forgivable loans to very low- and low-income homeowners whose homes have one or more health and safety hazards. | C40: Ongoing | D40: The City discontinued the Minor Home Repair Program in 2018. In its place, the City contracted with Habitat for Humanity to offer a housing rehabilitation program meeting many of the same needs as the Minor Home Repair Program, but offering greater flexibility and use of volunteers to complete repairs. The City funded Habitat for Humanity at $174,000 for the 2018-19 fiscal year, while the Minor Home Repair program had been previously funded at about $40,000-60,000 annually.
A41: H-13 Action 2 | B41: Continue to refer individuals interested in utility assistance to the appropriate local energy provider, usually SMUD or Pacific Gas and Electric (PG&E), both of which offer programs to assist with utility costs. | C41: Ongoing | D41: Staff continued to respond to public inquiries regarding utility assistance, and referred callers to SMUD, PG&E, St Vincent de Paul Society, and South County Services, two nonprofits that provides utility assistance to Elk Grove residents who have received a shutoff notice (limited funding available).
A42: H-13 Action 3 | B42: Provide information on available housing rehabilitation programs, such as the Minor Home Repair Program, to homeowners experiencing difficulty repairing health and safety hazards. | C42: Ongoing; as needed | D42: Staff responded to public inquiries regarding housing needs, including health and safety hazards, and worked with Habitat for Humanity to design applications for their new housing rehabilitation program. The Housing and Public Services Manager worked with Code Enforcement to ensure officers knew about the availability of the housing repair program and Code Enforcement officers also distributed materials on the program.
A43: H-13 Action 4 | B43: Consider a rental inspection program that is administered by the Code Enforcement Department with the goal of enforcing Municipal Code standards for rental housing. | C43: Consider program by December 2014 | D43: In 2016, City staff evaluated the need for a rental inspection program based on the number and type of calls for service received, the age of the City’s housing stock, and other factors, and determined that at present the City’s strategy of responding to tenant calls is likely adequate. Staff will continue to monitor the need for such a program, including meeting with rental industry representatives and monitoring case logs for potential systemic problems. The City continued to contract with Sacramento Self-Help Housing to provide tenant-landlord mediation through the Renters Helpline, and Sacramento Self-Help Housing refers cases to Code Enforcement when appropriate. City staff also conducts periodic inspections of units in apartment complexes in which the City has a financial investment.
A44: H-14 Action 1 | B44: If the one mobile home park in the City is in danger of being removed from the housing stock, partner with tenant associations or a nonprofit organization to provide assistance to mobile home park tenants in preserving their homes through the State Mobilehome Park Resident Ownership Program (MPROP), when appropriate. | C44: Work with tenant associations as need arises | D44: The City received no information that the one mobile home park in the City is in danger of being removed from the housing stock.
A45: H-15 Action 1 | B45: Monitor and evaluate the conversion of rental housing units to condominiums in order to assist in amending the land use plan to provide for additional multifamily areas if necessary. | C45: Annually | D45: No condominium conversion requests were received in 2018.
A46: H-16 Action 1 | B46: Continue to provide information about fair housing choices to residents by distributing the fair housing materials upon request. Promptly address complaints of discrimination in the sale, rental, and development of housing by forwarding complaints to HUD, the California Department of Fair Employment and Housing, or other nonprofit or governmental agencies as appropriate. | C46: Ongoing | D46: City staff continued to distribute fair housing information on request and referred parties with potential discrimination issues to the Renters Helpline, HUD, or the California Department of Fair Employment and Housing. The City contracted with Sacramento Self Help Housing run the Renters Helpline, which provides tenant-landlord mediation and fair housing services; they referred fair housing complaints to HUD, DFEH, or Project Sentinel (a fair housing nonprofit).
A47: H-16 Action 2 | B47: Proactively monitor rental housing providers to determine whether they are engaging in discriminatory practices. At a minimum, offer education on fair housing law to providers found to act in a discriminatory manner. | C47: 2014 | D47: The City worked with Sacramento Self Help Housing and the Rental Housing Association to offer trainings to landlords, property management professionals, etc. on fair housing topics, particularly related to disability and reasonable accommodation. Trainings were offered throughout 2018, both in an in-person format and as webinars. In 2014, the City engaged Project Sentinel to conduct proactive rental discrimination testing at rental units. Their testing found five instances of potential discrimination in Elk Grove (mostly related to handicap/disability), of which three were referred to HUD or DFEH and two were provided with education. In 2018, Project Sentinel continued to provide testing on a complaint-driven basis as a part of the Renters Helpline contract.
A48: H-16 Action 3 | B48: Meet with other jurisdictions in the region to identify fair housing strategies and discuss whether a regional fair housing strategy would be beneficial from a cost and/or efficiency perspective. | C48: Ongoing | D48: The City met several times with representatives from throughout the region, including Citrus Heights, Rancho Cordova, Sacramento, Sacramento County, Roseville, Rocklin, and West Sacramento to discuss fair housing strategies. Together, the jurisdictions collaborated on the development of a regionally-focused Assessment of Fair Housing, and work continued on the document (now called an Analysis of Impediments to Fair Housing Choice after a HUD rule change) in 2018.
A49: H-17 Action 1 | B49: Maintain and update the City’s affordable housing database as a mechanism to monitor and identify units at risk of losing their affordability subsidies or requirements. | C49: Annually | D49: The City maintained its affordable housing database. No units were at risk of losing their affordability subsidies.
A50: H-17 Action 2 | B50: Continue to work with federal, State, and nonprofit housing organizations that function to purchase or fund the purchase of subsidized, at-risk complexes that the owner wishes to convert to market rate. Annually evaluate the need for the City to establish a program to preserve affordable units at risk of conversion. | C50: Annually evaluate and apply for funding as necessary | D50: The City did not receive any information regarding affordable complexes that are at risk of conversion to market-rate. The majority of the City’s affordable housing is covered by long-term deed restrictions that still have 20+ years remaining on their terms.
A120: General Comments:

Sheet Table E
A1: ANNUAL ELEMENT PROGRESS REPORT
A2: Housing Element Implementation
A3: (CCR Title 25 §6202)
A4: Jurisdiction | B4: ='Start Here'!B4:D4 -> Elk Grove | H4: Note: + Optional field
A5: Reporting Period | B5: ='Start Here'!B5 -> 2018 | C5: ='Table A2'!C5 -> (Jan. 1 - Dec. 31) | H5: Cells in grey contain auto-calculation formulas
A8: Table E
A9: Commercial Development Bonus Approved pursuant to GC Section 65915.7
A10: Project Identifier | E10: Units Constructed as Part of Agreement | I10: Description of Commercial Development Bonus | J10: Commercial Development Bonus Date Approved
A11: 1 | E11: 2 | I11: 3 | J11: 4
A12: APN | B12: Street Address | C12: Project Name+ | D12: Local Jurisdiction Tracking ID+ | E12: Very Low Income | F12: Low Income | G12: Moderate Income | H12: Above Moderate Income | I12: Description of Commercial Development Bonus | J12: Commercial Development Bonus Date Approved
A13: Summary Row: Start Data Entry Below | E13: =SUM(E14:E100) -> 0 | F13: =SUM(F14:F100) -> 0 | G13: =SUM(G14:G100) -> 0 | H13: =SUM(H14:H100) -> 0 | I13: =SUM(I14:I100) -> 0

Sheet Table F
A1: ANNUAL ELEMENT PROGRESS REPORT
A2: Housing Element Implementation
A3: (CCR Title 25 §6202)
A4: Jurisdiction | B4: ='Start Here'!B4:D4 -> Elk Grove | I4: Note: + Optional field
A5: Reporting Period | B5: ='Start Here'!B5 -> 2018 | C5: ='Table A2'!C5 -> (Jan. 1 - Dec. 31) | I5: Cells in grey contain auto-calculation formulas
A8: Table F
A9: Units Rehabilitated, Preserved and Acquired for Alternative Adequate Sites pursuant to Government Code section 65583.1(c)(2)
A10: This table is optional. Jurisdictions may list (for informational purposes only) units that do not count toward RHNA, but were substantially rehabilitated, acquired or preserved. To enter units in this table as progress toward RHNA, please contact HCD at APR@hcd.ca.gov. HCD will provide a password to unlock the grey fields. Units may only be credited to the table below when a jurisdiction has included a program in its housing element to rehabilitate, preserve or acquire units to accommodate a portion of its RHNA which meet the specific criteria as outlined in Government Code section 65583.1(c)(2).
A11: Activity Type | B11: Units that Do Not Count Towards RHNA+ Listed for Informational Purposes Only | F11: Units that Count Towards RHNA + Note - Because the statutory requirements severly limit what can be counted, please contact HCD to receive the password that will enable you to populate these fields. | J11: The description should adequately document how each unit complies with subsection (c)(7) of Government Code Section 65583.1+
B12: Extremely Low-Income+ | C12: Very Low-Income+ | D12: Low-Income+ | E12: TOTAL UNITS+ | F12: Extremely Low-Income+ | G12: Very Low-Income+ | H12: Low-Income+ | I12: TOTAL UNITS+
A13: Rehabilitation Activity | B13: 0 | C13: 0 | E13: =SUM(B13:D13) -> 0 | I13: =SUM(F13:H13) -> 0
A14: Preservation of Units At-Risk | E14: =SUM(B14:D14) -> 0 | I14: =SUM(F14:H14) -> 0
A15: Acquisition of Units | E15: =SUM(B15:D15) -> 0 | I15: =SUM(F15:H15) -> 0
A16: Total Units by Income | B16: =SUM(B13:B15) -> 0 | C16: =SUM(C13:C15) -> 0 | D16: =SUM(D13:D15) -> 0 | E16: =SUM(B16:D16) -> 0 | F16: =SUM(F13:F15) -> 0 | G16: =SUM(G13:G15) -> 0 | H16: =SUM(H13:H15) -> 0 | I16: =SUM(I13:I15) -> 0

Sheet Summary
A3: Jurisdiction | B3: ='Start Here'!B4:D4 -> Elk Grove
A4: Reporting Year | B4: ='Start Here'!B5 -> 2018 | C4: (Jan. 1 - Dec. 31)
A8: Entitled Units Summary
A9: Income Level | C9: Current Year
A10: Very Low | B10: Deed Restricted | C10: ='Table A2'!H12 -> 63
B11: Non-Deed Restricted | C11: ='Table A2'!I12 -> 0
A12: Low | B12: Deed Restricted | C12: ='Table A2'!J12 -> 32
B13: Non-Deed Restricted | C13: ='Table A2'!K12 -> 0
A14: Moderate | B14: Deed Restricted | C14: ='Table A2'!L12 -> 0
B15: Non-Deed Restricted | C15: ='Table A2'!M12 -> 0
A16: Above Moderate | C16: ='Table A2'!N12 -> 591
A17: Total Units 44 | C17: =SUM(C10:C16) -> 686
A18: Note: units serving extremely low-income households are included in the very low-income permitted units totals
A21: Submitted Applications Summary
A22: Total Housing Applications Submitted: | D22: =COUNTIF('Table A'!P13:P1000,">0") -> 10
A23: Number of Proposed Units in All Applications Received: | D23: ='Table A'!P12 -> 936
A24: Total Housing Units Approved: | D24: ='Table A'!Q12 -> 112
A25: Total Housing Units Disapproved: | D25: ='Table A'!R12 -> 0
A28: Use of SB 35 Streamlining Provisions
A29: Number of Applications for Streamlining | D29: =(COUNTIFS('Table A'!S:S,"Yes-but no action taken"))+(COUNTIF('Table A'!S:S,"Yes-Approved"))+(COUNTIF('Table A'!S:S,"Yes-Denied")) -> 0
A30: Number of Streamlining Applications Approved | D30: =SUMIF('Table A'!S:S, "Yes-Approved",'Table A'!Q:Q ) -> 0
A31: Total Developments Approved with Streamlining | D31: =COUNTIF('Table A'!S:S, "Yes-Approved") -> 0
A32: Total Units Constructed with Streamlining | D32: =SUMIF('Table A2'!AJ:AJ, "Y",'Table A2'!AH:AH) -> 0
A35: Units Constructed - SB 35 Streamlining Permits
A36: Income | B36: Rental | C36: Ownership | D36: Total
A37: Very Low | B37: =(SUMIFS('Table A2'!Q:Q,'Table A2'!$AJ:$AJ,"Y",'Table A2'!$G:$G,"R"))+(SUMIFS('Table A2'!R:R,'Table A2'!$AJ:$AJ,"Y",'Table A2'!$G:$G,"R")) -> 0 | C37: =(SUMIFS('Table A2'!Q:Q,'Table A2'!AJ:AJ,"Y",'Table A2'!G:G,"O"))+(SUMIFS('Table A2'!R:R,'Table A2'!AJ:AJ,"Y",'Table A2'!G:G,"O")) -> 0 | D37: =SUM(B37:C37) -> 0
A38: Low | B38: =(SUMIFS('Table A2'!S:S,'Table A2'!$AJ:$AJ,"Y",'Table A2'!$G:$G,"R"))+(SUMIFS('Table A2'!T:T,'Table A2'!$AJ:$AJ,"Y",'Table A2'!$G:$G,"R")) -> 0 | C38: =(SUMIFS('Table A2'!S:S,'Table A2'!$AJ:$AJ,"Y",'Table A2'!$G:$G,"O"))+(SUMIFS('Table A2'!T:T,'Table A2'!$AJ:$AJ,"Y",'Table A2'!$G:$G,"O")) -> 0 | D38: =SUM(B38:C38) -> 0
A39: Moderate | B39: =(SUMIFS('Table A2'!U:U,'Table A2'!$AJ:$AJ,"Y",'Table A2'!$G:$G,"R"))+(SUMIFS('Table A2'!V:V,'Table A2'!$AJ:$AJ,"Y",'Table A2'!$G:$G,"R")) -> 0 | C39: =(SUMIFS('Table A2'!U:U,'Table A2'!$AJ:$AJ,"Y",'Table A2'!$G:$G,"O"))+(SUMIFS('Table A2'!V:V,'Table A2'!$AJ:$AJ,"Y",'Table A2'!$G:$G,"O")) -> 0 | D39: =SUM(B39:C39) -> 0
A40: Above Moderate | B40: =(SUMIFS('Table A2'!W:W,'Table A2'!$AJ:$AJ,"Y",'Table A2'!G:G,"R")) -> 0 | C40: =(SUMIFS('Table A2'!W:W,'Table A2'!$AJ:$AJ,"Y",'Table A2'!G:G,"O")) -> 0 | D40: =SUM(B40:C40) -> 0
A41: Total | B41: =SUM(B37:B40) -> 0 | C41: =SUM(C37:C40) -> 0 | D41: =SUM(B41:C41) -> 0
A43: Cells in grey contain auto-calculation formulas
